{"text_format":"1","workbook":"xlsx","n_sheets":1,"sheets":["ورقة1"],"not_rendered":{"charts":0,"images":3,"macros":1,"external_links":0,"defined_names":1,"comments":0,"pivot_tables":0},"unopened":[],"bounds":{"document_bytes":16777216,"sheet_cells":100000,"rows_first":2000,"rows_last":500,"rows_between":2000,"halvings":0,"cell_chars":16384,"cell_head_chars":4096},"cells_cut":0,"cells_raw":0,"read":"whole","date_system":"1900"}

{"sheet":"ورقة1","index":0,"n_rows":1048543,"n_cols":10,"rows_kept":4500,"cut":true,"hidden":false,"merged":[[5,5,7,5],[5,7,7,7],[1,1,3,7]],"bounds":{"rows_first":2000,"rows_last":500,"rows_between":2000,"halvings":0}}
[]
[null,"المركز التسويقي لمنتسبي وزارة الداخلية"]
[]
[]
[]
[null,null,null,null,null,{"$f":"SUBTOTAL(9,B:B)","v":48008426},null,{"$f":"SUBTOTAL(9,D:D)","v":474952.5}]
[]
[]
[]
["الاسم الكامل","المبلغ الكلي","المبلغ المتبقي","الاستقطاع الشهري","عدد الأشهر","الدائرة","التاريخ ","القسط الأول","القسط الثاني"]
["عزيز حامد عبد الباقي عبد العزيز",5000,{"$f":"B11-J11*D11","v":4500},500,11,"مديرية حماية المنشات",null,"تم التسديد",null,{"$f":"COUNTIF(H11:I11,\"تم التسديد\")","v":1}]
["حسين جبار لعيبي خلف",660000,{"$f":"B12-J12*D12","v":660000},110,6,"حرس الحدود",null,null,null,{"$f":"COUNTIF(H12:I12,\"تم التسديد\")","v":0}]
["ثائر عباس عزيز علي",1500000,1500000,150,10,"الشرطة الاتحادية ف2",null,null,null,0]
["زهير ناصر هادي كاظم",3000,3000,300,10,"الشرطة الاتحادية فوج المغاوير",null,null,null,0]
["خالد فاضل علي ديوان الاسدي",175000,175000,44,4,"الشرطة الاتحادية فق 1",null,null,null,0]
["حسين صالح سويد محمد العبسي",175000,175000,44,4,"الشرطة الاتحادية فق1 الفوج الالي",null,null,null,0]
["زهير ناصر هادي كاظم",1500,1500,150,10,"الشرطة الاتحادية فوج المغاوير",null,null,null,0]
["مجدي عباس فاضل عباس",1540000,1540000,220,7,"الشرطة الاتحادية ل 3 ف3",null,null,null,0]
["حسين جبار لعيبي خلف",700000,700000,100,7,"حرس الحدود",null,null,null,0]
["حسين جبار لعيبي خلف",175000,175000,44,4,"حرس الحدود",null,null,null,0]
["سعد عزيز حمودي كاظم السعيدي",1500000,1500000,150,10,"مديرية شؤون السيطرات",null,null,null,0]
["سعد عزيز حمودي كاظم السعيدي",800000,800000,100,8,"مديرية شؤون السيطرات",null,null,null,0]
["نصير صادق جعفر عوده علي",300000,300000,50,6,"الشرطة الاتحادية فق 6",null,null,null,0]
["نصير صادق جعفر عوده علي",250000,250000,50,5,"الشرطة الاتحادية فق 6",null,null,null,0]
["محمد مهدي سليم حسين الزيداوي",3000000,3000000,300,10,"حماية المنشأت",null,null,null,0]
["بشير سلمان شكاصي",3000000,3000000,300,10,"حماية المنشأت",null,null,null,0]
["علي اسماعيل عبد الحسن",770000,770000,110,7,"حرس الحدود",null,null,null,0]
["حيدر محمد رشيد محمد",900000,900000,100,9,"حرس الحدود",null,null,null,0]
["حسين علي حسين غضبان ",250,200,50,6,"مديرية الإدارة والميرة ش.أ",null,"تم التسديد",null,1]
["نصير صادق جعفر عوده علي",3600000,3600000,400,9,"الشرطة الاتحادية فق 6",null,null,null,0]
["علاء ستار شاوي حمود",440000,439780,110,7,"مديرية شرطة النجدة",null,"تم التسديد","تم التسديد",2]
["علاء ستار شاوي حمود",200000,199800,100,5,"مديرية شرطة النجدة",null,"تم التسديد","تم التسديد",2]
["عبدالرزاق مطرود زناد سعيد",180000,180000,45,4,"الشرطة الاتحادية فق 1 ل3 ف 2",null,null,null,0]
["محمد سعدي عبد الرسول نجم",1750000,1750000,175,10,"الشرطة الاتحادية ل 8 ف 2",null,null,null,0]
["محمد سعدي عبد الرسول نجم",600000,600000,100,6,"الشرطة الاتحادية ل 8 ف 2",null,null,null,0]
["سيف جعفر جبار عبد رمضان",600000,600000,100,6,"الشرطة الاتحادية فق 1 ل2 ف 2",null,null,null,0]
["اكرم عباس حسين راضي",600000,600000,100,6,"الشرطة الاتحادية فق2 ف2",null,null,null,0]
["احمد محمد زوبري حمد",2700,2400,300,10,"حماية المنشأت",null,"تم التسديد",null,1]
["احمد محمد زوبري حمد",450,350,100,6,"حماية المنشأت",null,"تم التسديد",null,1]
["محمد عبدالقادر خماس إبراهيم",1500000,1500000,150,10,"الشرطة الاتحادية الدعم اللوجستي",null,null,null,0]
["اياد كايت رحمن عبد",900,900,100,9,"الشرطة الاتحادية فق1 ل 3 ف 3",null,null,null,0]
["اياد كايت رحمن عبد",180,180,45,4,"الشرطة الاتحادية فق1 ل 3 ف 3",null,null,null,0]
["حيدر علي عبد غافل التميمي",2975,2625,350,10,"حماية المنشأت",null,"تم التسديد",null,1]
["رفعت عيسى حبيب جاسم",900000,900000,100,9,"الشرطة الاتحادية مقر القيادة",null,null,null,0]
["محمد عبد الكريم خلف فرج",1500000,1500000,150,10,"الشرطة الاتحادية مقر قيادة الاعلام",null,null,null,0]
["محمد عبد الكريم خلف فرج",900000,900000,100,9,"الشرطة الاتحادية مقر قيادة الاعلام",null,null,null,0]
["محمد عبد الكريم خلف فرج",180000,180000,45,4,"الشرطة الاتحادية مقر قيادة الاعلام",null,null,null,0]
["محمد عبد الكريم خلف فرج",250000,250000,50,5,"الشرطة الاتحادية مقر قيادة الاعلام",null,null,null,0]
["ماهر كريم عبد الزهرة رحيمة",5250000,5250000,525,10,"شرطة اتحادية النسور",null,null,null,0]
["باسم محمد كرم عزيز",700000,700000,100,7,"الشرطة الاتحادية فق1 ل2 ف 1",null,null,null,0]
["باسم محمد كرم عزيز",600000,600000,100,6,"الشرطة الاتحادية فق1 ل2 ف 1",null,null,null,0]
["كرار حسن عبد مسلم الربيعي",600000,600000,100,6,"عمليات الوزارة",null,null,null,0]
["كرار حسن عبد مسلم الربيعي",450000,450000,90,5,"عمليات الوزارة",null,null,null,0]
["عزيز حامد عبد الباقي عبد العزيز",510,410,100,7,"مديرية حماية المنشات",null,"تم التسديد",null,1]
["فريد مجيد احمد حسين",900000,900000,180,5,"الشرطة الاتحادية ف 1",null,null,null,0]
["عقبة مطلك بدر لازم الساعدي",2400,2100,300,10,"مديرية حماية السفارات",null,"تم التسديد",null,1]
["عقبة مطلك بدر لازم الساعدي",270,180,90,5,"مديرية حماية السفارات",null,"تم التسديد",null,1]
["عقبة مطلك بدر لازم الساعدي",50,0,50,6,"مديرية حماية السفارات",null,"تم التسديد",null,1]
["عقبة مطلك بدر لازم الساعدي",150,100,50,5,"مديرية حماية السفارات",null,"تم التسديد",null,1]
["علي حسين زيدان مطلك الجابري",4500000,4500000,500,9,"فوج طوارئ بغداد",null,null,null,0]
["حيدر رحيم حسين كاظم العامري",1275,1125,150,10,"مديرية حماية المنشات",null,"تم التسديد",null,1]
["حيدر رحيم حسين كاظم العامري",750,650,100,9,"مديرية حماية المنشات",null,"تم التسديد",null,1]
["علي شهيد غانم بريسم البلحاوي",1275,1125,150,10,"مديرية حماية المنشات",null,"تم التسديد",null,1]
["علي شهيد غانم بريسم البلحاوي",750,650,100,9,"مديرية حماية المنشات",null,"تم التسديد",null,1]
["علي شهيد غانم بريسم البلحاوي",225,175,50,6,"مديرية حماية المنشات",null,"تم التسديد",null,1]
["ابراهيم محمد شوكت عبد الحميد",1275,1125,150,10,"مديرية حماية المنشات",null,"تم التسديد",null,1]
["ابراهيم محمد شوكت عبد الحميد",750,650,100,9,"مديرية حماية المنشات",null,"تم التسديد",null,1]
["وسام علي إبراهيم حمود",2250,1950,300,9,"حماية المنشات والشخصيات",null,"تم التسديد",null,1]
["عماد موحي حسن هوزي",900000,900000,100,9,"حماية السفارات",null,null,null,0]
["عقيل ستار شاوي حمود الساعدي",400000,399800,100,7,"مديرية شرطة النجدة",null,"تم التسديد","تم التسديد",2]
["فواز موفق شرقي رزوقي",700000,700000,100,7,"الشرطة الاتحادية اللواء الالي",null,null,null,0]
["حيدر هادي سلمان عبد الرزاق",700000,700000,100,7,"مديرية شرطة ديالى",null,null,null,0]
["علي حسن عبود جارالله الخفاجي",3500,3500,350,10,"قيادة شرطة بغداد",null,null,null,0]
["طاهر عطاء تقي عبود السراي",550,330,110,7,"شرطة اتحادية فق 1",null,"تم التسديد","تم التسديد",2]
["خليل إبراهيم جخيور علي فرحان",600,200,400,9,"حماية الشخصيات",null,"تم التسديد",null,1]
["خليل إبراهيم جخيور علي فرحان",550,{"$f":"B76-J76*D76","v":450},100,7,"حماية الشخصيات",null,"تم التسديد",null,{"$f":"COUNTIF(H76:I76,\"تم التسديد\")","v":1}]
["محمد مهدي سليم حسين",1540,1540,220,7,"حماية الشخصيات",null,null,null,0]
["سيف سعدي عبد جاسم",900,900,100,9,"مكتب الوزير التدقيق المركزي",null,null,null,0]
["سيف سعدي عبد جاسم",500,500,100,5,"مكتب الوزير التدقيق المركزي",null,null,null,0]
["حسين جبار لعيبي خلف",1000,1000,200,5,"حرس الحدود",null,null,null,0]
["حيدر محمد كاظم حسن العامري",3000,3000,300,10,"حماية المنشأت",null,null,null,0]
["عزيز عبدالحمزة عزيز محمد ",4500,4500,410,11,"فوج طوارئ بغداد",null,null,null,0]
["سعد عبدالرزاق مجيد حبيب",750,750,150,5,"حماية المنشأت",null,null,null,0]
["سعد عبدالرزاق مجيد حبيب",700,700,100,7,"حماية المنشأت",null,null,null,0]
["سعد عبدالرزاق مجيد حبيب",180,180,45,4,"حماية المنشأت",null,null,null,0]
["احمد حسين جلوب دلي اللامي",1200,1200,200,6,"الشرطة الاتحادية القيادة",null,null,null,0]
["محمد عبد الزهرة محيسن حلو ",450,350,100,6,"حماية المنشأت",null,"تم التسديد",null,1]
["علي عبد العزيز فليح حسن",1000,1000,200,5,"الشرطة الاتحادية فق 6",null,null,null,0]
["فراس علي حسين علي العبيدي",1500,1500,150,10,"قيادة شرطة صلاح الدين",null,null,null,0]
["فراس علي حسين علي العبيدي",770,770,110,7,"قيادة شرطة صلاح الدين",null,null,null,0]
["فراس علي حسين علي العبيدي",500,500,100,5,"قيادة شرطة صلاح الدين",null,null,null,0]
["فراس علي حسين علي العبيدي",770,770,110,7,"قيادة شرطة صلاح الدين",null,null,null,0]
["صالح خلف حمود جليهم ",4500,4500,450,10,"الشرطة الاتحادية مقر القيادة",null,null,null,0]
["علي شرقي جبر حسن اللامي",3000,3000,300,10,"قيادة شرطة بغداد شؤون السيطرات",null,null,null,0]
["عباس علي عويلي برهان",600,600,100,6,"الشرطة الاتحادية فق 6",null,null,null,0]
["حسام خزعل فيصل عبود",4500,4500,450,10,"فوج طوارئ بغداد",null,null,null,0]
["صدام فاضل قاسم",3150,3150,350,10,"حرس الحدود",null,null,null,0]
["علي مهدي رحيمه فهد",3500,3500,350,10,"الشرطة الاتحادية فق1",null,null,null,0]
["علي مهدي رحيمه فهد",700,700,100,7,"الشرطة الاتحادية فق1",null,null,null,0]
["سعد عزيز حمودي كاظم السعيدي",1750,1750,175,10,"شؤن السيطرات",null,null,null,0]
["سعد عزيز حمودي كاظم السعيدي",600,600,100,6,"شؤن السيطرات",null,null,null,0]
["احمد كنكر مجور ساري",3500,3500,350,10,"الشرطة الاتحادية فق 1",null,null,null,0]
["فريد مجيد احمد حسين",1750,1750,175,10,"الشرطة الاتحادية فوج المغاوير",null,null,null,0]
["حسين موسى عبد المهدي",1750,1750,175,10,"وكالة شؤون الشرطة ",null,null,null,0]
["حسين موسى عبد المهدي",1750,1750,175,10,"وكالة شؤون الشرطة ",null,null,null,0]
["حسين موسى عبد المهدي",1750,1750,175,10,"وكالة شؤون الشرطة ",null,null,null,0]
["صاحب محسن راضي كعيد",200,150,50,5,"حماية المنشأت",null,"تم التسديد",null,1]
["خالد وليد عبدالله أنور",300,300,50,6,"الشرطة الاتحادية فق 1 ف 1",null,null,null,0]
["خالد وليد عبدالله أنور",600,600,100,6,"الشرطة الاتحادية فق 1 ف 1",null,null,null,0]
["رضا فرحان جعفر ",3500,3500,350,10,"شؤن السيطرات",null,null,null,0]
["سيف سعدي عبد جاسم",600,600,100,6,"مكتب الوزير التدقيق المركزي",null,null,null,0]
["بشير عبدالله محمد خليل",10000,10000,500,20,"الشرطة الاتحادية فق 2 ل8 ف 2",null,null,null,0]
["محمد سعدي عبد الرسول نجم",600,600,100,6,"الشرطة الاتحادية فق 1 ل 8 ف 2",null,null,null,0]
["محمد سعدي عبد الرسول نجم",800,800,100,8,"الشرطة الاتحادية فق 1 ل 8 ف 2",null,null,null,0]
["حسين جبار لعيبي خلف",600,600,100,6,"حرس الحدود",null,null,null,0]
["احمد حسين جلوب دلي",600,600,100,6,"الشرطة الاتحادية القيادة",null,null,null,0]
["ناطق هاشم مهدي فهد",3000,3000,300,10,"الشرطة الاتحادية فق 1",null,null,null,0]
["فواز موفق شرقي رزوقي",180,180,45,4,"الشرطة الاتحادية اللواء الالي",null,null,null,0]
["فواز موفق شرقي رزوقي",250,250,50,5,"الشرطة الاتحادية اللواء الالي",null,null,null,0]
["صالح خلف حمود جليهم ",450,450,90,5,"الشرطة الاتحادية قسم الميرة",null,null,null,0]
["صاحب محسن راضي كعيد",332,248,84,6,"حماية المنشأت",null,"تم التسديد",null,1]
["قاسم عبد الأمير كاظم عبدالله",2700,2400,300,10,"الشرطة الاتحادية كتيبة الراجمات",null,"تم التسديد",null,1]
["محمود زرعود سلوم فرحان",3000,3000,300,10,"الشرطة الاتحادية فق 1",null,null,null,0]
["محمود زرعود سلوم فرحان",600,600,100,6,"الشرطة الاتحادية فق 1",null,null,null,0]
["حيدر كوطي ندى الدراجي",600,600,100,6,"مديرية الشرطة القضائية",null,null,null,0]
["حيدر كوطي ندى الدراجي",800,800,100,8,"مديرية الشرطة القضائية",null,null,null,0]
["حيدر كوطي ندى الدراجي",900,900,100,9,"مديرية الشرطة القضائية",null,null,null,0]
["محمد جنيد معروف مرهون حسن",3500,3500,350,10,"الشرطة الاتحادية فق 1 ف3",null,null,null,0]
["محمد نصيف كرين لفتة ",3500,3500,350,10,"الشرطة الاتحادية فق 1ل 2 ف 2",null,null,null,0]
["علي حسين محي رسن",3500,3500,350,10,"الشرطة الاتحادية فق1 ل 3 ف 3",null,null,null,0]
["مشتاق داوود سليمان مجيد",3500,3500,350,10,"حرس الحدود",null,null,null,0]
["علي شرقي جبر حسن",1750,1750,175,10,"شؤون السيطرات",null,null,null,0]
["مشتاق داوود سليمان مجيد",1750,1750,175,10,"حرس الحدود",null,null,null,0]
["اياد سامي فياض حاتم",4500,4500,450,10,"فوج طوارئ بغداد",null,null,null,0]
["محمد قاسم عبد الحسن مهدي",4500,4500,450,10,"فرقة التدخل السريع",null,null,null,0]
["احمد مانع فلاح ايلوي",2700,2700,300,9,"فرقة التدخل السريع",null,null,null,0]
["احمد مانع فلاح ايلوي",800,800,100,8,"فرقة التدخل السريع",null,null,null,0]
["احمد مانع فلاح ايلوي",700,700,100,7,"فرقة التدخل السريع",null,null,null,0]
["احمد مانع فلاح ايلوي",600,600,100,6,"فرقة التدخل السريع",null,null,null,0]
["عباس شاكر كشكول عبد ",2700,{"$f":"B140-J140*D140","v":2700},300,9,"شرطة نفط الوسط",null,null,null,{"$f":"COUNTIF(H140:I140,\"تم التسديد\")","v":0}]
["عباس شاكر كشكول عبد ",700,700,100,7,"شرطة نفط الوسط",null,null,null,0]
["عباس شاكر كشكول عبد ",800,800,100,8,"شرطة نفط الوسط",null,null,null,0]
["حسين جبار لعيبي خلف",300,300,50,6,"حرس الحدود",null,null,null,0]
["مسلم عقيل عبد دويج",900,900,100,9,"مكتب الوزير التدخل السريع",null,null,null,0]
["ضياء عبد الكاظم محمد سلمان",600,600,100,6,"شرطة اتحادية مقر فق 2",null,null,null,0]
["ضياء عبد الكاظم محمد سلمان",300,300,50,6,"شرطة اتحادية مقر فق 2",null,null,null,0]
["ضياء عبد الكاظم محمد سلمان",180,180,45,4,"شرطة اتحادية مقر فق 2",null,null,null,0]
["علاوي عبود محمد لفتة",3500,3500,350,10,"فوج طوارئ بغداد",null,null,null,0]
["كنعان نظام الدين عسكر",800,800,100,8,"مديرية التدقيق المركزي",null,null,null,0]
["ضياء عبد الكاظم محمد سلمان",600,600,100,6,"شرطة اتحادية مقر فق 2",null,null,null,0]
["ضياء عبد الكاظم محمد سلمان",150,150,50,6,"شرطة اتحادية مقر فق 2",null,null,null,0]
["علاء عامر صالح محمد",300,300,50,6,"مديرية شرطة صلاح الدين",null,null,null,0]
["احمد حسين جلوب دلي",1200,1200,200,6,"الشرطة الاتحادية القيادة",null,null,null,0]
["مرتضى عبد الزهرة عبدالله شناوة",4500,4500,450,10,"شرطة اتحادية فق1",null,null,null,0]
["مرتضى عبد الزهرة عبدالله شناوة",300,300,50,6,"شرطة اتحادية فق1",null,null,null,0]
["سعد عزيز حمودي كاظم السعيدي",800,800,100,8,"مديرية شؤون السيطرات",null,null,null,0]
["احمد سليم هاتو سلمان",3500,3500,350,10,"شرطة اتحادية البيجية",null,null,null,0]
["نصر عبد الرزاق كرم ناصح",600,600,100,6,"شرطة اتحادية فق 3",null,null,null,0]
["عماد موحي حسن ",800,800,100,8,"حماية المنشأت",null,null,null,0]
["علي نجاح عبدالله علي",2400,2400,400,6,"شرطة اتحادية فق 4",null,null,null,0]
["عقيل لازم خلف ثامر",225,175,50,6,"حماية المنشأت",null,"تم التسديد",null,1]
["فواز موفق شرقي رزوقي",600,600,100,6,"الشرطة الاتحادية اللواء الالي",null,null,null,0]
["احمد جميل طارش اللامي",600,600,100,6,"مديرية الاتصالات ",null,null,null,0]
["عدنان كاظم حمزة حبيب",1200,1200,200,6,"شرطة اتحادية فق 1 المقر",null,null,null,0]
["وسام علي إبراهيم حمود",450,350,100,6,"حماية المنشات والشخصيات",null,"تم التسديد",null,1]
["مجدي عباس فاضل عباس",1200,1200,200,6,"الشرطة الاتحادية ل 3 ف3",null,null,null,0]
["هيثم جاسم محمد حسن",3000,3000,300,10,"الشرطة الاتحادية مديرية الرواتب ",null,null,null,0]
["حيدر رزوقي فرج محمد",700,700,100,7,"شرطة اتحادية فق 2 فوج المغاوير",null,null,null,0]
["حيدر رزوقي فرج محمد",500,500,100,5,"شرطة اتحادية فق 2 فوج المغاوير",null,null,null,0]
["حيدر رزوقي فرج محمد",300,300,50,6,"شرطة اتحادية فق 2 فوج المغاوير",null,null,null,0]
["حيدر رزوقي فرج محمد",300,300,50,6,"شرطة اتحادية فق 2 فوج المغاوير",null,null,null,0]
["زهير ناصر هادي كاظم",600,600,100,6,"شرطة اتحادية فوج المغاوير",null,null,null,0]
["زهير ناصر هادي كاظم",180,180,45,4,"شرطة اتحادية فوج المغاوير",null,null,null,0]
["رامي رزاق ضيدان جاسم",750,650,100,9,"حماية المنشأت",null,"تم التسديد",null,1]
["رامي رزاق ضيدان جاسم",450,350,100,6,"حماية المنشأت",null,"تم التسديد",null,1]
["رامي رزاق ضيدان جاسم",225,175,50,6,"حماية المنشأت",null,"تم التسديد",null,1]
["رامي رزاق ضيدان جاسم",350,250,100,5,"حماية المنشأت",null,"تم التسديد",null,1]
["حيدر محمد كاظم حسن العامري",600,600,100,6,"حماية المنشأت",null,null,null,0]
["وليد خالد رشيد محمد",4500,4500,450,10,"شرطة اتحادية وحدة منتسبي الجرحى",null,null,null,0]
["حسن موسى عبد المهدي",9000,9000,900,10,"شرطة بغداد",null,null,null,0]
["طارق هاشم حميد سالم",250,250,50,5,"شرطة اتحادية مقر القيادة",null,null,null,0]
["حسين ورود خزعل الساعدي",3500,3500,350,10,"شؤن السيطرات",null,null,null,0]
["علي طه حميد عباس",1500,1500,150,10,"مدبربة شرطة بغداد",null,null,null,0]
["فراس مصطفى كامل الربيعي",4500,4500,450,10,"فوج طوارئ بغداد",null,null,null,0]
["محمد عبد القادر خماس ",600,600,100,6,"شرطة اتحادية مقر القيادة",null,null,null,0]
["علي عبود محمد علي ",4500,4500,450,10,"شرطة اتحادية مقر الفرقة الأولى",null,null,null,0]
["حسين علي عودة  راشد",4500,4500,450,10,"شؤون السيطرات",null,null,null,0]
["يوسف عبدالله حسن ناصر",300,300,50,6,"فرقة الرد السريع",null,null,null,0]
["يوسف عبدالله حسن ناصر",60,60,30,2,"فرقة الرد السريع",null,null,null,0]
["قصي صلال فالح موسى",3000,3000,300,10,"مديرية الاستخبارات",null,null,null,0]
["قصي صلال فالح موسى",450,450,90,5,"مديرية الاستخبارات",null,null,null,0]
["أسامة فرات طلب محمد",25,25,25,1,"حرس الحدود",null,null,null,0]
["عمر هيثم بهاء الدين حسين",300,200,100,4,"مقر الفرقة الأولى الشرطة الاتحادية",null,"تم التسديد",null,1]
["احمد عبد الزهرة احسان لازم",800,800,100,8,"شؤون السيطرات",null,null,null,0]
["احمد عبد الزهرة احسان لازم",450,450,90,5,"شؤون السيطرات",null,null,null,0]
["سارة علي ذياب صالح",650,550,100,8,"حماية المنشأت",null,"تم التسديد",null,1]
["رامي رزاق ضيدان جاسم",125,75,50,4,"حماية المنشأت",null,"تم التسديد",null,1]
["رامي رزاق ضيدان جاسم",650,550,100,8,"حماية المنشأت",null,"تم التسديد",null,1]
["حسام حسين شوحي مطشر",500,500,100,5,"ف1 ل2 فق2 ش.أ",null,null,null,0]
["حسام حسين شوحي مطشر",500,500,100,5,"ف1 ل2 فق2 ش.أ",null,null,null,0]
["علاء ستار شاوي حمود",125,25,50,5,"شرطة النجدة",null,"تم التسديد","تم التسديد",2]
["عقيل ستار شاوي حمود الساعدي",100,0,50,5,"شرطة النجدة",null,"تم التسديد","تم التسديد",2]
["اوس خالد صالح سعيد",800,800,100,8,"الشرطة الاتحادية مديرية التدريب",null,null,null,0]
["اوس خالد صالح سعيد",180,{"$f":"B204-J204*D204","v":180},45,4,"الشرطة الاتحادية مديرية التدريب",null,null,null,{"$f":"COUNTIF(H204:I204,\"تم التسديد\")","v":0}]
["علي مهدي حسين لفتة",500,500,100,5,"قوات رد السريع",null,null,null,0]
["صفاء حسين علوان حمود",800,800,100,8,"العاب الشرطة ",null,null,null,0]
["يعقوب جاسم هاشم حسن",1300,1100,200,8,"حماية المنشأت",null,"تم التسديد",null,1]
["ميثم امجد حسين نعمة",1600,1600,200,8,"شرطة بغداد",null,null,null,0]
["اياد كايت رحمن عبد",800,800,100,8,"الشرطة الاتحادية فق1",null,null,null,0]
["اياد كايت رحمن عبد",250,250,50,5,"الشرطة الاتحادية فق1",null,null,null,0]
["فريد مجيد احمد حسين",700,700,100,7,"الشرطة الاتحادية فوج المغاوير",null,null,null,0]
["فريد مجيد احمد حسين",500,500,100,5,"الشرطة الاتحادية فوج المغاوير",null,null,null,0]
["فريد مجيد احمد حسين",125,125,25,5,"الشرطة الاتحادية فوج المغاوير",null,null,null,0]
["رامي رزاق ضيدان جاسم",650,550,100,8,"حماية المنشأت",null,"تم التسديد",null,1]
["امير عبد المهدي عبيد محمد",700,700,100,8,"الرد السريع",null,null,null,0]
["عدي مهدي إبراهيم محمود",2400,2400,300,8,"حماية المنشأت",null,null,null,0]
["عباس حميد عباس حميد",4500,4500,450,10,"قيادة الشرطة الاتحادية فق 1",null,null,null,0]
["كنعان نظام الدين عسكر",800,800,100,8,"مديرية التدقيق المركزي",null,null,null,0]
["علي طالب هاشم عكروك",500,500,100,5,"الشرطة الاتحادية فوج المغاوير",null,null,null,0]
["حسام مشرف جميل حمادي",2400,2400,300,8,"فوج طوارئ بغداد",null,null,null,0]
["حيدر احمد هادي سلوم",800,800,100,8,"الرد السريع",null,null,null,0]
["لؤي عباس حميد طاهر",1200,1200,200,6,"الشرطة الاتحادية فق 3 ل 1 الالي",null,null,null,0]
["لؤي عباس حميد طاهر",900,900,180,5,"الشرطة الاتحادية فق 3 ل 1 الالي",null,null,null,0]
["لؤي عباس حميد طاهر",500,500,100,5,"الشرطة الاتحادية فق 3 ل 1 الالي",null,null,null,0]
["مخلد منذر شعلان جسام",4500,4500,450,10,"معمل ميدان فق 4 الشرطة الاتحادية",null,null,null,0]
["محمد احمد مجيد زامل ",1600,1600,200,8,"الشرطة الاتحادية الفوج الالي",null,null,null,0]
["مهند محمد عباس علي",2100,2100,300,8,"حماية المنشأت",null,null,null,0]
["طارق هاشم حميد سالم",600,600,100,6,"مقر قيادة الشرطة الاتحادية",null,null,null,0]
["قحطان حكمان ناصر محمد",650,550,100,8,"حماية المنشأت",null,"تم التسديد",null,1]
["شندل كاظم عبيد حمزة",1200,1200,200,6,"وحدة متابعة الجرحى",null,null,null,0]
["شندل كاظم عبيد حمزة",500,500,100,5,"وحدة متابعة الجرحى",null,null,null,0]
["شندل كاظم عبيد حمزة",250,250,50,5,"وحدة متابعة الجرحى",null,null,null,0]
["علي حسن عبود جارالله الخفاجي",800,800,100,8,"فوج طوارئ بغداد",null,null,null,0]
["قتيبة مسلم علي سعودي",1600,1600,200,8,"الشرطة الاتحادية فق 1 ل 3",null,null,null,0]
["قتيبة مسلم علي سعودي",700,700,100,7,"الشرطة الاتحادية فق 1 ل 3",null,null,null,0]
["مهند خالد فاضل ذنون",800,800,100,8,"الشرطة الاتحادية الفرقة الالية ف 3 ل3",null,null,null,0]
["مهند خالد فاضل ذنون",250,250,50,5,"الشرطة الاتحادية الفرقة الالية ف 3 ل3",null,null,null,0]
["محمد ثامر عبد الصاحب علوان",500,500,100,6,"فوج طوارئ بغداد",null,null,null,0]
["محمد ثامر عبد الصاحب علوان",200,200,50,5,"فوج طوارئ بغداد",null,null,null,0]
["مصطفى مراد كلمامي مراد",1600,1600,200,8,"الشرطة الاتحادية فوج المغاوير",null,null,null,0]
["نور مهدي خلف اللامي",800,800,100,8,"مديرية شرطة بغداد",null,null,null,0]
["نور مهدي خلف اللامي",400,400,100,4,"مديرية شرطة بغداد",null,null,null,0]
["نور مهدي خلف اللامي",25,25,25,1,"مديرية شرطة بغداد",null,null,null,0]
["ضياء عبد الكاظم محمد سلمان",250,250,50,5,"الشرطة الاتحادية مقر فق 2",null,null,null,0]
["ضيف جعفر هادي عباس التميمي",125,125,25,5,"الشرطة الاتحادية فق1 ل1 ",null,null,null,0]
["كرار سالم خشان فرج البديري",800,800,100,8,"الشرطة الاتحادية ف1 ل 1",null,null,null,0]
["محمد احمد مجيد زامل ",1600,1600,200,8,"الشرطة الاتحادية الفوج الالي",null,null,null,0]
["جاسم محمد عباس حليبي",250,250,50,5,"فرقة الرد السريع",null,null,null,0]
["جاسم محمد عباس حليبي",1600,1600,200,8,"فرقة الرد السريع",null,null,null,0]
["مجدي عباس فاضل عباس",1600,1600,200,8,"الشرطة الاتحادية ل 3 ف3",null,null,null,0]
["ذوالفقار علي محسن عريبي",3500,3500,350,10,"الشرطة الاتحادية فق 5 ل 2",null,null,null,0]
["هادي صالح عبد المهدي شرار",1600,1600,200,8,"فرقة الرد السريع",null,null,null,0]
["فارس سلمان خليل نايف",3500,3500,350,10,"الشرطة الاتحادية فق 1",null,null,null,0]
["فارس سلمان خليل نايف",1600,1600,200,8,"الشرطة الاتحادية فق 1",null,null,null,0]
["لطيف فاضل محمد الذهيباوي ",2100,2100,300,7,"الشرطة الاتحادية فق 1",null,null,null,0]
["مهند محمد عداي جعاتي",500,500,50,5,"قوات حرس الحدود",null,null,null,0]
["مهند محمد عداي جعاتي",800,800,100,8,"قوات حرس الحدود",null,null,null,0]
["حيدر رعد هاشم حسن السراي",1250,1250,125,10,"فوج طوارئ بغداد",null,null,null,0]
["محمد ثامر عبد الصاحب علوان",2750,2750,250,12,"مديرية شرطة بغداد",null,null,null,0]
["حيدر رعد هاشم حسن السراي",135,135,135,1,"مديرية شرطة بغداد",null,null,null,0]
["احمد حسين علوان حسن ",800,800,100,8,"مديرية الصيانة والخدمات",null,null,null,0]
["سعد جمعة شاكر محمود الزوبعي",600,600,100,6,"الشرطة الاتحادية فوج المشات الالي",null,null,null,0]
["سعد جمعة شاكر محمود الزوبعي",180,180,45,4,"الشرطة الاتحادية فوج المشات الالي",null,null,null,0]
["سعد جمعة شاكر محمود الزوبعي",25,25,25,1,"الشرطة الاتحادية فوج المشات الالي",null,null,null,0]
["بلال رزاق سلمان عيسى",1200,1200,200,6,"الشرطة الاتحادية فق 1",null,null,null,0]
["بلال رزاق سلمان عيسى",1600,1600,200,8,"الشرطة الاتحادية فق 1",null,null,null,0]
["بلال رزاق سلمان عيسى",180,180,45,4,"الشرطة الاتحادية فق 1",null,null,null,0]
["الأمير سالم جبار عبود ",700,{"$f":"B268-J268*D268","v":600},100,8,"قيادة قوات الشرطة الاتحادية",null,"تم التسديد",null,{"$f":"COUNTIF(H268:I268,\"تم التسديد\")","v":1}]
["احمد سليم هاتو سلمان",700,700,100,7,"شرطة اتحادية البيجية",null,null,null,0]
["احمد بزون مجلي عادل",1600,1600,200,8,"فرقة الرد السريع",null,null,null,0]
["حيدر محي داخل حسن ",1600,1600,200,8,"الشرطة الاتحادية فق2 ف 3 ",null,null,null,0]
["حسن عبد السادة طعمة حياوي",650,550,100,8,"مديرية السفارات",null,"تم التسديد",null,1]
["بلال خالد ناجي مجيد البياتي",1600,1600,200,8,"مديرية امن الافراد",null,null,null,0]
["بلال خالد ناجي مجيد البياتي",1500,1500,150,10,"مديرية امن الافراد",null,null,null,0]
["حيدر رزوقي فرج محمد",1750,1750,175,10,"الشرطة الاتحادية فق 2 فوج المغاوير",null,null,null,0]
["شندل كاظم عبيد حمزة",500,500,100,5,"وحدة متابعة الجرحى",null,null,null,0]
["احمد جميل طارش اللامي",3500,3500,350,10,"مديرية الاتصالات ",null,null,null,0]
["عبد الرحمن كاظم علي حسين",3500,3500,350,10,"كلية الشرطة",null,null,null,0]
["بشير سلمان شكاصي",800,800,100,8,"حماية المنشأت",null,null,null,0]
["مصطفى وليد كامل عبد الرزاق",2975,2625,350,10,"حماية المنشأت",null,"تم التسديد",null,1]
["ميثم امجد حسين نعمة",1750,1750,175,10,"قيادة شرطة بغداد",null,null,null,0]
["مخلص عباس كريم غالي العقابي",1350,1350,150,10,"مديرية امن الافراد",null,null,null,0]
["قتيبة مسلم علي سعودي",1750,1750,175,10,"الشرطة الاتحادية فق 1 ل 3",null,null,null,0]
["عباس عليوي بندر ناصر ",700,700,100,8,"وكالة شؤون الشرطة ",null,null,null,0]
["فيصل امير غازي فاضل",1600,1600,200,8,"قيادة شرطة بغداد",null,null,null,0]
["حمزة عبد دخان مجدوم",75,75,25,3,"الشرطة الاتحادية قسم الاعلام",null,null,null,0]
["حيدر خضر عبد الجليل عبد الرضا",800,800,100,8,"ش.أ ف1 ل1 فق1",null,null,null,0]
["جواد كاظم خيون حمود",800,800,100,8,"فوج طوارئ بغداد",null,null,null,0]
["محمد عبد المحسن مسلم ",1400,1400,200,8,"فوج طوارئ بغداد",null,null,null,0]
["مهند خالد فاضل ذنون",700,700,100,7,"الشرطة الاتحادية الفرقة الالية ف 3 ل3",null,null,null,0]
["مهند خالد فاضل ذنون",250,250,50,5,"الشرطة الاتحادية الفرقة الالية ف 3 ل3",null,null,null,0]
["حيدر خضير عباس حمودي",1600,1600,200,8,"شؤون السيطرات",null,null,null,0]
["علاء الدين شاكر حمود العبودي",800,800,100,8,"الشرطة الاتحادية فق 2 ل6 ف 1",null,null,null,0]
["علاء الدين شاكر حمود العبودي",180,180,45,4,"الشرطة الاتحادية فق 2 ل6 ف 1",null,null,null,0]
["علاء الدين شاكر حمود العبودي",25,25,25,1,"الشرطة الاتحادية فق 2 ل6 ف 1",null,null,null,0]
["علاء الدين شاكر حمود العبودي",125,125,25,5,"الشرطة الاتحادية فق 2 ل6 ف 1",null,null,null,0]
["نصير صادق جعفر عوده علي",90,90,90,1,"الشرطة الاتحادية فق 6",null,null,null,0]
["بلال خالد ناجي مجيد البياتي",45,45,45,1,"مديرية امن الافراد",null,null,null,0]
["اوس خالد صالح سعيد",45,45,45,1,"الشرطة الاتحادية مديرية التدريب",null,null,null,0]
["حيدر رعد هاشم حسن السراي",180,180,180,1,"فوج طوارئ بغداد",null,null,null,0]
["زينب علي حسوني حديد",500,500,100,5,"مديرية الجنسية العامة",null,null,null,0]
["زينب علي حسوني حديد",125,125,25,5,"مديرية الجنسية العامة",null,null,null,0]
["زينب علي حسوني حديد",250,250,50,5,"مديرية الجنسية العامة",null,null,null,0]
["زينب علي حسوني حديد",250,250,50,5,"مديرية الجنسية العامة",null,null,null,0]
["زينب علي حسوني حديد",250,250,50,5,"مديرية الجنسية العامة",null,null,null,0]
["حيدر احمد هادي سلوم",1600,1600,200,8,"قوات التدخل السريع",null,null,null,0]
["قصي صلال فالح موسى",700,700,100,7,"مديرية الاستخبارات",null,null,null,0]
["حسن راضي حسين علي ",2400,2400,300,8,"حماية المنشأت",null,null,null,0]
["مشتاق طالب كاظم كسار",3000,3000,300,10,"حماية المنشأت",null,null,null,0]
["مشتاق طالب كاظم كسار",800,800,100,8,"حماية المنشأت",null,null,null,0]
["علي سعد نعيم بلعوط ",800,800,100,8,"قوات حرس الحدود",null,null,null,0]
["قحطان حكمان ناصر محمد",650,550,100,8,"حماية المنشأت",null,"تم التسديد",null,1]
["عماد موحي حسن هوزي",1750,1750,175,10,"حماية السفارات",null,null,null,0]
["حسام عبد الأمير صبري معين",500,300,100,8,"شرطة النجدة",null,"تم التسديد","تم التسديد",2]
["حسام عبد الأمير صبري معين",400,200,100,7,"شرطة النجدة",null,"تم التسديد","تم التسديد",2]
["حسام عبد الأمير صبري معين",300,100,100,6,"شرطة النجدة",null,"تم التسديد","تم التسديد",2]
["حسام عبد الأمير صبري معين",45,-45,45,4,"شرطة النجدة",null,"تم التسديد","تم التسديد",2]
["حيدر هادي سلمان عبد الرزاق",800,800,100,8,"مديرية شرطة ديالى",null,null,null,0]
["كنعان نظام الدين عسكر",225,225,225,1,"مديرية التدقيق المركزي",null,null,null,0]
["كرار سالم خشان فرج البديري",600,600,100,6,"الشرطة الاتحادية ف1 ل 1",null,null,null,0]
["كرار سالم خشان فرج البديري",1750,1750,175,10,"الشرطة الاتحادية ف1 ل 1",null,null,null,0]
["نور مهدي خلف اللامي",800,800,100,8,"مديرية شرطة بغداد",null,null,null,0]
["ابتسام عبد الزهرة حمود زبون ",600,600,100,6,"مركز تدريب النجف",null,null,null,0]
["ابتسام عبد الزهرة حمود زبون ",1750,1750,175,10,"مركز تدريب النجف",null,null,null,0]
["ابتسام عبد الزهرة حمود زبون ",800,800,100,8,"مركز تدريب النجف",null,null,null,0]
["امير رسول كاظم سعيد ",800,800,100,8,"قوات حرس الحدود",null,null,null,0]
["امير رسول كاظم سعيد ",45,45,45,1,"قوات حرس الحدود",null,null,null,0]
["فاضل عبد السادة راشد عليوي",500,500,100,5,"الشرطة الاتحادية فق 1 ل2 ف 2",null,null,null,0]
["حسين هاشم عبد علي القريشي",270,270,270,1,"قوات حرس الحدود",null,null,null,0]
["علي طه حميد عباس",180,180,180,1,"مديرية شرطة بغداد",null,null,null,0]
["ضياء لطيف حسن جابر",45,45,45,1,"قيادة قوات الشرطة الاتحادية",null,null,null,0]
["وسام فالح حسن خلف الساعدي",1575,{"$f":"B332-J332*D332","v":1575},175,10,"مديرية المرور العامة",null,null,null,{"$f":"COUNTIF(H332:I332,\"تم التسديد\")","v":0}]
["عباس علي جولي رهيف",450,450,450,1,"الشرطة الاتحادية فق 4",null,null,null,0]
["مخلص عباس كريم غالي العقابي",250,250,50,5,"مديرية امن الافراد",null,null,null,0]
["علي جواد كاظم مناتي",25,25,25,1,"الشرطة الاتحادية اللواء الرابع الالي",null,null,null,0]
["مخلص زبون جابر علي",1487,1312,175,10,"حماية المنشأت",null,"تم التسديد",null,1]
["حسين حسن صالح خلف",180,180,45,4,"مديرية التدقيق المركزي",null,null,null,0]
["فاضل كريم إبراهيم فاضل",250,250,50,5,"الشرطة الاتحادية فق 1 ل 2 ف 1",null,null,null,0]
["فاضل كريم إبراهيم فاضل",250,250,50,5,"الشرطة الاتحادية فق 1 ل 2 ف 1",null,null,null,0]
["محمد حيدر مغنم غليم ",250,250,50,5,"مديرية امن الافراد",null,null,null,0]
["محمد حيدر مغنم غليم ",600,600,100,6,"مديرية امن الافراد",null,null,null,0]
["فاضل كريم إبراهيم فاضل",180,180,45,4,"الشرطة الاتحادية فق 1 ل 2 ف 1",null,null,null,0]
["احمد هاشم كريم مطر",1750,1750,175,10,"قيادة الشرطة الاتحادية / قسم الاعلام",null,null,null,0]
["احمد هاشم كريم مطر",700,700,100,7,"قيادة الشرطة الاتحادية / قسم الاعلام",null,null,null,0]
["احمد هاشم كريم مطر",25,25,25,1,"قيادة الشرطة الاتحادية / قسم الاعلام",null,null,null,0]
["حيدر محي داخل حسن ",75,75,25,3,"الشرطة الاتحادية فق2 ف 3 ",null,null,null,0]
["علي رشيد حسين محمود ",3500,3500,350,10,"الشرطة الاتحادية فق 2",null,null,null,0]
["احمد عدوان مهوس غيلان",250,250,50,5,"قوات حرس الحدود",null,null,null,0]
["حسام حسين شوحي مطشر",500,500,100,5,"ف1 ل2 فق2 ش.أ",null,null,null,0]
["محمود زرعود سلوم فرحان",250,250,50,5,"الشرطة الاتحادية فق 1 ل 1 ف1",null,null,null,0]
["حسين فليح عبد عبد الحسين",600,600,100,6,"الشرطة الاتحادية",null,null,null,0]
["حسين فليح عبد عبد الحسين",3250,3250,325,10,"الشرطة الاتحادية",null,null,null,0]
["حسين فليح عبد عبد الحسين",300,300,50,6,"الشرطة الاتحادية",null,null,null,0]
["جاسم محمد محسن ماشاف",1000,1000,200,5,"الشرطة الاتحادية فق 1 المقر",null,null,null,0]
["زياد فخري محسن علي",500,500,100,5,"الشرطة الاتحادية فوج المغاوير",null,null,null,0]
["حيدر عبد الوهاب رزوقي جواد",1500,1500,150,10,"الشرطة الاتحادية ف1 ل 12",null,null,null,0]
["سجاد جميل حسان عبد الوهاب ",3500,3500,350,10,"الشرطة الاتحادية ف2 ل2",null,null,null,0]
["علي كريم عباس حافظ ",125,125,25,5,"الشرطة الاتحادية فق 6",null,null,null,0]
["هيثم صبري محمد معين ",1200,1200,200,6,"الادعام العام",null,null,null,0]
["علي خماس عاتي مشجل ",1500,1500,150,10,"شرطة بغداد",null,null,null,0]
["علي خماس عاتي مشجل ",600,600,100,6,"شرطة بغداد",null,null,null,0]
["علي خماس عاتي مشجل ",45,45,45,1,"شرطة بغداد",null,null,null,0]
["مخلص زبون جابر علي",450,350,100,6,"حماية المنشأت",null,"تم التسديد",null,1]
["ستار جبار جرخت اللامي",180,180,180,1,"الشرطة الاتحادية فق 2 ل6",null,null,null,0]
["عقيل محسن ماجد عطية ",250,250,50,5,"مكتب الوزير ",null,null,null,0]
["سعد عدنان عبد جاسم الجبوري",1500,1500,150,10,"الشرطة الاتحادية فق 6 ف3 ",null,null,null,0]
["سعد عدنان عبد جاسم الجبوري",600,600,100,6,"الشرطة الاتحادية فق 6 ف3 ",null,null,null,0]
["مشرق عباس عجلان خليفة",250,250,50,5,"الشرطة الاتحادية مديرية الاتصالات",null,null,null,0]
["احمد محمد جاسم كاطع البهادلي",250,250,50,5,"امن وسلامة الوزارة",null,null,null,0]
["مصطفى وليد إبراهيم اسود",700,500,200,5,"حماية المنشأت",null,"تم التسديد",null,1]
["عماد فائق إبراهيم عبد الفهداوي",3000,3000,300,10,"شرطة الانبار",null,null,null,0]
["عماد فائق إبراهيم عبد الفهداوي",500,500,100,5,"شرطة الانبار",null,null,null,0]
["عماد ناجي موسى حماد الدليمي",3000,3000,300,10,"شرطة الانبار",null,null,null,0]
["عماد ناجي موسى حماد الدليمي",500,500,100,5,"شرطة الانبار",null,null,null,0]
["عماد ناجي موسى حماد الدليمي",45,45,45,1,"شرطة الانبار",null,null,null,0]
["معن سامي طلال حمادي",3000,3000,300,10,"شرطة الانبار",null,null,null,0]
["معن سامي طلال حمادي",500,500,100,5,"شرطة الانبار",null,null,null,0]
["يعقوب جاسم هاشم حسن",1275,1125,150,10,"حماية المنشأت",null,"تم التسديد",null,1]
["انمار فرحان عواد خلف الدليمي",1500,1500,150,10,"الرد السريع",null,null,null,0]
["حيدر عذاب خماس داوود",300,100,100,6,"مديرية نجدة بغداد",null,"تم التسديد","تم التسديد",2]
["حيدر عذاب خماس داوود",200,0,100,5,"مديرية نجدة بغداد",null,"تم التسديد","تم التسديد",2]
["احمد طالب عباس علي العبيدي",125,125,25,5,"الشرطة الاتحادية ف 1 ل",null,null,null,0]
["احمد طالب عباس علي العبيدي",180,180,45,4,"الشرطة الاتحادية ف 1 ل",null,null,null,0]
["احمد طالب عباس علي العبيدي",25,25,25,1,"الشرطة الاتحادية ف 1 ل",null,null,null,0]
["حسين علي نعمة شبار العبودي",600,600,100,6,"التدريب البدني",null,null,null,0]
["علي كاظم حميد حسين ",300,300,50,6,"الشرطة الاتحادية مقر قيادة امرية التموين ",null,null,null,0]
["نبيل صبحي كاظم خميس",600,600,100,6,"محكمة تميز قوى الامن",null,null,null,0]
["صفاء عبد الرزاق محسن عبود",600,600,100,6,"الشرطة الاتحادية",null,null,null,0]
["صفاء عبد الرزاق محسن عبود",250,250,50,5,"الشرطة الاتحادية",null,null,null,0]
["صفاء عبد الرزاق محسن عبود",90,90,90,1,"الشرطة الاتحادية",null,null,null,0]
["سمير مهدي مهلهل جوهر",75,75,25,3,"الشرطة الاتحادية",null,null,null,0]
["احمد جاسم طالب مهدي العامري",1500,1500,150,10,"مديرية شؤون السيطرات",null,null,null,0]
["احمد جاسم طالب مهدي العامري",180,180,45,4,"مديرية شؤون السيطرات",null,null,null,0]
["احمد عادل صباح ناجي الجبوري",1500,1500,150,10,"الشرطة الاتحادية فق2",null,null,null,0]
["ستار جبار جرخت اللامي",700,700,100,7,"الشرطة الاتحادية فق 2 ل 6",null,null,null,0]
["علي خماس عاتي مشجل ",1500,{"$f":"B396-J396*D396","v":1500},150,10,"شرطة بغداد",null,null,null,{"$f":"COUNTIF(H396:I396,\"تم التسديد\")","v":0}]
["حيدر فاضل عباس لعيبي",450,450,450,1,"شرطة بغداد",null,null,null,0]
["حيدر فاضل عباس لعيبي",650,650,100,7,"شرطة بغداد",null,null,null,0]
["مروان هشام عبد العباس ونان",500,500,100,5,"الشرطة الاتحاديةفق3",null,null,null,0]
["مروان هشام عبد العباس ونان",1300,1300,200,7,"الشرطة الاتحاديةفق3",null,null,null,0]
["زينب علي حسوني حديد",650,650,100,7,"مديرية الجنسية العامة",null,null,null,0]
["حيدر خضر عبد الجليل عبد الرضا",1500,1500,150,10,"ش.أ ف1 ل1 فق1",null,null,null,0]
["حيدر خضر عبد الجليل عبد الرضا",700,700,100,7,"ش.أ ف1 ل1 فق1",null,null,null,0]
["علي مهدي حسين لفتة",180,180,45,4,"الشرطة الاتحادية فق3",null,null,null,0]
["علي مهدي حسين لفتة",45,45,45,1,"الشرطة الاتحادية فق3",null,null,null,0]
["أناس عبدالله حسن سلطان",3000,3000,300,10,"مديرية الصيانة والخدمات",null,null,null,0]
["أناس عبدالله حسن سلطان",650,650,100,7,"مديرية الصيانة والخدمات",null,null,null,0]
["كرار حسن عبد مسلم الربيعي",650,650,100,7,"عمليات الوزارة",null,null,null,0]
["كرار حسن عبد مسلم الربيعي",2500,2500,250,10,"عمليات الوزارة",null,null,null,0]
["محمد عبد الحسين عيدان حزيم",1000,1000,200,5,"الشرطة الاتحادية سرية حماية القائد",null,null,null,0]
["نصر عبد الرزاق كرم ناصح",25,25,25,1,"الشرطة الاتحادية فق 3",null,null,null,0]
["نصر عبد الرزاق كرم ناصح",45,45,45,1,"الشرطة الاتحادية فق 3",null,null,null,0]
["احمد صابر رسن اكطم ",2100,1500,300,10,"مديرية نجدة بغداد",null,"تم التسديد","تم التسديد",2]
["احمد صابر رسن اكطم ",50,-50,50,4,"مديرية نجدة بغداد",null,"تم التسديد","تم التسديد",2]
["محمد كامل كاطع بندر",250,250,50,5,"مديرية التدريب والتأهيل",null,null,null,0]
["محمد كامل كاطع بندر",650,650,100,6,"مديرية التدريب والتأهيل",null,null,null,0]
["مهند جاسم محمد عبد الرضا",3500,3500,350,10,"الشرطة الاتحادية فق 5",null,null,null,0]
["علي عبد الكريم كاظم رهيف",1950,1950,300,6,"مديرية شرطة بغداد",null,null,null,0]
["حيدر رحيم علي ضويع",500,500,100,5,"الشرطة الاتحادية",null,null,null,0]
["حيدر رحيم علي ضويع",500,500,100,5,"الشرطة الاتحادية",null,null,null,0]
["اكرم عباس حسن صحن",45,45,45,1,"مديرية العاب نادي الشرطة",null,null,null,0]
["نهلة عطية عبد الزهرة عباس",2500,2500,250,10,"شؤون السيطرات",null,null,null,0]
["نهلة عطية عبد الزهرة عباس",250,250,50,5,"شؤون السيطرات",null,null,null,0]
["نهلة عطية عبد الزهرة عباس",180,180,45,4,"شؤون السيطرات",null,null,null,0]
["واثق محمد عبد الرزاق حرجان",500,400,100,7,"حماية المنشأت",null,"تم التسديد",null,1]
["واثق محمد عبد الرزاق حرجان",350,250,100,5,"حماية المنشأت",null,"تم التسديد",null,1]
["مهدي صاحب حمدان هاشم",600,600,100,6,"كلية الشرطة",null,null,null,0]
["محمد عدنان كلو صخي اللامي",250,250,50,5,"الشرطة الاتحادية مقر ف1",null,null,null,0]
["امجد خليف حسن شلال",250,250,50,5,"الشرطة الاتحادية ل6 ف1",null,null,null,0]
["احمد ثامر عبد الصاحب علوان",500,500,100,6,"مديرية شرطة بغداد",null,null,null,0]
["باسم خليل ورود ارحيم",400,200,100,7,"مديرية النجدة العامة",null,"تم التسديد","تم التسديد",2]
["باسم خليل ورود ارحيم",350,150,100,6,"مديرية النجدة العامة",null,"تم التسديد","تم التسديد",2]
["باسم خليل ورود ارحيم",200,0,100,5,"مديرية النجدة العامة",null,"تم التسديد","تم التسديد",2]
["يوسف عبدالله حسن ناصر",450,0,450,1,"فرقة التدخل السريع",null,null,"تم التسديد",1]
["جاسم محمد رضا حسن العبيدي",650,650,100,7,"مديرية شرطة بغداد",null,null,null,0]
["جاسم محمد رضا حسن العبيدي",45,45,45,1,"مديرية شرطة بغداد",null,null,null,0]
["جبار حسين لعيبي علي ",1500,1500,150,10,"كلية الشرطة",null,null,null,0]
["حسين ورود خزعل الساعدي",90,90,90,1,"مديرية شؤون السيطرات",null,null,null,0]
["حسين عبد عبيجي حسن",900,900,100,9,"محكمة تميز قوى الامن",null,null,null,0]
["مخلص عباس كريم غالي العقابي",550,550,100,7,"مديرية امن الافراد",null,null,null,0]
["حيدر علي جمعة عبود",800,700,100,9,"مديرية التدريب والتأهيل",null,"تم التسديد",null,1]
["سجاد عبد العزيز حسن امام علي",900,900,100,9,"الشرطة الاتحادية فوج المغاوير",null,null,null,0]
["مهدي صاحب حمدان هاشم",1800,1800,200,9,"كلية الشرطة",null,null,null,0]
["احمد عادل صباح ناجي الجبوري",1500,1500,150,10,"الشرطة الاتحادية فق 2 ل 6",null,null,null,0]
["احمد عادل صباح ناجي الجبوري",900,900,100,9,"الشرطة الاتحادية فق 2 ل 6",null,null,null,0]
["محمد يوسف عبد الحسين كحيوش",3000,3000,300,10,"الشرطة الاتحادية مقر اللواء الالي",null,null,null,0]
["محمد يوسف عبد الحسين كحيوش",900,900,100,9,"الشرطة الاتحادية مقر اللواء الالي",null,null,null,0]
["صفاء خماس عاتي مشجل",3000,3000,300,10,"قيادة شرطة بغداد",null,null,null,0]
["علي طه حميد عباس",1500,1500,150,10,"مديرية شرطة بغداد",null,null,null,0]
["فؤاد سالم جارالله حمد",250,250,50,5,"مكتب الوزير",null,null,null,0]
["محمد باقر محمود كاطع",900,900,100,9,"الشرطة الاتحادية ف3 ل3",null,null,null,0]
["محمد باقر محمود كاطع",600,600,100,6,"الشرطة الاتحادية ف3 ل3",null,null,null,0]
["محمد مرتضى سلمان مهدي",500,500,100,5,"الشرطة الاتحادية امرية التموين والنقل",null,null,null,0]
["حيدر محسن خليفة إبراهيم",600,600,100,6,"كلية الشرطة",null,null,null,0]
["سليم مهوس ناهيي بشير",1800,1800,200,9,"قيادة شرطة بغداد",null,null,null,0]
["مصطفى مراد كلمامي مراد",900,900,100,9,"الشرطة الاتحادية لواء المغاوير ف 3",null,null,null,0]
["مصطفى مراد كلمامي مراد",25,25,25,1,"الشرطة الاتحادية لواء المغاوير ف 3",null,null,null,0]
["محمد حيدر مغنم غليم ",250,250,50,5,"مديرية امن الافراد",null,null,null,0]
["محمد حيدر مغنم غليم ",75,75,25,3,"مديرية امن الافراد",null,null,null,0]
["علي عبد الكريم كاظم رهيف",600,{"$f":"B460-J460*D460","v":600},100,6,"مديرية شرطة بغداد",null,null,null,{"$f":"COUNTIF(H460:I460,\"تم التسديد\")","v":0}]
["بلال صالح هادي حسن",500,500,72,7,"فرقة الرد السريع",null,null,null,0]
["عناد كحواش معارج ذفال",4500,4500,450,10,"قوات الرد السريع",null,null,null,0]
["عناد كحواش معارج ذفال",250,250,50,5,"قوات الرد السريع",null,null,null,0]
["ياسر صلاح طاهر محمد علي",250,250,50,5,"الشرطة الاتحادية",null,null,null,0]
["علاء إسماعيل عذير لفتة",200,0,100,5,"مديرية شرطة النجدة",null,"تم التسديد","تم التسديد",2]
["حسين محمد ناو خاص",2550,2250,300,10,"حماية المنشأت",null,"تم التسديد",null,1]
["عقيل محسن ماجد عطية ",45,45,45,1,"مكتب الوزير",null,null,null,0]
["علي صالح حسن اعليب ",900,900,100,9,"الشرطة الاتحادية فق1 ل2 ف2",null,null,null,0]
["علي صالح حسن اعليب ",90,90,90,1,"الشرطة الاتحادية فق1 ل2 ف2",null,null,null,0]
["علي صالح حسن اعليب ",75,75,25,3,"الشرطة الاتحادية فق1 ل2 ف2",null,null,null,0]
["اياد سلمان شطب محمد",300,300,50,6,"قوات الرد السريع",null,null,null,0]
["ندى حسين خريبط جبر",600,600,100,6,"الشرطة الاتحادية مقر القيادة",null,null,null,0]
["ندى حسين خريبط جبر",1350,1200,150,10,"الشرطة الاتحادية مقر القيادة",null,"تم التسديد",null,1]
["ندى حسين خريبط جبر",100,75,25,5,"الشرطة الاتحادية مقر القيادة",null,"تم التسديد",null,1]
["هيثم عيدان عبد كايم ",75,75,25,3,"قوات الرد السريع",null,null,null,0]
["مهدي سيد فتيان كريخي اللامي",2700,2700,300,9,"الشرطة الاتحادية فق1",null,null,null,0]
["قحطان حكمان ناصر محمد",750,650,100,9,"حماية المنشأت",null,"تم التسديد",null,1]
["منتظر عيسى سالم سعيد",3000,3000,300,10,"مديرية شرطة بغداد",null,null,null,0]
["فاضل سلمان خليفة كاطع",3000,3000,300,10,"قوات حرس الحدود",null,null,null,0]
["ستار جبار جرخت اللامي",700,700,100,7,"الشرطة الاتحادية فق1 ل2",null,null,null,0]
["ستار جبار جرخت اللامي",900,900,100,9,"الشرطة الاتحادية فق1 ل2",null,null,null,0]
["حسن علي شكور محمود ",2100,1500,300,10,"مديرية نجدة بغداد",null,"تم التسديد","تم التسديد",2]
["حسن علي شكور محمود ",400,0,200,5,"مديرية نجدة بغداد",null,"تم التسديد","تم التسديد",2]
["نجم عبد عودة عبدالله ",3000,3000,300,10,"الشرطة الاتحادية",null,null,null,0]
["صباح سعدون عبد زيد",1800,1800,200,9,"ش.ا فق1 ل2 ف1",null,null,null,0]
["صباح سعدون عبد زيد",600,600,100,6,"ش.ا فق1 ل2 ف1",null,null,null,0]
["حيدر رعد هاشم حسن السراي",90,90,90,1,"مديرية شرطة بغداد",null,null,null,0]
["حيدر رعد هاشم حسن السراي",75,75,25,3,"مديرية شرطة بغداد",null,null,null,0]
["طه حسين محمد حسين الجبوري",500,500,100,5,"قوات الرد السريع",null,null,null,0]
["حسين هاشم عبد علي القريشي",1800,1800,200,9,"قوات حرس الحدود",null,null,null,0]
["وسام كاظم علي خنيفس",600,600,100,6,"الشرطة الاتحاديةفق1 ل2 ف2",null,null,null,0]
["محمد جنيد معروف مرهون حسن",900,900,100,9,"الشرطة الاتحادية فق4",null,null,null,0]
["حاتم اكرم إبراهيم عباس ",150,50,50,6,"مديرية نجدة بغداد",null,"تم التسديد","تم التسديد",2]
["هاشم طالب نايف حسون ",500,400,100,5,"الشرطة الاتحادية امرية المعسكر القيادة",null,null,"تم التسديد",1]
["هاشم طالب نايف حسون ",900,800,100,9,"الشرطة الاتحادية امرية المعسكر القيادة",null,null,"تم التسديد",1]
["هاشم طالب نايف حسون ",75,50,25,3,"الشرطة الاتحادية امرية المعسكر القيادة",null,null,"تم التسديد",1]
["محمد مشرف عبد جاسم محمد",600,500,100,9,"مديرية شرطة الانبار",null,null,"تم التسديد",1]
["محمد مشرف عبد جاسم محمد",1200,1200,200,7,"مديرية شرطة الانبار",null,null,null,0]
["محمد نصيف كرين لفتة ",900,900,100,9,"الشرطة الاتحادية ",null,null,null,0]
["ثائر احسان جمال عباس",500,500,100,5,"الشرطة الاتحادية ف3 اللواء الالي ",null,null,null,0]
["ثائر احسان جمال عباس",900,900,100,9,"الشرطة الاتحادية ف3 اللواء الالي ",null,null,null,0]
["ثائر احسان جمال عباس",250,250,50,5,"الشرطة الاتحادية ف3 اللواء الالي ",null,null,null,0]
["باسم خليل ورود ارحيم",350,150,100,7,"مديرية النجدة العامة",null,"تم التسديد","تم التسديد",2]
["ميثم رياض فاضل شمخي",100,0,50,5,"مديرية شرطة النجدة",null,"تم التسديد","تم التسديد",2]
["احمد إبراهيم جبار غازي",200,150,50,5,"مديرية شرطة بغداد",null,null,"تم التسديد",1]
["نبيل صبحي كاظم خميس",250,200,50,5,"مديرية شرطة بغداد",null,null,"تم التسديد",1]
["حسن مهدي مطر حسن",900,800,100,9,"فرقة التدخل السريع",null,null,"تم التسديد",1]
["حسن مهدي مطر حسن",700,700,100,7,"فرقة التدخل السريع",null,null,null,0]
["حسن مهدي مطر حسن",650,650,100,7,"فرقة التدخل السريع",null,null,null,0]
["علي داخل سعيد مهدي ",250,250,50,5,"كلية الشرطة",null,null,null,0]
["مصطفى محمد كريم ياسين",135,135,135,1,"قيادة شرطة بغداد",null,null,null,0]
["حيدر عباس حسن محمد",150,50,50,5,"الشرطة الاتحادية فق2",null,"تم التسديد","تم التسديد",2]
["حيدر عباس حسن محمد",300,100,100,5,"الشرطة الاتحادية فق2",null,"تم التسديد","تم التسديد",2]
["علاوي عبود محمد لفتة",650,650,100,7,"قيادة شرطة بغداد",null,null,null,0]
["منصور علي مريهج علي",900,900,100,9,"الشرطة الاتحادية مديرية الرواتب ",null,null,null,0]
["هاشم طالب نايف حسون ",600,600,86,7,"الشرطة الاتحادية امرية المعسكر القيادة",null,null,null,0]
["علي عبد الرزاق سالم حسين",600,600,100,7,"فرقة التدخل السريع",null,null,null,0]
["ضياء لطيف حسن جابر",45,45,45,1,"الشرطة الاتحادية امرية التدريب",null,null,null,0]
["حيدر محسن خليفة إبراهيم",600,600,100,6,"كلية الشرطة",null,null,null,0]
["حسين محمد فايق نصيف العبيدي",1800,1800,200,9,"الشرطة الاتحادية امرية التدريب",null,null,null,0]
["حسين محمد فايق نصيف العبيدي",250,250,50,5,"الشرطة الاتحادية امرية التدريب",null,null,null,0]
["حسين محمد فايق نصيف العبيدي",2500,2500,250,10,"الشرطة الاتحادية امرية التدريب",null,null,null,0]
["سارة علي ذياب صالح",500,400,100,7,"حماية المنشأت",null,"تم التسديد",null,1]
["ياسر محمد جاسم محمد",900,{"$f":"B524-J524*D524","v":900},100,9,"الشرطة الاتحادية مقر فق 1",null,null,null,{"$f":"COUNTIF(H524:I524,\"تم التسديد\")","v":0}]
["كاظم كريم جاسم محمد",250,250,50,5,"الشرطة الاتحادية مقر فق 1",null,null,null,0]
["كاظم كريم جاسم محمد",250,250,50,5,"الشرطة الاتحادية مقر فق 1",null,null,null,0]
["كاظم كريم جاسم محمد",75,75,25,3,"الشرطة الاتحادية مقر فق 1",null,null,null,0]
["كاظم كريم جاسم محمد",250,250,50,5,"الشرطة الاتحادية مقر فق 1",null,null,null,0]
["حسين حربي محمد كاظم",900,900,100,9,"مديرية شرطة بغداد",null,null,null,0]
["محمد عبد القادر خماس ",900,900,100,9,"شرطة اتحادية مقر القيادة",null,null,null,0]
["حسين مجيد عبد الأمير راضي",600,600,100,6,"فرقة الرد السريع",null,null,null,0]
["حسين مجيد عبد الأمير راضي",250,250,50,5,"فرقة الرد السريع",null,null,null,0]
["حسين مجيد عبد الأمير راضي",900,900,100,9,"فرقة الرد السريع",null,null,null,0]
["عباس جساس شرقي حسين",500,400,100,7,"الشرطة الاتحادية",null,"تم التسديد",null,1]
["علي داخل سعيد مهدي ",900,900,100,9,"كلية الشرطة",null,null,null,0]
["علي داخل سعيد مهدي ",600,600,75,7,"كلية الشرطة",null,null,null,0]
["محمد سعدي صالح عبد ",1350,1200,150,10,"حماية المنشأت",null,"تم التسديد",null,1]
["علي مهدي عبد الشهيد ",3000,3000,300,10,"حماية السفارات",null,null,null,0]
["سهيل نجم علي حسين ",2550,2250,300,10,"حماية المنشأت",null,"تم التسديد",null,1]
["سهيل نجم علي حسين ",750,650,100,9,"حماية المنشأت",null,"تم التسديد",null,1]
["باسم خليل ورود ارحيم",600,400,100,9,"مديرية النجدة العامة",null,"تم التسديد","تم التسديد",2]
["عمار شاكر طالب هندي",1500,1350,150,10,"الشرطة الاتحادية",null,null,"تم التسديد",1]
["عمار شاكر طالب هندي",1200,1050,150,7,"الشرطة الاتحادية",null,null,"تم التسديد",1]
["عمار شاكر طالب هندي",900,800,100,9,"الشرطة الاتحادية",null,null,"تم التسديد",1]
["عدي مهدي إبراهيم محمود",900,900,100,9,"حماية المنشأت",null,null,null,0]
["محمد كامل كاطع بندر",1800,1800,200,9,"مديرية التدريب والتأهيل",null,null,null,0]
["ثائر حاتم حمزة خضير ",250,250,50,5,"الشرطة الاتحادية فق2 ل6",null,null,null,0]
["ثائر حاتم حمزة خضير ",900,900,100,9,"الشرطة الاتحادية فق2 ل6",null,null,null,0]
["ثائر حاتم حمزة خضير ",360,360,360,1,"الشرطة الاتحادية فق2 ل6",null,null,null,0]
["احمد هاشم كريم مطر",250,250,50,5,"قيادة الشرطة الاتحادية / قسم الاعلام",null,null,null,0]
["احمد هاشم كريم مطر",500,500,71,7,"قيادة الشرطة الاتحادية / قسم الاعلام",null,null,null,0]
["رأفت ليث كامل خضير ",250,250,50,5,"الشرطة الاتحادية الفوج الالي",null,null,null,0]
["حسين عبد النبي خطار هاشم",1200,800,200,9,"مديرية النجدة العامة",null,"تم التسديد","تم التسديد",2]
["عقيل ظاهر عبد عنبر ",3000,3000,300,10,"قوات حرس الحدود",null,null,null,0]
["عقيل ظاهر عبد عنبر ",900,900,100,9,"قوات حرس الحدود",null,null,null,0]
["حيدر فاضل عباس لعيبي",150,150,50,3,"قيادة شرطة بغداد",null,null,null,0]
["وائل سالم جاسم محمد ",3000,3000,300,10,"الشرطة الاتحادية فق ف الالي",null,null,null,0]
["جاسم قاسم جدوع عبيد",200,150,50,5,"الشرطة الاتحادية فق1",null,"تم التسديد",null,1]
["ميثاق حازم جبار نجم",100,0,50,5,"مديرية نجدة بغداد",null,"تم التسديد","تم التسديد",2]
["حسين محمد فايق نصيف العبيدي",600,600,75,7,"الشرطة الاتحادية امرية التدريب",null,null,null,0]
["ضحى عبد الاله عبد الحسين ",600,600,75,7,"الشرطة الاتحادية فق2 ل7 ف1",null,null,null,0]
["ضحى عبد الاله عبد الحسين ",600,600,75,7,"الشرطة الاتحادية فق2 ل7 ف1",null,null,null,0]
["ضحى عبد الاله عبد الحسين ",900,900,100,9,"الشرطة الاتحادية فق2 ل7 ف1",null,null,null,0]
["ضحى عبد الاله عبد الحسين ",400,400,75,5,"الشرطة الاتحادية فق2 ل7 ف1",null,null,null,0]
["سعيد محمد صالح علي ",600,600,75,7,"الشرطة الاتحادية فوج المغاوير",null,null,null,0]
["سعيد محمد صالح علي ",900,900,100,9,"الشرطة الاتحادية فوج المغاوير",null,null,null,0]
["جمال عبد الناصر محمد محمود",900,900,100,9,"مديرية التدريب والتأهيل",null,null,null,0]
["عقيل يعكوب يوسف ساجت",900,900,100,9,"مكتب المستشار",null,null,null,0]
["عقيل يعكوب يوسف ساجت",500,500,71,7,"مكتب المستشار",null,null,null,0]
["عقيل يعكوب يوسف ساجت",500,500,71,7,"مكتب المستشار",null,null,null,0]
["سيف جواد كاظم تعيب ",75,75,25,3,"مكتب المستشار",null,null,null,0]
["زين العابدين اكرم حميد يونس",3000,3000,300,10,"مديرية شرطة بغداد",null,null,null,0]
["زين العابدين اكرم حميد يونس",900,900,100,9,"مديرية شرطة بغداد",null,null,null,0]
["فراس مصطفى كامل الربيعي",600,600,75,7,"فوج طوارئ بغداد",null,null,null,0]
["ميثم رياض فاضل شمخي",287,145,71,7,"مديرية شرطة النجدة",null,"تم التسديد","تم التسديد",2]
["خالد جمال جبارة ياسين",375,300,75,7,"الشرطة الاتحادية مديرية الرواتب ",null,"تم التسديد",null,1]
["قيس صباح عناد حابط",1500,1500,150,10,"مديرية المرور العامة",null,null,null,0]
["علاء حسين كاظم بدر الكناني",600,600,75,7,"مديرية الصيانة والخدمات",null,null,null,0]
["علاء حسين كاظم بدر الكناني",600,600,75,7,"مديرية الصيانة والخدمات",null,null,null,0]
["علاء حسين كاظم بدر الكناني",600,600,75,7,"مديرية الصيانة والخدمات",null,null,null,0]
["علاء حسين كاظم بدر الكناني",3000,3000,300,10,"مديرية الصيانة والخدمات",null,null,null,0]
["محمد مالك رشك زايد الطليباوي",487,412,75,7,"الشرطة الاتحادية ",null,"تم التسديد",null,1]
["يوسف مهدي يوسف مريس",75,75,25,3,"مديرية العاب نادي الشرطة",null,null,null,0]
["يوسف مهدي يوسف مريس",250,250,50,5,"مديرية العاب نادي الشرطة",null,null,null,0]
["يوسف مهدي يوسف مريس",25,25,25,1,"مديرية العاب نادي الشرطة",null,null,null,0]
["إيهاب مهدي ناجي علي",200,150,50,5,"الشرطة الاتحادية فق 2",null,"تم التسديد",null,1]
["عقيل محسن ماجد عطية ",600,600,85,7,"مديرية امن الافراد",null,null,null,0]
["اثير مهدي عبد يونس",600,{"$f":"B588-J588*D588","v":600},85,7,"كلية الشرطة",null,null,null,{"$f":"COUNTIF(H588:I588,\"تم التسديد\")","v":0}]
["علي جمال عواد العبودي",3000,3000,300,10,"مديرية البنى التحتية ",null,null,null,0]
["علي جمال عواد العبودي",900,900,100,9,"مديرية البنى التحتية ",null,null,null,0]
["وليد حسين ناجي خلف",1088,1088,544,2,"مديرية نفط الوسط",null,null,null,0]
["كريم جبر صبر عبدالله",361,361,361,1,"مديرية نفط الوسط",null,null,null,0]
["عباس شاكر كشكول عبد ",624,624,624,1,"مديرية نفط الوسط",null,null,null,0]
["ياسر طلال مطشر عجمي",1276,1276,638,2,"مديرية نفط الوسط",null,null,null,0]
["عمر علي عبد الصاحب ",1086,1086,543,2,"مديرية نفط الوسط",null,null,null,0]
["ندى موحان فالح زامل",414,414,207,2,"مديرية نفط الوسط",null,null,null,0]
["سمير زهير رزاق رحمن",3825,3825,546,7,"مديرية نفط الوسط",null,null,null,0]
["عبدالله جاسم حمادي",3279,3279,546,6,"مديرية نفط الوسط",null,null,null,0]
["أنور خميس محمود الخزرجي",1912,1912,637,3,"مديرية نفط الوسط",null,null,null,0]
["ازهر صباح مطرود جاسم",624,624,624,1,"مديرية نفط الوسط",null,null,null,0]
["باسم حسن حاتم كبر ",62,62,62,1,"مديرية نفط الوسط",null,null,null,0]
["محمد خضير جارالله عبد علي",1400,1400,466,3,"مديرية نفط الوسط",null,null,null,0]
["احمد جبار شوملي كاظم",468,468,468,1,"مديرية نفط الوسط",null,null,null,0]
["جمال عبد نجم عبدالله",1575,1575,525,3,"مديرية نفط الوسط",null,null,null,0]
["أسماء محمد حسين خلف",1086,1086,544,2,"مديرية نفط الوسط",null,null,null,0]
["عقيل عباس حميد ",542,542,542,1,"مديرية نفط الوسط",null,null,null,0]
["امجد فاضل حسين جواد",650,650,650,1,"مديرية نفط الوسط",null,null,null,0]
["حسن ماجد خضير المسعودي",621,621,311,2,"مديرية نفط الوسط",null,null,null,0]
["محمد شاكر جلو عنيد",1630,1630,543,3,"مديرية نفط الوسط",null,null,null,0]
["مصطفى مهدي حسين حمزة",1630,1630,543,3,"مديرية نفط الوسط",null,null,null,0]
["عباس جاسم حطاب عجيل",1630,1630,543,3,"مديرية نفط الوسط",null,null,null,0]
["جبار راضي خلف فياض",1630,1630,543,3,"مديرية نفط الوسط",null,null,null,0]
["سهيل نجم عبد الخالق إبراهيم",450,450,75,6,"مديرية نجدة ديالى",null,null,null,0]
["فكري حسين علي تايه",650,500,150,6,"مديرية شرطة الكهرباء",null,"تم التسديد",null,1]
["احمد عبد الجبار إبراهيم جواد",450,450,75,6,"مديرية نجدة ديالى",null,null,null,0]
["احمد عبد الجبار إبراهيم جواد",45,45,45,1,"مديرية نجدة ديالى",null,null,null,0]
["نهاد عبود عواد خلف ",450,450,75,6,"مديرية شرطة ديالى",null,null,null,0]
["فتحي صلاح حرب خليفة الاوسي",900,900,900,1,"مديرية شرطة الكهرباء",null,null,null,0]
["احمد عبد الجبار إبراهيم جواد",90,90,90,1,"مديرية نجدة ديالى",null,null,null,0]
["خالد كامل عبد الوهاب ",1500,1500,150,10,"وكالة شؤون الشرطة ",null,null,null,0]
["طارق جبار علي محمد الساعدي",700,700,100,7,"الشرطة الاتحادية",null,null,null,0]
["طارق جبار علي محمد الساعدي",750,750,150,5,"الشرطة الاتحادية",null,null,null,0]
["طارق جبار علي محمد الساعدي",75,75,25,3,"الشرطة الاتحادية",null,null,null,0]
["جاسم محسن كاظم عطية ",1413,1155,258,7,"حماية المنشأت",null,"تم التسديد",null,1]
["جاسم محسن كاظم عطية ",1176,960,216,7,"حماية المنشأت",null,"تم التسديد",null,1]
["هاشم ثامر برنيط رميح",600,600,86,7,"قيادة شرطة بغداد",null,null,null,0]
["هاشم ثامر برنيط رميح",75,75,25,3,"قيادة شرطة بغداد",null,null,null,0]
["هاشم ثامر برنيط رميح",250,250,50,5,"قيادة شرطة بغداد",null,null,null,0]
["رياض جبار رضا عبد شيروان",900,900,100,9,"الشرطة الاتحادية",null,null,null,0]
["رياض جبار رضا عبد شيروان",450,450,65,7,"الشرطة الاتحادية",null,null,null,0]
["فراس محي فاضل حميد ",3000,3000,300,10,"الشرطة الاتحادية",null,null,null,0]
["فراس محي فاضل حميد ",450,450,65,7,"الشرطة الاتحادية",null,null,null,0]
["مصطفى عباس حميد اسود",900,900,100,9,"الشرطة الاتحادية",null,null,null,0]
["عمار رعد عبد الحسن احسان",1500,1500,150,10,"الشرطة الاتحادية",null,null,null,0]
["عمار رعد عبد الحسن احسان",150,150,50,3,"الشرطة الاتحادية",null,null,null,0]
["زيد عباس خلف طارش ",3000,3000,300,10,"الشرطة الاتحادية",null,null,null,0]
["هيثم صبري محمد معين ",1500,1500,150,10,"الادعام العام",null,null,null,0]
["حيدر محي داخل حسن ",500,500,71,7,"الشرطة الاتحادية",null,null,null,0]
["حيدر محي داخل حسن ",250,250,50,5,"الشرطة الاتحادية",null,null,null,0]
["باسم محمد عليوي عودة ",250,250,50,5,"مكتب المستشار",null,null,null,0]
["حسام فتاح حميد خميس",75,75,25,3,"قوات حرس الحدود",null,null,null,0]
["شاكر جبر حمدان مري ",3000,3000,300,10,"فرقة التدخل السريع",null,null,null,0]
["شاكر جبر حمدان مري ",900,900,100,9,"فرقة التدخل السريع",null,null,null,0]
["حنين قاسم حسن رضا الجعفري",900,900,130,7,"فرقة التدخل السريع",null,null,null,0]
["زيدون عماد مذخور محسن المحمداوي",440,440,71,7,"الشرطة الاتحادية",null,null,null,0]
["زيدون عماد مذخور محسن المحمداوي",1350,1350,150,10,"الشرطة الاتحادية",null,null,null,0]
["مازن قاسم حسين خلف",900,900,100,9,"قيادة الشرطة الاتحادية / قسم الاعلام",null,null,null,0]
["كرار ناجح مردان عبود ",257,127,65,7,"مديرية النجدة العامة",null,"تم التسديد","تم التسديد",2]
["حسين علي خلف طاهر ",250,250,50,5,"مديرية شرطة بغداد",null,null,null,0]
["خالد زكي عبد محمد اليساري",2800,2100,350,10,"الشرطة الاتحادية",null,"تم التسديد","تم التسديد",2]
["حيدر خضير عباس حمودي",1800,1800,200,9,"مديرية شرطة بغداد",null,null,null,0]
["حيدر عادل شميان غالب",1306,{"$f":"B652-J652*D652","v":1306},435,3,"مديرية نفط الجنوب",null,null,null,{"$f":"COUNTIF(H652:I652,\"تم التسديد\")","v":0}]
["محمد عزام سبهان عمر",850,850,425,2,"مديرية نفط الجنوب",null,null,null,0]
["مشتاق ناجح محمود يوسف",1142,1142,380,3,"مديرية نفط الجنوب",null,null,null,0]
["حسين أنور كزار خلخال",1452,1452,484,3,"مديرية نفط الجنوب",null,null,null,0]
["وليد عبد عناد علوان",510,510,510,1,"مديرية نفط الجنوب",null,null,null,0]
["سجاد صاحب ساهي صباح",969,969,485,2,"مديرية نفط الجنوب",null,null,null,0]
["علي عبد الواحد عبد الكريم",483,483,483,1,"مديرية نفط الجنوب",null,null,null,0]
["نجم عبود داخل امبارك",2901,2901,483,6,"مديرية نفط الجنوب",null,null,null,0]
["جابر طعمة رخيص طاهر",2901,2901,483,6,"مديرية نفط الجنوب",null,null,null,0]
["عقيل عبد اللطيف محمد حسن",1452,1452,483,3,"مديرية نفط الجنوب",null,null,null,0]
["سمر جبار شاطي راضي",1950,1950,487,4,"مديرية نفط الجنوب",null,null,null,0]
["جعفر وحيد خلف كاظم",1449,1449,483,3,"مديرية نفط الجنوب",null,null,null,0]
["دويج عكلة سدخان حايف",2418,2418,483,5,"مديرية نفط الجنوب",null,null,null,0]
["زكي قاسم عاشور موسى",207,207,207,1,"مديرية نفط الجنوب",null,null,null,0]
["ناظم عبد السادة محمد",850,850,425,2,"مديرية نفط الجنوب",null,null,null,0]
["بهاء الدين فنجان حسين",850,850,425,2,"مديرية نفط الجنوب",null,null,null,0]
["نزار محسن مزعل حسن",544,544,544,1,"مديرية نفط الجنوب",null,null,null,0]
["علي كامل علي عبد الحسين",3000,3000,300,10,"الشرطة الاتحادية",null,null,null,0]
["علي كامل علي عبد الحسين",500,500,71,7,"الشرطة الاتحادية",null,null,null,0]
["علي كامل علي عبد الحسين",450,450,65,7,"الشرطة الاتحادية",null,null,null,0]
["سيف سعدي عبد جاسم",1000,1000,142,7,"مديرية التدقيق المركزي",null,null,null,0]
["مصطفى صادق هذال جعفر",1275,1125,150,10,"حماية المنشأت",null,"تم التسديد",null,1]
["نشوان ظاهر حبيب قلب ",1500,1500,150,10,"الشرطة الاتحادية ف3 اللواء الالي الثالث ",null,null,null,0]
["نشوان ظاهر حبيب قلب ",1000,1000,142,7,"الشرطة الاتحادية ف3 اللواء الالي الثالث ",null,null,null,0]
["نشوان ظاهر حبيب قلب ",250,250,50,5,"الشرطة الاتحادية ف3 اللواء الالي الثالث ",null,null,null,0]
["نشوان ظاهر حبيب قلب ",500,500,100,5,"الشرطة الاتحادية ف3 اللواء الالي الثالث ",null,null,null,0]
["صلاح جويد خلف سهيل ",500,500,71,7,"مكتب المستشار",null,null,null,0]
["هاني كاظم رحيمة عليوي",3000,3000,300,10,"مديرية الاتصالات ",null,null,null,0]
["هاني كاظم رحيمة عليوي",500,500,71,7,"مديرية الاتصالات ",null,null,null,0]
["جبار سلمان كاظم خلف ",250,250,50,5,"الشرطة الاتحادية",null,null,null,0]
["جبار سلمان كاظم خلف ",600,600,86,7,"الشرطة الاتحادية",null,null,null,0]
["جبار سلمان كاظم خلف ",1500,1500,150,10,"الشرطة الاتحادية",null,null,null,0]
["سعد عبدالرزاق مجيد حبيب",2500,2500,250,10,"حماية المنشأت",null,null,null,0]
["سعد عبدالرزاق مجيد حبيب",250,250,50,5,"حماية المنشأت",null,null,null,0]
["سعد عبدالرزاق مجيد حبيب",75,75,25,3,"حماية المنشأت",null,null,null,0]
["علي جاسم سعدون حبش ",2100,1500,300,10,"مديرية النجدة العامة",null,"تم التسديد","تم التسديد",2]
["علي زبالة عيسى احمد الجبوري",3750,3250,500,9,"حماية المنشأت",null,"تم التسديد",null,1]
["علاء كريم حمودي جواد",2550,2250,300,10,"حماية المنشأت",null,"تم التسديد",null,1]
["اياد كاظم جبار بزون",150,150,50,3,"فرقة التدخل السريع",null,null,null,0]
["اياد كاظم جبار بزون",25,25,25,1,"فرقة التدخل السريع",null,null,null,0]
["طارق جبار علي محمد الساعدي",3000,3000,300,10,"الشرطة الاتحادية",null,null,null,0]
["احمد هشام جاسم محمد",500,500,71,7,"الشرطة الاتحادية فوج المغاوير",null,null,null,0]
["احمد هشام جاسم محمد",600,600,86,7,"الشرطة الاتحادية فوج المغاوير",null,null,null,0]
["علاء خلف فرج سعيد ",450,450,450,1,"الشرطة الاتحادية",null,null,null,0]
["علاء خلف فرج سعيد ",25,25,25,1,"الشرطة الاتحادية",null,null,null,0]
["علاء خلف فرج سعيد ",250,250,50,5,"الشرطة الاتحادية",null,null,null,0]
["حيدر عباس حسن محمد",320,190,65,7,"الشرطة الاتحادية",null,"تم التسديد","تم التسديد",2]
["ليث ثامر محمود احمد ",225,225,225,1,"الشرطة الاتحادية",null,null,null,0]
["حسين هاشم عبد علي القريشي",900,900,130,7,"قوات حرس الحدود",null,null,null,0]
["عدي صبحي احمد إبراهيم",450,450,65,7,"مديرية شؤون السيطرات",null,null,null,0]
["سارة علي ذياب صالح",1275,1125,150,10,"حماية المنشأت",null,"تم التسديد",null,1]
["علاء علي حسين ولي ",2450,1750,350,10,"الدفاع المدني ",null,"تم التسديد","تم التسديد",2]
["علاء حسن كاطع جابر",250,250,50,5,"ش.أ امرية الطبابة",null,null,null,0]
["علاء حسن كاطع جابر",500,500,71,7,"ش.أ امرية الطبابة",null,null,null,0]
["حامد جواد كاظم شمخي ",1500,1500,150,10,"ف2 ل8 فق2 ش.أ",null,null,null,0]
["سعيد محمد صالح علي ",1000,1000,142,7,"الشرطة الاتحادية",null,null,null,0]
["علي رشيد حسين محمود ",900,900,130,7,"الشرطة الاتحادية",null,null,null,0]
["علي جمال عواد العبودي",250,250,50,5,"مديرية البنى التحتية ",null,null,null,0]
["ضياء ناظم حمادي احمد",200,200,50,4,"مديرية التخطيط والمتابعة",null,null,null,0]
["إيهاب غالب شغيدل عبيد",600,600,85,7,"الشرطة الاتحادية",null,null,null,0]
["إيهاب غالب شغيدل عبيد",500,500,71,7,"الشرطة الاتحادية",null,null,null,0]
["إيهاب غالب شغيدل عبيد",600,600,86,7,"الشرطة الاتحادية",null,null,null,0]
["إيهاب غالب شغيدل عبيد",250,250,50,5,"الشرطة الاتحادية",null,null,null,0]
["علي حسن علي حمادي الموسوي",3275,3275,350,10,"حماية المنشأت",null,"تم التسديد ",null,0]
["علي مهدي عبد الشهيد ",1350,{"$f":"B716-J716*D716","v":1350},195,7,"حماية المنشأت",null,null,null,{"$f":"COUNTIF(H716:I716,\"تم التسديد\")","v":0}]
["امير عبد الكريم نصيف جاسم",250,250,50,5,"قوات حرس الحدود",null,null,null,0]
["وائل خالد جثير لفتة الماجدي",4500,4500,450,10,"الشرطة الاتحادية",null,null,null,0]
["نبيل قاسم مشتت بطل ",472,387,85,7,"حماية المنشأت",null,"تم التسديد",null,1]
["نبيل قاسم مشتت بطل ",472,387,85,7,"حماية المنشأت",null,"تم التسديد",null,1]
["نبيل قاسم مشتت بطل ",393,322,71,7,"حماية المنشأت",null,"تم التسديد",null,1]
["قصي جعفر شهيد حمزة",3500,3500,350,10,"فرقة التدخل السريع",null,null,null,0]
["وسام محمد حسين بجاي",3150,2250,450,10,"مديرية شرطة النجدة",null,"تم التسديد","تم التسديد",2]
["امين عبد الأمير شحم جرمد ",3150,2250,450,10,"مديرية نجدة بغداد",null,"تم التسديد","تم التسديد",2]
["احمد عطية جيجان عبيد",450,450,65,7,"قيادة الشرطة الاتحادية الفوج الالي",null,null,null,0]
["حيدر حسن علوان منهل",2000,2000,285,7,"الشرطة الاتحادية",null,null,null,0]
["عمر حمزة إبراهيم عيادة",4500,4500,500,9,"الشرطة الاتحادية",null,null,null,0]
["احمد بزون مجلي عادل",1800,1800,200,9,"فرقة التدخل السريع",null,null,null,0]
["حسن هادي سالم عباس ",3000,3000,300,10,"الشرطة الاتحادية",null,null,null,0]
["حسن هادي سالم عباس ",250,250,50,5,"الشرطة الاتحادية",null,null,null,0]
["امجد حامد خزعل مجيسر ",3000,3000,300,10,"الشرطة الاتحادية",null,null,null,0]
["ليث ثامر محمود احمد ",900,900,100,9,"الشرطة الاتحادية",null,null,null,0]
["سعيد محمد صالح علي ",900,900,100,9,"الشرطة الاتحادية",null,null,null,0]
["ميثاق حازم جبار نجم",2100,1500,300,10,"مديرية نجدة بغداد",null,"تم التسديد","تم التسديد",2]
["طه حسين محمد حسين الجبوري",900,900,130,7,"فرقة الرد السريع",null,null,null,0]
["طه حسين محمد حسين الجبوري",250,250,50,5,"فرقة الرد السريع",null,null,null,0]
["محمد عبد الزهرة محيسن حلو ",1275,1125,150,10,"حماية المنشأت",null,"تم التسديد",null,1]
["محمد عبد الزهرة محيسن حلو ",280,200,80,5,"حماية المنشأت",null,"تم التسديد",null,1]
["محمد عبد الزهرة محيسن حلو ",37,12,25,3,"حماية المنشأت",null,"تم التسديد",null,1]
["لؤي عبد الحسين صيهود ",1800,1800,250,7,"الشرطة الاتحادية",null,null,null,0]
["لؤي عبد الحسين صيهود ",600,600,85,7,"الشرطة الاتحادية",null,null,null,0]
["لؤي عبد الحسين صيهود ",1200,1200,170,7,"الشرطة الاتحادية",null,null,null,0]
["لؤي عبد الحسين صيهود ",450,450,65,7,"الشرطة الاتحادية",null,null,null,0]
["علي داخل سعيد مهدي ",1800,1800,200,9,"كلية الشرطة",null,null,null,0]
["حسين جبار محمد نعمة",3000,3000,300,10,"مديرية شرطة بغداد",null,null,null,0]
["ساجد حسوني صالح عيسى",3000,3000,300,10,"مديرية شرطة بغداد",null,null,null,0]
["اكرم زمان داوود ديوان",180,180,45,4,"كلية الشرطة",null,null,null,0]
["اكرم زمان داوود ديوان",500,500,71,7,"كلية الشرطة",null,null,null,0]
["نعمة شاكر نعمة محسن",3000,3000,300,10,"الشرطة الاتحادية",null,null,null,0]
["نعمة شاكر نعمة محسن",450,450,65,7,"الشرطة الاتحادية",null,null,null,0]
["ضياء عبد الحسين مهاوي سلمان",200,200,50,5,"مكتب الوزير",null,null,null,0]
["عباس ناجي صبري صالح",3500,3500,350,10,"مديرية البنى التحتية ",null,null,null,0]
["احسان ذياب إسماعيل داوود",250,250,50,5,"الشرطة الاتحادية",null,null,null,0]
["احسان ذياب إسماعيل داوود",600,600,85,7,"الشرطة الاتحادية",null,null,null,0]
["احسان ذياب إسماعيل داوود",180,180,45,4,"الشرطة الاتحادية",null,null,null,0]
["احسان ذياب إسماعيل داوود",900,900,100,9,"الشرطة الاتحادية",null,null,null,0]
["بلال خالد ناجي مجيد البياتي",450,450,65,7,"مديرية امن الافراد",null,null,null,0]
["سلمان شاكر محمود حياوي",900,900,100,9,"الشرطة الاتحادية",null,null,null,0]
["سلمان شاكر محمود حياوي",25,25,25,1,"الشرطة الاتحادية",null,null,null,0]
["جبار كاظم سعدون مرهوش",250,250,50,5,"مديرية الموارد البشرية",null,null,null,0]
["جبار كاظم سعدون مرهوش",180,180,45,4,"مديرية الموارد البشرية",null,null,null,0]
["ماهر جعفر كريم تريجي",4500,4500,500,9,"مديرية البنى التحتية ",null,null,null,0]
["سمير عزيز عباس الكعبي",3750,3250,500,9,"حماية المنشأت",null,"تم التسديد",null,1]
["احمد إبراهيم حسين عبد ",600,600,85,7,"مديرية شرطة بغداد",null,null,null,0]
["احمد إبراهيم حسين عبد ",75,75,25,3,"مديرية شرطة بغداد",null,null,null,0]
["احمد إبراهيم حسين عبد ",250,250,50,5,"مديرية شرطة بغداد",null,null,null,0]
["احمد إبراهيم حسين عبد ",75,75,25,3,"مديرية شرطة بغداد",null,null,null,0]
["حيدر عذاب خماس داوود",574,290,142,7,"مديرية النجدة العامة",null,"تم التسديد","تم التسديد",2]
["رفعت عيسى حبيب جاسم",250,250,50,5,"الشرطة الاتحادية",null,null,null,0]
["رفعت عيسى حبيب جاسم",1200,1200,170,7,"الشرطة الاتحادية",null,null,null,0]
["رفعت عيسى حبيب جاسم",180,180,45,4,"الشرطة الاتحادية",null,null,null,0]
["حيدر حسن علاوي عرفات",393,322,71,7,"حماية المنشأت",null,"تم التسديد",null,1]
["علي حسين فاضل محمد ",3000,3000,300,10,"الشرطة الاتحادية",null,null,null,0]
["علي حسين فاضل محمد ",500,500,71,7,"الشرطة الاتحادية",null,null,null,0]
["مؤيد عبد المجيد حميد راضي",250,250,50,5,"فرقة الرد السريع",null,null,null,0]
["حيدر محسن خليفة إبراهيم",600,600,85,7,"كلية الشرطة",null,null,null,0]
["باسم محمد كرم عزيز",500,500,65,7,"الشرطة الاتحادية",null,null,null,0]
["حسن عبد قوجان فرج",3000,3000,300,10,"مديرية شرطة بغداد",null,null,null,0]
["ثامر علي حسين عسل",2550,2250,300,10,"حماية المنشأت",null,"تم التسديد",null,1]
["ثامر علي حسين عسل",402,{"$f":"B780-J780*D780","v":337},65,7,"حماية المنشأت",null,"تم التسديد",null,{"$f":"COUNTIF(H780:I780,\"تم التسديد\")","v":1}]
["جاسم عبد موسى سعيد",2550,2250,300,10,"حماية المنشأت",null,"تم التسديد",null,1]
["جاسم عبد موسى سعيد",402,337,65,7,"حماية المنشأت",null,"تم التسديد",null,1]
["رائد فيصل غازي شرهان",1275,1125,150,10,"حماية المنشأت",null,"تم التسديد",null,1]
["محمد حنون بني عبدالله",1500,1300,200,9,"حماية المنشأت",null,"تم التسديد",null,1]
["مصطفى صادق هذال جعفر",1500,1300,200,9,"حماية المنشأت",null,"تم التسديد",null,1]
["عقيل شهيد لفتة فرج",3000,3000,300,10,"مديرية التدريب والتأهيل",null,null,null,0]
["مؤيد صالح فهد الحيدري",1200,800,200,9,"الدفاع المدني ",null,"تم التسديد","تم التسديد",2]
["مهدي هادي محمد حسن",1800,1800,200,9,"الشرطة الاتحادية",null,null,null,0]
["نصر عبد الرزاق كرم ناصح",45,45,45,1,"الشرطة الاتحادية",null,null,null,0]
["وليد عبد السادة مزعل طلب",600,600,86,7,"مديرية شرطة بغداد",null,null,null,0]
["احمد هشام جاسم محمد",600,600,85,7,"الشرطة الاتحادية",null,null,null,0]
["احمد هشام جاسم محمد",250,250,50,5,"الشرطة الاتحادية",null,null,null,0]
["احمد هشام جاسم محمد",500,500,71,7,"الشرطة الاتحادية",null,null,null,0]
["محمد عبد المحسن مسلم ",800,800,100,9,"فوج طوارئ بغداد",null,null,null,0]
["محمد عبد المحسن مسلم ",450,450,65,7,"فوج طوارئ بغداد",null,null,null,0]
["علاء عبدالله حسين كاظم ",450,450,450,1,"مكتب المستشار",null,null,null,0]
["وسام عبد الكريم عبد الحسين ",500,500,71,7,"حماية المنشأت",null,null,null,0]
["وسام عبد الكريم عبد الحسين ",900,900,100,9,"حماية المنشأت",null,null,null,0]
["هيثم مهدي هادي عبد الرضا",900,900,100,9,"الشرطة الاتحادية",null,null,null,0]
["هيثم مهدي هادي عبد الرضا",500,500,71,7,"الشرطة الاتحادية",null,null,null,0]
["هيثم مهدي هادي عبد الرضا",500,500,71,7,"الشرطة الاتحادية",null,null,null,0]
["احمد غالي غانم كحيط الفرطوسي",900,900,100,9,"مديرية شرطة بغداد",null,null,null,0]
["علي عبدالله عبيد حسين ",400,400,80,5,"الشرطة الاتحادية",null,null,null,0]
["مصطفى وليد كامل عبد الرزاق",352,287,65,7,"حماية المنشأت",null,"تم التسديد",null,1]
["صلاح حسن عباس متعب",770,770,100,9,"الشرطة الاتحادية","تم التسديد",null,null,0]
["صلاح حسن عباس متعب",429,429,71,7,"الشرطة الاتحادية","تم التسديد",null,null,0]
["صلاح حسن عباس متعب",50,50,25,3,"الشرطة الاتحادية","تم التسديد",null,null,0]
["نصيف جاسم مبارك جريدة",1350,1350,195,7,"مديرية امن الافراد",null,null,null,0]
["نصيف جاسم مبارك جريدة",500,500,71,7,"مديرية امن الافراد",null,null,null,0]
["محمد عبد القادر خماس ",1400,1400,200,7,"الشرطة الاتحادية",null,null,null,0]
["ليث ثامر محمود احمد ",3000,3000,300,10,"الشرطة الاتحادية",null,null,null,0]
["محمد باقر محمود كاطع",900,900,130,7,"الشرطة الاتحادية",null,null,null,0]
["محمد باقر محمود كاطع",180,180,45,4,"الشرطة الاتحادية",null,null,null,0]
["محمد سعدي صالح عبد ",765,675,90,10,"حماية المنشأت",null,"تم التسديد",null,1]
["ليث فاضل حبيب سلمان",450,450,65,7,"الشرطة الاتحادية",null,null,null,0]
["ليث فاضل حبيب سلمان",500,500,71,7,"الشرطة الاتحادية",null,null,null,0]
["ليث فاضل حبيب سلمان",180,180,45,4,"الشرطة الاتحادية",null,null,null,0]
["مصطفى عبد الأمير عبد الرزاق",600,600,85,7,"مديرية شرطة بغداد",null,null,null,0]
["نورس يوسف جبر ضايع ",25,25,25,1,"الشرطة الاتحادية",null,null,null,0]
["تحسين علي حسن بدن",232,102,65,7,"مديرية نجدة بغداد",null,"تم التسديد","تم التسديد",2]
["امين احمد صافي عبد الجبار",500,500,71,7,"الشرطة الاتحادية",null,null,null,0]
["امين احمد صافي عبد الجبار",180,180,180,7,"الشرطة الاتحادية",null,null,null,0]
["محمد جاسم حاكم بشارة",858,858,142,7,"قوات حرس الحدود",null,null,null,0]
["محمد جاسم حاكم بشارة",385,385,65,7,"قوات حرس الحدود",null,null,null,0]
["رياض عبدالله جبار عرمان",1350,1350,195,7,"مديرية شرطة ديالى",null,null,null,0]
["احمد صبحي علو حسين",1350,1350,195,7,"مديرية شرطة ديالى",null,null,null,0]
["احمد صبحي علو حسين",250,250,50,5,"مديرية شرطة ديالى",null,null,null,0]
["امير رسول كاظم سعيد ",900,900,130,7,"قوات حرس الحدود",null,null,null,0]
["جاسم محمد صالح خلف ",75,75,25,3,"الشرطة الاتحادية",null,null,null,0]
["انسام سبع إبراهيم رزوقي",125,125,25,3,"مكتب الوكيل الاقدم",null,null,null,0]
["رعد خزعل كاظم حسين ",500,500,71,7,"الشرطة الاتحادية",null,null,null,0]
["حيدر جليل يوسف حويش",4000,3500,500,9,"حماية المنشأت",null,"تم التسديد",null,1]
["رعد خزعل كاظم حسين ",450,450,450,1,"الشرطة الاتحادية",null,null,null,0]
["عمر مهدي شنيشل رسن",600,600,86,7,"مديرية البنى التحتية ",null,null,null,0]
["جميل حسين مهلهل جاسم اللامي",710,426,142,7,"مديرية نجدة بغداد",null,"تم التسديد","تم التسديد",2]
["جميل حسين مهلهل جاسم اللامي",150,50,50,5,"مديرية نجدة بغداد",null,"تم التسديد","تم التسديد",2]
["جميل حسين مهلهل جاسم اللامي",428,256,86,7,"مديرية نجدة بغداد",null,"تم التسديد","تم التسديد",2]
["اكرم عباس حسن صحن",45,0,45,1,"مديرية التدريب والتأهيل",null,"تم التسديد",null,1]
["حاتم اكرم إبراهيم عباس ",640,380,130,7,"مديرية نجدة بغداد",null,"تم التسديد","تم التسديد",2]
["حسن هادي سالم عباس ",250,200,50,5,"الشرطة الاتحادية",null,"تم التسديد",null,1]
["قصي ساجد عبدالله عبد الرزاق",75,50,25,3,"محكمة تميز قوى الامن",null,"تم التسديد",null,1]
["قصي ساجد عبدالله عبد الرزاق",450,385,65,7,"محكمة تميز قوى الامن",null,"تم التسديد",null,1]
["حسين محمد ناو خاص",200,150,50,5,"حماية المنشأت",null,"تم التسديد",null,1]
["اثير سعد حسن حمود",4000,{"$f":"B844-J844*D844","v":3500},500,9,"حماية المنشأت",null,"تم التسديد",null,{"$f":"COUNTIF(H844:I844,\"تم التسديد\")","v":1}]
["جميل حسين مهلهل جاسم اللامي",320,190,65,7,"مديرية نجدة بغداد",null,"تم التسديد","تم التسديد",2]
["عدنان جري سلمان محي ",1500,1350,150,10,"الشرطة الاتحادية",null,"تم التسديد",null,1]
["عدنان جري سلمان محي ",250,200,50,5,"الشرطة الاتحادية",null,"تم التسديد",null,1]
["سوسن مهدي مرهون خميس",3000,2750,250,12,"الشرطة الاتحادية",null,"تم التسديد",null,1]
["علي عبد الرزاق سالم حسين",450,450,65,7,"فرقة التدخل السريع",null,null,null,0]
["سلمان شاكر محمود حياوي",900,900,100,9,"الشرطة الاتحادية",null,null,null,0]
["سلمان شاكر محمود حياوي",225,225,225,1,"الشرطة الاتحادية",null,null,null,0]
["قصي ساجد عبدالله عبد الرزاق",1600,1600,178,9,"محكمة تميز قوى الامن",null,null,null,0]
["سهام نعمة عبد كريدي الزبيدي",900,900,130,7,"الشرطة الاتحادية",null,null,null,0]
["هيثم صالح هادي حسن",600,600,85,7,"الشرطة الاتحادية",null,null,null,0]
["وليد عبد السادة مزعل طلب",225,225,225,1,"فوج طوارئ بغداد",null,null,null,0]
["علي حسن جواد رضا الجبوري",450,450,450,1,"مديرية العقود",null,null,null,0]
["عباس عدنان فرحان عبدالله",250,250,50,5,"الشرطة الاتحادية",null,null,null,0]
["جلال صخي حربي جواد",400,400,80,5,"الشرطة الاتحادية",null,null,null,0]
["اياد كاظم جياد عبدالله ",250,250,50,5,"الشرطة الاتحادية",null,null,null,0]
["فارس عبد الحمزة كريم سالم",1200,1200,170,7,"الشرطة الاتحادية",null,null,null,0]
["وسام عبد الكريم عبد الحسين ",270,270,270,1,"حماية المنشأت",null,null,null,0]
["سارة علي ذياب صالح",320,240,80,5,"حماية المنشأت",null,"تم التسديد",null,1]
["عباس ناجي صبري صالح",600,600,85,7,"مديرية البنى التحتية ",null,null,null,0]
["طارق حسن علوان محيميد ",2250,2000,250,10,"مديرية شرطة النجدة",null,"تم التسديد",null,1]
["طارق حسن علوان محيميد ",1000,750,250,5,"مديرية شرطة النجدة",null,"تم التسديد",null,1]
["حسين صبحي حسن حمادي",250,200,50,5,"مديرية شرطة النجدة",null,"تم التسديد",null,1]
["عدنان جري سلمان محي ",250,200,50,5,"الشرطة الاتحادية",null,"تم التسديد",null,1]
["صلاح حسن عباس متعب",400,400,80,5,"الشرطة الاتحادية",null,null,null,0]
["علي إسماعيل عبد الحسن صبر",360,360,360,1,"قوات حرس الحدود",null,null,null,0]
["مروان عدنان مهدي ظاهر",250,250,50,5,"الشرطة الاتحادية",null,null,null,0]
["مروان عدنان مهدي ظاهر",135,135,135,1,"الشرطة الاتحادية",null,null,null,0]
["فراس عبد الحميد محمد حسين",1200,1000,200,7,"حماية المنشأت",null,"تم التسديد",null,1]
["علي طالب هاشم عكروك",180,180,45,4,"الشرطة الاتحادية",null,null,null,0]
["وسام جليل ثجيل جاسم ",4500,4500,500,9,"مديرية البنى التحتية ",null,null,null,0]
["عبد الحسين عبد محيسن علي",4000,3500,500,9,"حماية المنشأت",null,"تم التسديد",null,1]
["عبدالرزاق مطرود زناد سعيد",900,900,100,9,"الشرطة الاتحادية",null,null,null,0]
["حيدر حسن علوان منهل",1000,1000,200,5,"الشرطة الاتحادية",null,null,null,0]
["صادق جعفر ويس عبد العزيز",900,900,100,9,"الشرطة الاتحادية",null,null,null,0]
["تحسين مصطفى عنتر ولي علي",450,450,450,1,"الشرطة الاتحادية",null,null,null,0]
["علي حامد عبيد جاسم ",75,75,25,3,"الشرطة الاتحادية",null,null,null,0]
["قصي جعفر شهيد حمزة",900,900,100,9,"فرقة التدخل السريع",null,null,null,0]
["حيدر محسن خليفة إبراهيم",600,600,85,7,"كلية الشرطة",null,null,null,0]
["طه كنعان عبد المنعم مصطفى",1600,1600,200,8,"الشرطة الاتحادية",null,null,null,0]
["طه كنعان عبد المنعم مصطفى",2250,2250,325,7,"الشرطة الاتحادية",null,null,null,0]
["حسام عبد الأمير صبري معين",293,163,65,7,"شرطة النجدة",null,"تم التسديد","تم التسديد",2]
["محمد عبد الحسين كاظم يوسف ",320,190,65,7,"مديرية شرطة النجدة",null,"تم التسديد","تم التسديد",2]
["محمد عبد الحسين كاظم يوسف ",430,260,85,7,"مديرية شرطة النجدة",null,"تم التسديد","تم التسديد",2]
["محمد عبد الحسين كاظم يوسف ",900,300,300,5,"مديرية شرطة النجدة",null,"تم التسديد","تم التسديد",2]
["محمد عبد الحسين كاظم يوسف ",25,-25,25,3,"مديرية شرطة النجدة",null,"تم التسديد","تم التسديد",2]
["محمد عبد الحسين كاظم يوسف ",150,50,50,5,"مديرية شرطة النجدة",null,"تم التسديد","تم التسديد",2]
["ضياء حسين علي شعبان ",4500,3500,500,9,"الشرطة الاتحادية",null,"تم التسديد","تم التسديد",2]
["حسين صبحي حسن حمادي",600,514,86,7,"مديرية شرطة بغداد",null,"تم التسديد",null,1]
["عدنان حسوني صالح",250,200,50,5,"مديرية شرطة بغداد",null,"تم التسديد",null,1]
["عدنان حسوني صالح",250,250,50,5,"مديرية شرطة بغداد",null,null,null,0]
["طالب لفتة نوح صريم",150,50,50,5,"مديرية نجدة بغداد",null,"تم التسديد","تم التسديد",2]
["عدنان كامل عنيد جابر ",2500,2000,250,12,"مديرية نجدة بغداد",null,"تم التسديد","تم التسديد",2]
["عدنان كامل عنيد جابر ",1280,760,260,7,"مديرية نجدة بغداد",null,"تم التسديد","تم التسديد",2]
["علي رحمة عذاب حسن",200,100,50,5,"مديرية شرطة النجدة",null,"تم التسديد","تم التسديد",2]
["صادق جعفر ويس عبد العزيز",3500,3500,375,9,"الشرطة الاتحادية",null,null,null,0]
["حمزة عبد دخان مجدوم",250,250,50,5,"الشرطة الاتحادية",null,null,null,0]
["امين احمد صافي عبد الجبار",2500,2500,250,10,"الشرطة الاتحادية",null,null,null,0]
["امين احمد صافي عبد الجبار",600,600,85,7,"الشرطة الاتحادية",null,null,null,0]
["جبار سلمان كاظم خلف ",600,600,85,7,"الشرطة الاتحادية",null,null,null,0]
["جبار سلمان كاظم خلف ",25,25,25,1,"الشرطة الاتحادية",null,null,null,0]
["جبار سلمان كاظم خلف ",250,250,50,5,"الشرطة الاتحادية",null,null,null,0]
["سحر ياسين كاظم عبود",250,250,50,5,"مديرية شرطة بغداد",null,null,null,0]
["سحر ياسين كاظم عبود",400,400,80,5,"مديرية شرطة بغداد",null,null,null,0]
["سحر ياسين كاظم عبود",250,{"$f":"B908-J908*D908","v":250},50,5,"مديرية شرطة بغداد",null,null,null,{"$f":"COUNTIF(H908:I908,\"تم التسديد\")","v":0}]
["عبد القادر سمير بازول صالح",250,250,50,5,"الشرطة الاتحادية",null,null,null,0]
["عبد القادر سمير بازول صالح",250,250,50,5,"الشرطة الاتحادية",null,null,null,0]
["سيف جعفر جبار عبد رمضان",250,250,50,5,"الشرطة الاتحادية",null,null,null,0]
["سيف جعفر جبار عبد رمضان",180,180,180,1,"الشرطة الاتحادية",null,null,null,0]
["عباس راضي كاظم فرحان",250,250,50,5,"الشرطة الاتحادية",null,null,null,0]
["عباس راضي كاظم فرحان",25,25,25,1,"الشرطة الاتحادية",null,null,null,0]
["عباس راضي كاظم فرحان",45,45,45,1,"الشرطة الاتحادية",null,null,null,0]
["محمد عبد الزهرة كزيز وطن",250,250,50,5,"مديرية التدريب والتأهيل",null,null,null,0]
["عباس عبدالله سعد عبد",600,600,85,7,"مديرية الجنسية العامة",null,null,null,0]
["عباس عبدالله سعد عبد",250,250,50,5,"مديرية الجنسية العامة",null,null,null,0]
["عباس عبدالله سعد عبد",400,400,80,5,"مديرية الجنسية العامة",null,null,null,0]
["عباس عبدالله سعد عبد",180,180,180,1,"مديرية الجنسية العامة",null,null,null,0]
["هيثم مهدي هادي عبد الرضا",135,135,135,1,"الشرطة الاتحادية",null,null,null,0]
["علي نجم عبودي ذهب العبادي",3500,3500,375,9,"الشرطة الاتحادية",null,null,null,0]
["علي نجم عبودي ذهب العبادي",600,600,85,7,"الشرطة الاتحادية",null,null,null,0]
["احمد محمد شكري محمود ",3000,3000,425,7,"مديرية البنى التحتية ",null,null,null,0]
["اكرم حميد محمود دحام",1500,1500,150,10,"الشرطة الاتحادية",null,null,null,0]
["اكرم حميد محمود دحام",250,250,50,5,"الشرطة الاتحادية",null,null,null,0]
["اكرم حميد محمود دحام",45,45,45,1,"الشرطة الاتحادية",null,null,null,0]
["عدنان عاكول زغير فياض",600,600,85,7,"محكمة تميز قوى الامن",null,null,null,0]
["محمد حسن هادي مسرهد",600,600,85,7,"الشرطة الاتحادية",null,null,null,0]
["حسين فرحان بدن ثويني",3500,3000,500,9,"مديرية نجدة بغداد",null,"تم التسديد",null,1]
["ماجد جاسب حسن شلش ",4500,4000,500,9,"قوات حرس الحدود",null,"تم التسديد",null,1]
["جاسم خالد حكمان صالح ",600,515,85,7,"قوات حرس الحدود",null,"تم التسديد",null,1]
["صفاء حسن حمود بطي",4500,4000,500,9,"الشرطة الاتحادية",null,"تم التسديد",null,1]
["سلام ياسر عبدالله جاسم ",2250,2250,325,7,"الشرطة الاتحادية",null,null,null,0]
["سلام ياسر عبدالله جاسم ",500,500,100,5,"الشرطة الاتحادية",null,null,null,0]
["قيصر حويس علي شخير",1400,1050,175,10,"مديرية النجدة العامة",null,"تم التسديد","تم التسديد",2]
["قيصر حويس علي شخير",320,190,65,7,"مديرية النجدة العامة",null,"تم التسديد","تم التسديد",2]
["فلاح حسن حربي احمد ",250,250,50,5,"قوات حرس الحدود",null,null,null,0]
["اكرم عباس حسن صحن",45,45,45,1,"مديرية التدريب والتأهيل",null,null,null,0]
["علاء الدين شاكر حمود العبودي",1500,1500,150,10,"الشرطة الاتحادية",null,null,null,0]
["محمد عبد الزهرة محيسن حلو ",200,150,50,5,"حماية المنشأت",null,"تم التسديد",null,1]
["طالب لفتة نوح صريم",640,380,130,7,"مديرية النجدة العامة",null,"تم التسديد","تم التسديد",2]
["عصام محمد علي جاسم الربيعي",900,900,130,7,"مديرية التدريب والتأهيل",null,null,null,0]
["عصام محمد علي جاسم الربيعي",750,750,150,5,"مديرية التدريب والتأهيل",null,null,null,0]
["عصام محمد علي جاسم الربيعي",800,800,200,4,"مديرية التدريب والتأهيل",null,null,null,0]
["رائد ناصر حسن ثامر ",450,450,65,7,"الشرطة الاتحادية",null,null,null,0]
["رائد ناصر حسن ثامر ",250,250,50,5,"الشرطة الاتحادية",null,null,null,0]
["رائد ناصر حسن ثامر ",400,400,100,4,"الشرطة الاتحادية",null,null,null,0]
["ضياء الدين فالح حسن",250,250,50,5,"محكمة تميز قوى الامن",null,null,null,0]
["ضياء الدين فالح حسن",250,250,50,5,"محكمة تميز قوى الامن",null,null,null,0]
["حسين مهدي صالح كاظم",250,250,50,5,"معهد اعداد المفوضين",null,null,null,0]
["خالد كامل عبد الوهاب ",250,250,50,5,"وكالة شؤون الشرطة ",null,null,null,0]
["بشار هادي مظلوم عناد ",2500,1500,500,7,"شرطة نجدة بغداد",null,"تم التسديد","تم التسديد",2]
["طارق حسين علي فتاح ",3150,2250,450,7,"مديرية شرطة بغداد",null,"تم التسديد","تم التسديد",2]
["سحر ياسين كاظم عبود",250,150,50,5,"مديرية شرطة بغداد",null,"تم التسديد","تم التسديد",2]
["محمد كريم رحيمة حمد",250,150,50,5,"الشرطة الاتحادية",null,"تم التسديد","تم التسديد",2]
["محمد كريم رحيمة حمد",250,250,50,5,"الشرطة الاتحادية",null,null,null,0]
["جاسم محمد صالح خلف ",250,250,50,5,"الشرطة الاتحادية",null,null,null,0]
["علي كاطع كاظم فلحي ",200,150,50,5,"حماية المنشأت",null,"تم التسديد",null,1]
["عامر عبد العزيز خضير محيميد",3500,3500,500,7,"مديرية شرطة بغداد",null,null,null,0]
["محمد كريم رحيمة حمد",250,250,50,5,"الشرطة الاتحادية",null,null,null,0]
["محمد فخري كامل ثجيل",500,500,100,5,"الشرطة الاتحادية",null,null,null,0]
["محمد فخري كامل ثجيل",700,700,100,7,"الشرطة الاتحادية",null,null,null,0]
["حيدر عدنان دلي علي ",250,250,50,5,"شرطة بغداد",null,null,null,0]
["ليث فاضل حبيب سلمان",600,600,86,7,"الشرطة الاتحادية",null,null,null,0]
["ليث فاضل حبيب سلمان",250,250,50,5,"الشرطة الاتحادية",null,null,null,0]
["حاتم اكرم إبراهيم عباس ",428,256,86,7,"مديرية نجدة بغداد",null,"تم التسديد","تم التسديد",2]
["تيسير حامد محمود حسن",2000,1625,375,5,"الشرطة الاتحادية",null,"تم التسديد",null,1]
["تيسير حامد محمود حسن",250,200,50,5,"الشرطة الاتحادية",null,"تم التسديد",null,1]
["سعدي فاضل عباس ناصر ",250,200,50,5,"الشرطة الاتحادية",null,"تم التسديد",null,1]
["سيروان شجاع جاسم يعقوب",250,250,50,5,"الشرطة الاتحادية",null,null,null,0]
["سيروان شجاع جاسم يعقوب",25,{"$f":"B972-J972*D972","v":25},25,1,"الشرطة الاتحادية",null,null,null,{"$f":"COUNTIF(H972:I972,\"تم التسديد\")","v":0}]
["خالد جابر عبد العزيز سليمان",250,250,50,5,"الشرطة الاتحادية",null,null,null,0]
["علي سلومي كومان خزاز  ",250,250,50,5,"الشرطة الاتحادية",null,null,null,0]
["فاضل عباس سعد شندي",180,180,45,4,"مديرية الخدمات الطبية",null,null,null,0]
["كاظم كريم جاسم محمد",250,250,50,5,"الشرطة الاتحادية",null,null,null,0]
["عباس راضي كاظم فرحان",900,900,100,9,"الشرطة الاتحادية",null,null,null,0]
["عمر منديل محيسن جواد",3500,3500,350,10,"الشرطة الاتحادية",null,null,null,0]
["عمر منديل محيسن جواد",25,25,25,1,"الشرطة الاتحادية",null,null,null,0]
["جاسم خالد حكمان صالح ",900,900,100,9,"قوات حرس الحدود",null,null,null,0]
["جاسم خالد حكمان صالح ",500,500,100,5,"قوات حرس الحدود",null,null,null,0]
["جاسم خالد حكمان صالح ",250,250,50,5,"قوات حرس الحدود",null,null,null,0]
["رائد ناصر حسن ثامر ",1800,1800,200,9,"الشرطة الاتحادية",null,null,null,0]
["عقيل محسن ماجد عطية ",900,900,100,9,"الشرطة الاتحادية",null,null,null,0]
["حسين علي نعمة شبار العبودي",1800,1800,200,9,"مديرية التدريب البدني",null,null,null,0]
["سعاد عبد إبراهيم المراشك",900,900,100,9,"وكالة شؤون الشرطة ",null,null,null,0]
["محمد حسن هادي مسرهد",400,400,80,5,"الشرطة الاتحادية",null,null,null,0]
["محمد حسن هادي مسرهد",250,250,50,5,"الشرطة الاتحادية",null,null,null,0]
["محمد حسن هادي مسرهد",250,250,50,5,"الشرطة الاتحادية",null,null,null,0]
["علي صالح حسن اعليب ",900,900,100,9,"الشرطة الاتحادية",null,null,null,0]
["محمود سباح موسى مشكور",1800,1800,200,9,"فرقة التدخل السريع",null,null,null,0]
["محمود سباح موسى مشكور",250,250,50,5,"فرقة التدخل السريع",null,null,null,0]
["قحطان حكمان ناصر محمد",600,500,100,7,"حماية المنشأت",null,"تم التسديد",null,1]
["محمد كريم رحيمة حمد",1800,1800,200,9,"الشرطة الاتحادية",null,null,null,0]
["عدنان جري سلمان محي ",900,900,100,9,"الشرطة الاتحادية",null,null,null,0]
["علي مهدي حسين لفتة",250,250,50,5,"الرد السريع",null,null,null,0]
["علي مهدي حسين لفتة",900,900,100,9,"الرد السريع",null,null,null,0]
["ماهر حميد عبود داغر",3500,3500,350,10,"مديرية الاتصالات ",null,null,null,0]
["وعد لطفي حسين نور الدين",2700,2700,300,9,"حماية المنشأت",null,null,null,0]
["خالد وليد زكريا خليل",2700,2400,300,10,"حماية المنشأت",null,"تم التسديد",null,1]
["نصيف جاسم مبارك جريدة",700,700,100,7,"مديرية امن الافراد",null,null,null,0]
["علاء حسن عباس متعب",2700,2700,300,9,"الشرطة الاتحادية",null,null,null,0]
["نصير عبد العادل مهاوس",2700,2700,300,9,"قوات حرس الحدود",null,null,null,0]
["حامد عيدان موزان علي",700,500,100,9,"قاطع نجدة الرشاد",null,"تم التسديد","تم التسديد",2]
["حامد عيدان موزان علي",700,500,100,9,"قاطع نجدة الرشاد",null,"تم التسديد","تم التسديد",2]
["عدي عدنان صديق صالح",900,800,100,9,"الشرطة الاتحادية",null,"تم التسديد",null,1]
["حيدر فاضل حمزة سلمان ",1600,1440,160,10,"الشرطة الاتحادية",null,"تم التسديد",null,1]
["خالد جابر عبد العزيز سليمان",900,900,100,9,"الشرطة الاتحادية",null,null,null,0]
["حيدر فاضل حمزة سلمان ",900,900,100,9,"الشرطة الاتحادية",null,null,null,0]
["علي وحيد جبر حسن ",3500,3500,350,10,"مديرية شرطة بغداد",null,null,null,0]
["حيدر فرحان محمد حسين ",200,150,50,5,"حماية المنشأت",null,"تم التسديد",null,1]
["محمد كريم عبد مهاوي",3150,3150,315,10,"الشرطة الاتحادية",null,null,null,0]
["علي جمال فيصل محمد ",900,900,100,9,"مديرية النجدة قاطع الكندي",null,null,null,0]
["إبراهيم محمد كريم رشيد",2100,2100,300,7,"مديرية شرطة بغداد",null,null,null,0]
["محمد فخري كامل ثجيل",750,750,83,9,"الشرطة الاتحادية",null,null,null,0]
["احمد كريم رمح علي المجمعي",1600,1600,177,9,"فرقة التدخل السريع",null,null,null,0]
["علي كاظم حميد حسين ",1500,1500,200,8,"الشرطة الاتحادية",null,null,null,0]
["اكرم عباس حسن صحن",900,900,100,9,"مديرية التدريب والتأهيل",null,null,null,0]
["حبيب محمد جاسم حطاب",1500,1500,200,8,"الشرطة الاتحادية",null,null,null,0]
["سحر ياسين كاظم عبود",250,250,50,5,"مديرية شرطة بغداد",null,null,null,0]
["حيدر رحيم علي ضويع",1600,1600,177,9,"الشرطة الاتحادية",null,null,null,0]
["عادل محمد داخل شايع",1650,1050,300,8,"مديرية نجدة بغداد",null,"تم التسديد","تم التسديد",2]
["صلاح عبد المهدي صالح عبد",75,50,25,3,"مديرية التدريب والتأهيل",null,"تم التسديد",null,1]
["محمد مهدي صالح عبد الهادي",3500,3150,350,10,"الشرطة الاتحادية",null,"تم التسديد",null,1]
["عادل رشيد حميد خماس",1090,780,155,9,"مديرية نجدة بغداد",null,"تم التسديد","تم التسديد",2]
["عادل رشيد حميد خماس",450,150,150,5,"مديرية نجدة بغداد",null,"تم التسديد","تم التسديد",2]
["عادل رشيد حميد خماس",150,50,50,5,"مديرية نجدة بغداد",null,"تم التسديد","تم التسديد",2]
["ضحى عبد الاله عبد الحسين ",250,200,50,5,"الشرطة الاتحادية",null,"تم التسديد",null,1]
["ضحى عبد الاله عبد الحسين ",75,50,25,3,"الشرطة الاتحادية",null,"تم التسديد",null,1]
["علي حسين صكبان سلمان ",3500,3500,350,10,"مديرية الصيانة والخدمات",null,null,null,0]
["فراس عبد الحميد محمد حسين",667,584,83,9,"حماية المنشأت",null,"تم التسديد",null,1]
["ضياء عبد الحسين مهاوي سلمان",250,250,50,5,"مكتب الوزير",null,null,null,0]
["لؤي قدوري عبد الوهاب نوري",546,392,77,9,"مديرية نجدة بغداد",null,"تم التسديد","تم التسديد",2]
["حيدر عدنان دلي علي ",1400,1400,155,9,"قيادة شرطة بغداد",null,null,null,0]
["لؤي قدوري عبد الوهاب نوري",546,392,77,9,"مديرية نجدة بغداد",null,"تم التسديد","تم التسديد",2]
["حيدر حسين جاسم محمد الخفاجي",900,{"$f":"B1036-J1036*D1036","v":900},100,9,"حماية المنشأت والشخصيات",null,null,null,{"$f":"COUNTIF(H1036:I1036,\"تم التسديد\")","v":0}]
["حيدر حسين جاسم محمد الخفاجي",250,250,50,5,"حماية المنشأت والشخصيات",null,null,null,0]
["صفاء دايخ فرحان وثيج",750,750,83,9,"مديرية شرطة بغداد",null,null,null,0]
["فراس حسين عباس مريوش",1600,1200,200,10,"مديرية النجدة",null,"تم التسديد","تم التسديد",2]
["فراس حسين عباس مريوش",700,500,100,9,"مديرية النجدة",null,"تم التسديد","تم التسديد",2]
["باسم هادي احمد نايف",1980,1410,285,9,"مديرية نجدة بغداد",null,"تم التسديد","تم التسديد",2]
["مرتضى وادي عبد محمد ",1980,1410,285,9,"مديرية نجدة بغداد",null,"تم التسديد","تم التسديد",2]
["احمد عطية جيجان عبيد",250,250,50,5,"الشرطة الاتحادية",null,null,null,0]
["زيد صالح حسن عبد الامام",2550,2550,285,9,"الرد السريع",null,null,null,0]
["وسام عباس عطية عبيد الحسيني",2250,2250,249,9,"فرقة التدخل السريع",null,null,null,0]
["طه عبد الستار إبراهيم حمد",2250,2250,249,9,"مديرية شرطة بغداد",null,null,null,0]
["طه عبد الستار إبراهيم حمد",250,250,50,5,"مديرية شرطة بغداد",null,null,null,0]
["علاء مدب حسن خميس ",700,700,77,9,"الشرطة الاتحادية",null,null,null,0]
["علي سلمان حاوي علوان ",750,750,83,9,"مديرية شرطة بغداد",null,null,null,0]
["محمد صادق نور محمد ",750,750,83,9,"مديرية شرطة بغداد",null,null,null,0]
["لؤي عبد الحسين صيهود ",850,850,95,9,"مديرية الجنسية العامة",null,null,null,0]
["لؤي عبد الحسين صيهود ",750,750,83,9,"مديرية الجنسية العامة",null,null,null,0]
["علي جمال فيصل محمد ",250,250,50,5,"مديرية نجدة بغداد",null,null,null,0]
["علي جمال فيصل محمد ",750,750,83,9,"مديرية نجدة بغداد",null,null,null,0]
["محمود سباح موسى مشكور",700,700,87,8,"فرقة التدخل السريع",null,null,null,0]
["محمود سباح موسى مشكور",250,250,50,5,"فرقة التدخل السريع",null,null,null,0]
["محمود سباح موسى مشكور",75,75,25,3,"فرقة التدخل السريع",null,null,null,0]
["حيدر علي نعمة شبار ",250,250,50,5,"مديرية العاب نادي الشرطة",null,null,null,0]
["حيدر علي نعمة شبار ",75,75,25,3,"مديرية العاب نادي الشرطة",null,null,null,0]
["حيدر علي نعمة شبار ",700,700,87,8,"مديرية العاب نادي الشرطة",null,null,null,0]
["حوراء فرحان عباس حلو ",600,600,71,8,"مركز تدريب النجف",null,null,null,0]
["حوراء فرحان عباس حلو ",1800,1800,200,9,"مركز تدريب النجف",null,null,null,0]
["حوراء فرحان عباس حلو ",600,600,85,7,"مركز تدريب النجف",null,null,null,0]
["حوراء فرحان عباس حلو ",75,75,25,3,"مركز تدريب النجف",null,null,null,0]
["معتز شاكر خضير دايم",700,700,100,7,"مديرية التدريب",null,null,null,0]
["معتز شاكر خضير دايم",400,400,80,5,"مديرية التدريب",null,null,null,0]
["نور مسلم رحومي حمادي",600,600,85,7,"مديرية شرطة النجف",null,null,null,0]
["نور مسلم رحومي حمادي",900,900,100,9,"مديرية شرطة النجف",null,null,null,0]
["نور مسلم رحومي حمادي",250,250,50,5,"مديرية شرطة النجف",null,null,null,0]
["علي سلومي كومان خزاز  ",1500,1500,166,9,"الشرطة الاتحادية",null,null,null,0]
["علي سلومي كومان خزاز  ",750,750,83,9,"الشرطة الاتحادية",null,null,null,0]
["جعفر صادق عبيد بشيت",75,75,25,3,"فرقة التدخل السريع",null,null,null,0]
["احمد كريم رمح علي المجمعي",1600,1600,89,9,"فرقة التدخل السريع",null,null,null,0]
["وسام عباس عطية عبيد الحسيني",700,700,83,9,"فرقة التدخل السريع",null,null,null,0]
["محمد مجيد صغير فاضل ",250,250,50,5,"قوات حرس الحدود",null,null,null,0]
["محمد مجيد صغير فاضل ",600,600,85,7,"قوات حرس الحدود",null,null,null,0]
["علي جمال فيصل محمد ",900,900,100,9,"مديرية نجدة بغداد",null,null,null,0]
["حسام حمزة مظلوم عبد الرضا",3150,2800,350,10,"حماية المنشأت",null,"تم التسديد",null,1]
["حيدر عدنان دلي علي ",750,750,83,9,"قيادة شرطة بغداد",null,null,null,0]
["حسين علي حمادي علي ",3150,2800,350,10,"حماية المنشأت",null,"تم التسديد",null,1]
["حيدر حسين جاسم محمد الخفاجي",800,800,89,9,"حماية المنشات والشخصيات",null,null,null,0]
["حيدر حسين جاسم محمد الخفاجي",250,250,50,5,"حماية المنشات والشخصيات",null,null,null,0]
["علي عبد الرحيم كاطع عبود",3500,3500,350,5,"الشرطة الاتحادية",null,null,null,0]
["اشرف عبد الواحد إبراهيم مزعل",2250,2250,250,9,"مديرية البنى التحتية ",null,null,null,0]
["محمد إبراهيم محمود محمد",800,800,89,9,"امن وسلامة الوزارة",null,null,null,0]
["احسان علاوي جليل حسن",1800,1800,320,5,"مكتب الوزير",null,null,null,0]
["احمد محي محمد حسين ",334,168,83,6,"مديرية النجدة العامة",null,"تم التسديد","تم التسديد",2]
["جلال عبود سلمان حسن",500,500,83,6,"مديرية شرطة بغداد",null,null,null,0]
["جلال عبود سلمان حسن",250,250,50,5,"مديرية شرطة بغداد",null,null,null,0]
["علي سعد نعيم بلعوط ",1000,1000,142,7,"قوات حرس الحدود",null,null,null,0]
["قصي ساجد عبدالله عبد الرزاق",900,900,100,9,"محكمة تميز قوى الامن",null,null,null,0]
["صفاء حسين علوان حمود",3500,3500,350,10,"مديرية التدريب",null,null,null,0]
["خليل خزعل بركات جبر",900,900,100,9,"مديرية نجدة بغداد",null,null,null,0]
["خليل خزعل بركات جبر",1600,1600,178,9,"مديرية نجدة بغداد",null,null,null,0]
["سهيل نجم مطشر لعيبي",1600,1600,178,9,"مديرية شرطة بغداد",null,null,null,0]
["فاضل كاظم حسين مري",800,800,89,9,"مديرية شرطة بغداد",null,null,null,0]
["محمد صادق نور محمد ",1600,1600,178,9,"مديرية شرطة بغداد",null,null,null,0]
["محمد صادق نور محمد ",750,750,83,9,"مديرية شرطة بغداد",null,null,null,0]
["مرتضى حسين عاشور حمزة ",900,900,100,9,"فرقة الرد السريع",null,null,null,0]
["مرتضى حسين عاشور حمزة ",800,{"$f":"B1100-J1100*D1100","v":800},89,9,"فرقة الرد السريع",null,null,null,{"$f":"COUNTIF(H1100:I1100,\"تم التسديد\")","v":0}]
["مرتضى حسين عاشور حمزة ",150,150,50,3,"فرقة الرد السريع",null,null,null,0]
["محمد كاظم قنبر صنكور ",700,500,100,9,"مديرية نجدة بغداد",null,"تم التسديد","تم التسديد",2]
["محمد كاظم قنبر صنكور ",150,50,50,5,"مديرية نجدة بغداد",null,"تم التسديد","تم التسديد",2]
["هشام عماد خيري إبراهيم",834,668,166,7,"حماية المنشأت",null,"تم التسديد",null,1]
["رعد خزعل كاظم حسين ",1600,1600,178,9,"الشرطة الاتحادية",null,null,null,0]
["خماس كاظم خماس مايع",711,622,89,9,"حماية المنشأت",null,"تم التسديد",null,1]
["خالد وليد زكريا خليل",200,150,50,5,"حماية المنشأت",null,"تم التسديد",null,1]
["مصطفى سمير حمودي حسن",3000,3000,300,10,"الشرطة الاتحادية",null,null,null,0]
["مصطفى سمير حمودي حسن",700,700,100,7,"الشرطة الاتحادية",null,null,null,0]
["احمد صادق جعفر غضبان ",1350,1200,150,10,"الشرطة الاتحادية",null,"تم التسديد",null,1]
["عبد الأمير سعدي رشيد جابر",450,450,75,6,"امن وسلامة الوزارة",null,null,null,0]
["عبد الأمير سعدي رشيد جابر",500,500,100,5,"امن وسلامة الوزارة",null,null,null,0]
["علي رعد علي حسين ",450,450,70,6,"الشرطة الاتحادية",null,null,null,0]
["محمد عبد الزهرة كزيز وطن",450,450,70,6,"مديرية التدريب والتأهيل",null,null,null,0]
["علاء علي حسين ولي ",1280,960,160,10,"الدفاع المدني ",null,"تم التسديد","تم التسديد",2]
["عدي عدنان صديق صالح",2400,2400,264,9,"الشرطة الاتحادية",null,null,null,0]
["مصطفى جمعة حسين شمخي",712,624,88,9,"حماية المنشأت",null,"تم التسديد",null,1]
["حيدر احمد عباس سلوم ",700,700,100,7,"قوات حرس الحدود",null,null,null,0]
["حاتم اكرم إبراهيم عباس ",334,168,83,6,"مديرية نجدة بغداد",null,"تم التسديد","تم التسديد",2]
["نورس يوسف جبر ضايع ",250,250,50,5,"الشرطة الاتحادية",null,null,null,0]
["محمد إبراهيم محمود محمد",3000,2700,300,10,"امن وسلامة الوزارة",null,null,"تم التسديد",1]
["بارق كاظم جودي خضير ",2500,2250,250,10,"الشرطة الاتحادية",null,null,"تم التسديد",1]
["طه عباس محمد عباس ",1600,1600,177,9,"الشرطة الاتحادية",null,null,null,0]
["طه عباس محمد عباس ",250,250,50,5,"الشرطة الاتحادية",null,null,null,0]
["محمد مجيد صغير فاضل ",250,250,50,5,"قوات حرس الحدود",null,null,null,0]
["علي رعد علي حسين ",1800,1800,200,9,"الشرطة الاتحادية",null,null,null,0]
["حيدر احمد عباس سلوم ",1400,1400,200,7,"قوات حرس الحدود",null,null,null,0]
["علي فايز جاسم عبيس ",3000,3000,300,10,"الشرطة الاتحادية",null,null,null,0]
["سيف علي عبد علي ",1500,1500,150,10,"مديرية الاتصالات ",null,null,null,0]
["حميد عبد الزهرة كزير وطن",3000,3000,300,10,"فوج طوارئ بغداد",null,null,null,0]
["حميد عبد الزهرة كزير وطن",75,75,25,3,"فوج طوارئ بغداد",null,null,null,0]
["إبراهيم عبدالله فخري رسول",600,300,150,6,"نجدة بغداد المقر العام",null,"تم التسديد","تم التسديد",2]
["علي صابر عبد زاير ",1422,1244,178,9,"حماية المنشات والشخصيات",null,"تم التسديد",null,1]
["اياد صبر محمد ظاهر ",900,900,100,9,"مديرية شرطة بغداد ",null,null,null,0]
["حسين سالم كريم حسن",150,150,50,3,"الشرطة الاتحادية",null,null,null,0]
["عدنان عاكول زغير فياض",250,250,50,5,"محكمة تميز قوى الامن",null,null,null,0]
["عدنان عاكول زغير فياض",25,25,25,1,"محكمة تميز قوى الامن",null,null,null,0]
["عقيل ستار شاوي حمود الساعدي",483,309,87,8,"مديرية نجدة بغداد",null,"تم التسديد","تم التسديد",2]
["عقيل حسن عبد الأمير يوسف",1200,900,150,10,"مديرية نجدة بغداد",null,"تم التسديد","تم التسديد",2]
["عقيل حسن عبد الأمير يوسف",700,500,100,9,"مديرية نجدة بغداد",null,"تم التسديد","تم التسديد",2]
["علي احمد حمة نادر",1600,1600,177,9,"كلية الشرطة",null,null,null,0]
["علي احمد حمة نادر",1800,1800,200,9,"كلية الشرطة",null,null,null,0]
["حلمي عوني فاضل حسين",75,75,25,3,"مديرية شرطة بغداد",null,null,null,0]
["سعد قاسم محمد بابير",1250,1250,125,10,"فرقة التدخل السريع",null,null,null,0]
["صفاء جبار هادي مولى",800,800,88,9,"مديرية شرطة بغداد",null,null,null,0]
["صفاء عبد الرزاق محسن عبود",1600,1600,177,9,"الشرطة الاتحادية",null,null,null,0]
["هشام عماد خيري إبراهيم",800,700,100,9,"حماية المنشأت",null,"تم التسديد",null,1]
["حسين محمد كامل منشد ",500,500,83,6,"الشرطة الاتحادية",null,null,null,0]
["حسين محمد كامل منشد ",700,700,87,8,"الشرطة الاتحادية",null,null,null,0]
["محمد خليل جلوب مهدي",1600,1600,177,9,"مديرية شرطة بغداد ",null,null,null,0]
["عقيل محسن ماجد عطية ",1500,1500,150,10,"مديرية امن الافراد",null,null,null,0]
["محمد كامل كاطع بندر",900,900,100,9,"مديرية التدريب والتأهيل",null,null,null,0]
["محمد عباس عبيد شراد ",1500,1500,150,10,"الشرطة الاتحادية",null,null,null,0]
["علاء الدين زامل حنون ",250,250,50,5,"الشرطة الاتحادية",null,null,null,0]
["علي سلمان حاوي علوان ",600,600,86,7,"مديرية شرطة بغداد",null,null,null,0]
["نبيل قاسم مشتت بطل ",94,63,31,4,"حماية المنشأت",null,"تم التسديد",null,1]
["سحر ياسين كاظم عبود",450,450,75,7,"مديرية شرطة بغداد",null,null,null,0]
["عقيل لازم خلف ثامر",800,700,100,9,"حماية المنشأت",null,"تم التسديد",null,1]
["سيف كاظم داوود سلمان ",900,900,100,9,"الشرطة الاتحادية",null,null,null,0]
["سيف كاظم داوود سلمان ",800,800,88,9,"الشرطة الاتحادية",null,null,null,0]
["حميد كاظم سبتي خلف ",700,700,87,8,"قوات حرس الحدود",null,null,null,0]
["حميد كاظم سبتي خلف ",450,450,75,6,"قوات حرس الحدود",null,null,null,0]
["حميد كاظم سبتي خلف ",1500,1500,150,10,"قوات حرس الحدود",null,null,null,0]
["حميد كاظم سبتي خلف ",350,{"$f":"B1164-J1164*D1164","v":350},70,5,"قوات حرس الحدود",null,null,null,{"$f":"COUNTIF(H1164:I1164,\"تم التسديد\")","v":0}]
["قمر عباس محمد خلف",3000,3000,428,7,"فرقة الرد السريع",null,null,null,0]
["فواز موفق شرقي رزوقي",900,900,100,9,"الشرطة الاتحادية",null,null,null,0]
["فواز موفق شرقي رزوقي",200,200,50,4,"الشرطة الاتحادية",null,null,null,0]
["حامد جواد كاظم شمخي ",1750,1750,175,10,"الشرطة الاتحادية",null,null,null,0]
["احمد شاكر عواد عاشور ",1125,1000,125,10,"حماية المنشأت",null,"تم التسديد",null,1]
["عامر إسماعيل عبد الرزاق حسون",350,350,50,7,"مديرية العاب نادي الشرطة",null,null,null,0]
["احمد أسامة ياسين عبد الحسين ",200,200,50,4,"معهد اعداد المفوضين",null,null,null,0]
["مخلص عباس كريم غالي العقابي",50,50,25,3,"مديرية امن الافراد",null,null,null,0]
["فراس عبد الحميد محمد حسين",1350,1200,150,10,"حماية المنشأت",null,"تم التسديد",null,1]
["هيثم جاسم محمد حسن",700,700,87,8,"الشرطة الاتحادية",null,null,null,0]
["هيثم جاسم محمد حسن",200,200,50,4,"الشرطة الاتحادية",null,null,null,0]
["غازي فيصل ستار جاسم ",250,250,50,5,"فرقة التدخل السريع",null,null,null,0]
["علي رعد علي حسين ",25,25,25,1,"الشرطة الاتحادية",null,null,null,0]
["علي رعد علي حسين ",75,75,25,3,"الشرطة الاتحادية",null,null,null,0]
["علي رعد علي حسين ",700,700,89,8,"الشرطة الاتحادية",null,null,null,0]
["عادل هادي صالح خضير ",1600,1600,177,9,"كلية الشرطة",null,null,null,0]
["علاء موسى عبد النبي شلاكة ",1250,1250,125,10,"مديرية الصيانة والخدمات",null,null,null,0]
["علاء موسى عبد النبي شلاكة ",700,700,87,8,"مديرية الصيانة والخدمات",null,null,null,0]
["نهاد باسم مجيد حسين ",878,530,174,8,"مديرية النجدة",null,"تم التسديد","تم التسديد",2]
["محمد عباس حاجم سبع",1575,1400,175,10,"حماية المنشأت",null,"تم التسديد",null,1]
["محمد عباس حاجم سبع",1125,1000,125,10,"حماية المنشأت",null,"تم التسديد",null,1]
["بتول علي زغير فليفل",700,700,87,8,"الشرطة الاتحادية",null,null,null,0]
["علي عبدالله عبيد حسين ",1800,1800,257,7,"الشرطة الاتحادية",null,null,null,0]
["مؤيد عبد المجيد حميد راضي",250,250,50,5,"فرقة الرد السريع",null,null,null,0]
["مؤيد عبد المجيد حميد راضي",75,75,25,3,"فرقة الرد السريع",null,null,null,0]
["مؤيد عبد المجيد حميد راضي",75,75,25,4,"فرقة الرد السريع",null,null,null,0]
["مصطفى جمعة حسين شمخي",800,700,100,9,"حماية المنشأت",null,"تم التسديد",null,1]
["احمد عبد علكم راهي الحسناوي",900,900,100,9,"قيادة شرطة بغداد",null,null,null,0]
["علي سعد نعيم بلعوط ",1750,1750,175,10,"قوات حرس الحدود","2018-06-19",null,null,0]
["سيف جواد كاظم تعيب ",1400,1400,175,8,"مكتب المستشار","2018-06-19",null,null,0]
["محمد خالد فياض محسن",1250,1250,125,10,"الشرطة الاتحادبة ","2018-06-19",null,null,0]
["علي صادق حسن فليح ",500,500,100,5,"كلية الشرطة","2018-06-19",null,null,0]
["جورج داوود جورج داوود",350,350,50,7,"الشرطة الاتحادية","2018-06-19",null,null,0]
["جورج داوود جورج داوود",200,200,50,4,"الشرطة الاتحادية","2018-06-19",null,null,0]
["ضياء حسن درباس حسين ",25,25,25,1,"الشرطة الاتحادية فق 4","2018-06-19",null,null,0]
["ضياء حسن درباس حسين ",3500,3500,350,10,"الشرطة الاتحادية فق 4","2018-06-19",null,null,0]
["حيدر ضياء عبد الحميد هايس",500,500,100,5,"الادعام العام","2018-06-19",null,null,0]
["علي حسين سكران رباط ",450,450,75,6,"امن وسلامة الوزارة","2018-06-19",null,null,0]
["حيدر عباس عجلان خليفة ",900,900,100,9,"مديرية شرطة بغداد","2018-06-19",null,null,0]
["عمار إسماعيل إبراهيم سليم ",150,150,50,3,"مديرية شؤون السيطرات","2018-06-19",null,null,0]
["إبراهيم عبدالله فخري رسول",300,150,75,6,"مديرية النجدة العامة","2018-06-19","تم التسديد","تم التسديد",2]
["عبدالله عباس حسين شمخي",450,450,65,7,"الشرطة الاتحادية الطبابة","2018-06-19",null,null,0]
["مخلص عباس كريم غالي العقابي",515,515,85,7,"مديرية امن الافراد","2018-06-19",null,null,0]
["مخلص عباس كريم غالي العقابي",200,200,50,6,"مديرية امن الافراد","2018-06-19",null,null,0]
["حسن حبيب داوود سلمان ",900,900,100,9,"مديرية شرطة بغداد","2018-06-19",null,null,0]
["حيدر جبار مجيد محي ",657,564,93,8,"حماية المنشأت","2018-06-19","تم التسديد",null,1]
["علي حسين سالم جاسم ",150,150,50,3,"الشرطة الاتحادية","2018-06-19",null,null,0]
["علي حسين سالم جاسم ",600,600,86,7,"الشرطة الاتحادية","2018-06-19",null,null,0]
["علي حسين سالم جاسم ",1250,1250,125,10,"الشرطة الاتحادية","2018-06-19",null,null,0]
["علي عبد الرزاق سالم حسين",350,350,70,5,"فرقة الرد السريع","2018-06-19",null,null,0]
["علي عبدالله عبيد حسين ",600,600,85,7,"مقر قيادة الشرطة الاتحادية","2018-06-19",null,null,0]
["معد كامل فارس محمد ",1750,1750,175,10,"مقر قيادة الشرطة الاتحادية","2018-06-19",null,null,0]
["محمد عبد الحسين عيدان حزيم",900,900,100,9,"مقر قيادة الشرطة الاتحادية","2018-06-19",null,null,0]
["علي شاكر نعمة زبون ",750,750,83,9,"مديرية شرطة امانة بغداد","2018-06-19",null,null,0]
["حيدر حسن علاوي عرفات",375,300,75,6,"حماية المنشأت والشخصيات","2018-06-19","تم التسديد",null,1]
["ضياء عبد الوهاب عبد الرزاق صبيح",1800,1800,200,9,"مديرية شرطة بغداد","2018-06-19",null,null,0]
["محمد حياوي رباط راضي",1200,900,150,10,"مديرية النجدة العامة","2018-06-19","تم التسديد","تم التسديد",2]
["جعفر صادق عبيد بشيت",900,900,100,9,"فرقة التدخل السريع","2018-06-19",null,null,0]
["فاضل حمد راضي كاظم المياحي",3500,3500,350,10,"الدفاع المدني ","2018-06-19",null,null,0]
["سعد حضيري عباس رشيد",1500,1500,150,10,"قوات حرس الحدود","2018-06-20",null,null,0]
["سعد حضيري عباس رشيد",1500,1500,150,10,"قوات حرس الحدود","2018-06-20",null,null,0]
["علي عدنان هادي ديكان",700,500,100,9,"مديرية النجدة","2018-06-20","تم التسديد","تم التسديد",2]
["جاسم محمد محسن ماشاف",900,900,199,9,"الشرطة الاتحادية فق1 ","2018-06-20",null,null,0]
["طعمة عبد الرحيم طاهر علي",350,{"$f":"B1228-J1228*D1228","v":350},70,5,"الشرطة الاتحادية فق 1","2018-06-20",null,null,{"$f":"COUNTIF(H1228:I1228,\"تم التسديد\")","v":0}]
["مصطفى حسن علي عبد",1250,1250,125,10,"مديرية شرطة بغداد","2018-06-20",null,null,0]
["كاظم محمد ضيدان فنجان",900,900,100,9,"مديرية شرطة بغداد","2018-06-20",null,null,0]
["كاظم محمد ضيدان فنجان",750,750,93,8,"مديرية شرطة بغداد","2018-06-20",null,null,0]
["كاظم محمد ضيدان فنجان",250,250,50,5,"مديرية شرطة بغداد","2018-06-20",null,null,0]
["امجد حميد علوان حمد",1750,1750,175,10,"مديرية شرطة بغداد","2018-06-20",null,null,0]
["محمد زبيدي معيوف هليل",1400,1050,175,10,"الدفاع المدني ","2018-06-20","تم التسديد","تم التسديد",2]
["معتز شاكر خضير دايم",450,450,75,6,"كلية الشرطة","2018-06-20",null,null,0]
["رعد خليل سليمان مخلف ",700,700,88,8,"مديرية شرطة بغداد فوج طوارئ بغداد","2018-06-20",null,null,0]
["مروان راجح هادي خليل ",1800,1800,200,9,"الشرطة الاتحادية فق 6","2018-06-20",null,null,0]
["مروان راجح هادي خليل ",450,450,75,7,"الشرطة الاتحادية فق 6","2018-06-20",null,null,0]
["احمد شاكر عواد عاشور ",1125,1000,125,10,"حماية المنشات فوج سوات","2018-06-20","تم التسديد",null,1]
["مؤيد صالح فهد الحيدري",700,500,100,9,"الدفاع المدني ","2018-06-20","تم التسديد","تم التسديد",2]
["حازم عبد ناصر فركوس",1750,1750,175,10,"الشرطة الاتحادية فق الالي ","2018-06-20",null,null,0]
["حازم عبد ناصر فركوس",750,750,93,8,"الشرطة الاتحادية فق الالي ","2018-06-20",null,null,0]
["علي حسين بداي مختاظ",1750,1750,175,10,"الشرطة الاتحادية اللواء الالي","2018-06-20",null,null,0]
["علي حسين بداي مختاظ",700,700,88,8,"الشرطة الاتحادية اللواء الالي","2018-06-20",null,null,0]
["محمد عبد الكريم خلف فرج",750,750,87,8,"مقر قيادة الشرطة الاتحادية","2018-06-20",null,null,0]
["أنور ناهض نجم عبدالله ",1500,1500,150,10,"قياد الشرطة الاتحادية المقر","2018-06-20",null,null,0]
["أنور ناهض نجم عبدالله ",250,250,50,5,"قياد الشرطة الاتحادية المقر","2018-06-20",null,null,0]
["أنور ناهض نجم عبدالله ",250,250,50,5,"قياد الشرطة الاتحادية المقر","2018-06-20",null,null,0]
["أنور ناهض نجم عبدالله ",300,300,50,6,"قياد الشرطة الاتحادية المقر","2018-06-20",null,null,0]
["مصطفى فاخر عزيز حبوب",700,700,87,8,"قيادة الشرطة الاتحادية الدعم اللوجستي","2018-06-20",null,null,0]
["مصطفى فاخر عزيز حبوب",750,750,83,9,"قيادة الشرطة الاتحادية الدعم اللوجستي","2018-06-20",null,null,0]
["هيثم صبري محمد معين ",900,900,100,9,"الادعام العام","2018-06-20",null,null,0]
["يحيى حميد مجيد شاباز ",430,260,85,7,"مديرية نجدة بغداد","2018-06-20","تم التسديد","تم التسديد",2]
["يحيى حميد مجيد شاباز ",150,50,50,5,"مديرية نجدة بغداد","2018-06-20","تم التسديد","تم التسديد",2]
["اياد طارق زيدان خلف",700,500,100,9,"مديرية نجدة بغداد المقر","2018-06-20","تم التسديد","تم التسديد",2]
["اياد طارق زيدان خلف",530,360,85,8,"مديرية نجدة بغداد المقر","2018-06-20","تم التسديد","تم التسديد",2]
["اياد طارق زيدان خلف",150,50,50,5,"مديرية نجدة بغداد المقر","2018-06-20","تم التسديد","تم التسديد",2]
["علي حسين ظاهر حبيب",1800,1800,200,9,"فرقة التدخل السريع","2018-06-20",null,null,0]
["نبيل قاسم مشتت بطل ",800,700,100,9,"حماية المنشات قاطع الصدر","2018-06-20","تم التسديد",null,1]
["علي حسين صكبان سلمان ",250,250,50,5,"مديرية الصيانة والخدمات","2018-06-20",null,null,0]
["عباس فيصل جلوب خلف ",2100,2100,261,8,"مديرية البنى التحتية ","2018-06-20",null,null,0]
["علي طالب خليل إبراهيم ",250,250,50,5,"الشرطة الاتحادية فق 5 ل 20","2018-06-20",null,null,0]
["منتظر مهدي صاحب حسن الساعدي",700,700,87,8,"قيادة شرطة بغداد فوج طوارئ بغداد","2018-06-20",null,null,0]
["منتظر مهدي صاحب حسن الساعدي",750,750,93,8,"قيادة شرطة بغداد فوج طوارئ بغداد","2018-06-20",null,null,0]
["إيهاب علي حمدي علي",200,150,50,5,"حماية المنشات الرصافة","2018-06-20","تم التسديد",null,1]
["احمد محمد احمد اسود",200,200,50,4,"قيادة الشرطة الاتحادية الفرقة الالية","2018-06-20",null,null,0]
["عمار شوكت محمد حميد",700,700,88,8,"الشرطة الاتحادية فق 4 ","2018-06-21",null,null,0]
["عمار شوكت محمد حميد",350,350,70,5,"الشرطة الاتحادية فق 5","2018-06-21",null,null,0]
["عمر عادل موسى جاسم",1545,1290,255,7,"الدفاع المدني ","2018-06-21","تم التسديد",null,1]
["عمر عادل موسى جاسم",800,700,100,9,"الدفاع المدني ","2018-06-21","تم التسديد",null,1]
["رائد شلال موسى عباس ",900,900,100,9,"كلية الشرطة","2018-06-21",null,null,0]
["لؤي قدوري عبد الوهاب نوري",700,500,100,9,"مديرية نجدة بغداد","2018-06-21","تم التسديد","تم التسديد",2]
["لؤي قدوري عبد الوهاب نوري",300,150,75,6,"مديرية نجدة بغداد","2018-06-21","تم التسديد","تم التسديد",2]
["عباس عبد ديوان رسن ",900,900,100,9,"امن وسلامة الوزارة","2018-06-21",null,null,0]
["علي ناجي مهدي علي",900,900,100,9,"فرفة الرد السريع","2018-06-21",null,null,0]
["علي ناجي مهدي علي",900,900,100,9,"فرفة الرد السريع","2018-06-21",null,null,0]
["علي ناجي مهدي علي",700,700,88,8,"فرقة الرد السريع","2018-06-21",null,null,0]
["حيدر احمد عباس سلوم ",1250,1250,125,10,"قوات حرس الحدود","2018-06-21",null,null,0]
["محمد عبد الحسين عيدان حزيم",900,900,100,9,"الشرطة الاتحادية المقر","2018-06-21",null,null,0]
["رياض خليل حمدان يونس",1000,750,125,10,"الدفاع المدني ","2018-06-21","تم التسديد","تم التسديد",2]
["رياض خليل حمدان يونس",1400,1000,200,9,"الدفاع المدني ","2018-06-21","تم التسديد","تم التسديد",2]
["رياض خليل حمدان يونس",15,-85,50,5,"الدفاع المدني ","2018-06-21","تم التسديد","تم التسديد",2]
["سلام عبد لفتة كشمر ",1400,1000,200,9,"مديرية النجدة العامة","2018-06-21","تم التسديد","تم التسديد",2]
["سلام عبد لفتة كشمر ",526,352,87,8,"مديرية النجدة العامة","2018-06-21","تم التسديد","تم التسديد",2]
["جاسم خالد حكمان صالح ",75,75,25,3,"قوات حرس الحدود","2018-06-21",null,null,0]
["جبار صادق عوفي سادر",900,900,100,9,"دائرة مستشار الوزير","2018-06-21",null,null,0]
["حاتم اكرم إبراهيم عباس ",300,150,75,6,"مديرية نجدة بغداد","2018-06-21","تم التسديد","تم التسديد",2]
["جهاد جبار نعيم مطيلب ",900,800,100,9,"اتحاد الشرطة الرياضي","2018-06-21",null,"تم التسديد",1]
["عدي عبد علي صالح",1800,1600,200,9,"الشرطة الاتحادية فق1 ","2018-06-21",null,"تم التسديد",1]
["حلمي عوني فاضل حسين",900,800,100,9,"قيادة شرطة بغداد","2018-06-21",null,"تم التسديد",1]
["جمال خزعل راغب محمد",700,700,87,8,"فرقة الرد السريع","2018-06-21",null,null,0]
["مصطفى عباس عبود هاشم",700,{"$f":"B1292-J1292*D1292","v":700},87,8,"مقر قيادة الشرطة الاتحادية","2018-06-21",null,null,{"$f":"COUNTIF(H1292:I1292,\"تم التسديد\")","v":0}]
["اكرم عباس حسن صحن",1800,1800,200,9,"مديرية التدريب والتأهيل","2018-06-21",null,null,0]
["مهدي هادي محمد حسن",900,900,100,9,"الشرطة الاتحادية","2018-06-21",null,null,0]
["علي سلمان حاوي علوان ",600,600,85,7,"مديرية شرطة بغداد سرية سوات","2018-06-21",null,null,0]
["حيدر عباس عجلان خليفة ",900,900,100,9,"مديرية شرطة بغداد شؤون السيطرات","2018-06-21",null,null,0]
["سيف سعد عباس احمد",1250,1250,125,10,"الشرطة الاتحادية فق 5","2018-06-21",null,null,0]
["جعفر صادق عبيد بشيت",800,800,88,9,"فرقة التدخل السريع","2018-06-21",null,null,0]
["حامد احمد حسين",200,150,50,5,"قيادة الشرطة الاتحادية فق 2","2018-06-21","تم التسديد",null,1]
["حامد احمد حسين",600,513,87,8,"قيادة الشرطة الاتحادية فق 3","2018-06-21","تم التسديد",null,1]
["حسين حمود قاطع سالم",2800,2100,350,10,"مديرية نجدة بغداد","2018-06-22","تم التسديد","تم التسديد",2]
["كرار حسين عودة حسين",2500,2500,250,10,"قيادة الشرطة الاتحادية الرد السريع","2018-06-22",null,null,0]
["كرار حسين عودة حسين",900,900,100,9,"قيادة الشرطة الاتحادية الرد السريع","2018-06-22",null,null,0]
["جاسم محمد صالح خلف ",900,900,100,9,"الشرطة الاتحادية فق 1","2018-06-22",null,null,0]
["حسين فليح حسن كريم",900,900,100,9,"قيادة الشرطة الاتحادية","2018-06-23",null,null,0]
["حسين عودة حسين جلاب",700,700,87,8,"مديرية عمليات الوزارة","2018-06-23",null,null,0]
["احمد شاكر عواد عاشور ",1125,1000,125,10,"حماية المنشات فوج سوات","2018-06-23","تم التسديد",null,1]
["حلمي عوني فاضل حسين",900,900,100,9,"قيادة شرطة بغداد","2018-06-23",null,null,0]
["حلمي عوني فاضل حسين",700,700,87,8,"قيادة شرطة بغداد","2018-06-23",null,null,0]
["مازن عدنان داوود سلمان ",700,700,88,8,"مديرية الصيانة والخدمات","2018-06-23",null,null,0]
["فاضل عبد السادة راشد عليوي",750,750,93,8,"قيادة الشرطة الاتحادية فق 1","2018-06-23",null,null,0]
["عباس حنون عيسى جاسم ",350,350,70,5,"شرطة اتحادية استخبارات وامن القيادة","2018-06-23",null,null,0]
["حسن علي زبالة علي عباس",250,250,50,5,"شرطة اتحادية فق 1","2018-06-23",null,null,0]
["فاضل كاظم حسين مري",3500,3500,350,10,"مديرية شرطة بغداد شرطة السعدون","2018-06-23",null,null,0]
["مشتاق عبد طاهر عبد علي",900,900,100,9,"الشرطة الاتحادية فق 5","2018-06-23",null,null,0]
["مؤيد مجيد عبد العزيز زيدان",700,700,87,8,"مديرية شرطة بغداد شعبة القلم","2018-06-23",null,null,0]
["محمود شاكر حسين علي",450,450,75,6,"فوج طوارئ بغداد الثالث","2018-06-23",null,null,0]
["محمود شاكر حسين علي",450,450,75,6,"فوج طوارئ بغداد الثالث","2018-06-23",null,null,0]
["محمود شاكر حسين علي",1400,1400,174,8,"فوج طوارئ بغداد الثالث","2018-06-23",null,null,0]
["عادل عباس حجي سبهان",750,750,83,9,"مديرية شرطة بغداد","2018-06-23",null,null,0]
["احمد إسكندر محمود مرزوق",900,900,100,9,"الشرطة الاتحادية فق 2","2018-06-23",null,null,0]
["احمد إسكندر محمود مرزوق",75,75,25,3,"الشرطة الاتحادية فق 3","2018-06-23",null,null,0]
["مروان هشام عبد العباس ونان",450,450,65,7,"الشرطة الاتحادية فق 3","2018-06-23",null,null,0]
["علي طالب هاشم عكروك",750,750,93,8,"الشرطة الاتحادية فق 5","2018-06-23",null,null,0]
["علي طالب هاشم عكروك",250,250,50,5,"الشرطة الاتحادية فق 6","2018-06-23",null,null,0]
["احمد عدنان ديوان حسين",3500,3500,350,10,"الشرطة الاتحادية فق 1","2018-06-23",null,null,0]
["احمد عدنان ديوان حسين",250,250,50,5,"الشرطة الاتحادية فق 2","2018-06-23",null,null,0]
["رياض عماد تحسين طاهر",1125,1000,125,10,"حماية المنشات والشخصيات","2018-06-23","تم التسديد",null,1]
["صفاء صباح شياع عودة ",1750,1750,175,10,"فرقة التدخل السريع","2018-06-24",null,null,0]
["علي خزعل لعيبي زبن ",1600,1400,200,9,"حماية المنشات والشخصيات","2018-06-24","تم التسديد",null,1]
["حيدر حسن عيدان منصور",350,350,50,7,"قوات حرس الحدود","2018-06-24",null,null,0]
["عبد النبي صبري عبد السادة مانع الشرهاني",3432,3002,430,9,"حماية المنشات والشخصيات","2018-06-24","تم التسديد",null,1]
["عباس جواد نايف حنتوش",3573,3063,510,8,"مديرية نجدة بغداد","2018-06-24","تم التسديد",null,1]
["عقيل ستار شاوي حمود الساعدي",2197,1567,315,9,"مديرية شرطة النجدة","2018-06-24","تم التسديد","تم التسديد",2]
["عقيل لازم خلف ثامر",1038,888,150,8,"حماية المنشات والشخصيات","2018-06-24","تم التسديد",null,1]
["حذيفة ماجد عبد الحميد عبد الحسين ",1249,835,207,8,"مديرية نجدة بغداد","2018-06-24","تم التسديد","تم التسديد",2]
["إبراهيم عكاب كاطع جبر",1750,1750,175,10,"امن وسلامة الوزارة","2018-06-24",null,null,0]
["إبراهيم عكاب كاطع جبر",900,900,100,9,"امن وسلامة الوزارة","2018-06-24",null,null,0]
["محمد جمعة هليل عبود الربيعي",2816,2464,352,9,"حماية المنشات والشخصيات","2018-06-24","تم التسديد",null,1]
["محمد مرتضى سلمان مهدي",5371,5371,596,9,"الشرطة الاتحادية التموين والنقل","2018-06-24",null,null,0]
["فيصل امير غازي فاضل",900,900,100,9,"قيادة شرطة بغداد","2018-06-24",null,null,0]
["حيدر علي حطاب ثنين ",5145,5145,571,9,"مديرية العلاقات والاعلام","2018-06-24",null,null,0]
["فلاح حسن حربي احمد ",2936,2936,326,9,"قوات حرس الحدود","2018-06-24",null,null,0]
["نهاد كريم احمد عجيل",3883,3883,485,8,"الشرطة الاتحادية ل3","2018-06-24",null,null,0]
["محمد خليف لعيبي صنكور",3333,3333,416,8,"الشرطة الاتحادية فق 1","2018-06-24",null,null,0]
["يونس إسماعيل يوسف مثنى",700,700,87,8,"فرقة التدخل السريع","2018-06-24",null,null,0]
["يونس إسماعيل يوسف مثنى",250,250,50,5,"فرقة التدخل السريع","2018-06-24",null,null,0]
["محمد مجيد عبد الزهرة عطية",3696,3696,462,8,"وكالة شؤون الشرطة ","2018-06-24",null,null,0]
["امنة عبد العباس امبيت فرخان ",4113,3599,514,9,"حماية المنشات والشخصيات","2018-06-24","تم التسديد",null,1]
["يحيى حميد مجيد شاباز ",678,408,135,7,"مديرية النجدة العامة","2018-06-24","تم التسديد","تم التسديد",2]
["جاسم محمد صالح خلف ",4132,4132,460,9,"الشرطة الاتحادية مقر اللواء فق 1","2018-06-24",null,null,0]
["محمد صباح جبر ياسين ",4139,4139,460,9,"الشرطة الاتحادية فق 1","2018-06-24",null,null,0]
["فاضل عبد السادة راشد عليوي",998,998,142,7,"الشرطة الاتحادية فق 2","2018-06-24",null,null,0]
["احمد عباس مهدي محمد",765,375,195,7,"مديرية شرطة بغداد","2018-06-24","تم التسديد","تم التسديد",2]
["احمد عبد علكم راهي الحسناوي",2712,2712,339,8,"قيادة شرطة بغداد","2018-06-24",null,null,0]
["محمد عبد عيال فضالة",700,{"$f":"B1356-J1356*D1356","v":700},87,8,"الشرطة الاتحادية","2018-06-24",null,null,{"$f":"COUNTIF(H1356:I1356,\"تم التسديد\")","v":0}]
["محمد قاسم علوان صالح ",2124,2124,265,8,"الشرطة الاتحادية النخبة","2018-06-24",null,null,0]
["وسام ثائر فهد محمود",75,75,25,3,"مديرية التدريب والتأهيل","2018-06-24",null,null,0]
["وسام ثائر فهد محمود",600,600,85,7,"مديرية التدريب والتأهيل","2018-06-24",null,null,0]
["عباس علي عويلي التميمي",1850,1850,308,6,"الشرطة الاتحادية فق 4","2018-06-24",null,null,0]
["علي حسين عبد الرضا مول",3230,3230,404,8,"الشرطة الاتحادية قيادة النسور","2018-06-24",null,null,0]
["إيهاب سلام حمد خضير ",2760,2760,394,7,"الشرطة الاتحادية فق 1 ف1","2018-06-24",null,null,0]
["هاني شاكر محمود رشيد",1800,1800,200,9,"الشرطة الاتحادية فق 3","2018-06-24",null,null,0]
["محمد علي احمد لفتة ",2720,2720,388,7,"الشرطة الاتحادية فق 1","2018-06-24",null,null,0]
["محمد عبد الرضا حسين جريب ",4235,4235,470,9,"الشرطة الاتحادية ل3 ف 3","2018-06-24",null,null,0]
["اركان محمد حسن حسين ",1591,1591,200,8,"مديرية شرطة بغداد","2018-06-24",null,null,0]
["اياد كايت رحمن عبد",1024,1024,146,7,"الشرطة الاتحادية فق 1 ل3 ف 3","2018-06-24",null,null,0]
["محمد حياوي رباط راضي",2873,2251,311,8,"مديرية النجدة العامة","2018-06-24","تم التسديد","تم التسديد",2]
["حيدر خضير شنشول طاهر ",4428,4428,492,9,"مديرية البنى التحتية ","2018-06-24",null,null,0]
["خليل خزعل بركات جبر",1744,1744,218,8,"قيادة شرطة بغداد","2018-06-24",null,null,0]
["علي سلمان حاوي علوان ",75,75,25,3,"قيادة شرطة بغداد فوج سوات","2018-06-24",null,null,0]
["حمزة هادي كطيف محمد",4094,4094,455,9,"مديرية البنى التحتية ","2018-06-24",null,null,0]
["عمر مهدي شنيشل رسن",2907,2907,323,9,"مديرية البنى التحتية ","2018-06-24",null,null,0]
["نبيل مخلف حمادي سليمان",700,500,100,9,"مديرية نجدة بغداد قاطع حي الجامعة","2018-06-25","تم التسديد","تم التسديد",2]
["حيدر فرحان وهاب حسين",1800,1800,200,9,"كلية الشرطة","2018-06-25",null,null,0]
["علاء إبراهيم جمعة عبد عون",624,448,88,9,"مديرية النجدة العامة قاطع الكاظمية","2018-06-25","تم التسديد","تم التسديد",2]
["علاء إبراهيم جمعة عبد عون",250,150,50,7,"مديرية النجدة العامة قاطع الكاظمية","2018-06-25","تم التسديد","تم التسديد",2]
["علاء إبراهيم جمعة عبد عون",1000,750,125,10,"مديرية النجدة العامة قاطع الكاظمية","2018-06-25","تم التسديد","تم التسديد",2]
["علاء إبراهيم جمعة عبد عون",150,50,50,5,"مديرية النجدة العامة قاطع الكاظمية","2018-06-25","تم التسديد","تم التسديد",2]
["انمار علي عباس سنيد",2450,2100,350,8,"حماية المنشات والشخصيات","2018-06-25","تم التسديد",null,1]
["انمار علي عباس سنيد",375,300,75,6,"حماية المنشات والشخصيات","2018-06-25","تم التسديد",null,1]
["علي عبد الكريم ناجي عاصي",2700,2700,300,9,"الشرطة الاتحادية فق الالية ل 3","2018-06-25",null,null,0]
["سمير عبد الجبار منسف معيلو",150,150,50,3,"الشرطة الاتحادية فق 2","2018-06-25",null,null,0]
["سمير عبد الجبار منسف معيلو",1250,1250,125,10,"الشرطة الاتحادية فق 2","2018-06-25",null,null,0]
["حسين علي حسين غضبان ",700,700,87,8,"الشرطة الاتحادية مقر القيادة","2018-06-25",null,null,0]
["طه حسين محمد حسين الجبوري",1250,1250,125,10,"فرقة الرد السريع","2018-06-25",null,null,0]
["احمد قدوري عباس جواد ",250,250,50,5,"فرقة الرد السريع","2018-06-25",null,null,0]
["محمد مشحوت كزار ساجد",700,700,87,8,"الشرطة الاتحادية فق 1 ل 2 ف2","2018-06-25",null,null,0]
["محمد مشحوت كزار ساجد",25,25,25,1,"الشرطة الاتحادية فق 1 ل 2 ف3","2018-06-25",null,null,0]
["احمد صبحي علو حسين",900,900,100,9,"مديرية شرطة ديالى","2018-06-25",null,null,0]
["احمد صبحي علو حسين",75,75,25,3,"مديرية شرطة ديالى","2018-06-25",null,null,0]
["نهاد باسم مجيد حسين ",2100,1500,300,9,"مديرية شرطة النجدة قاطع النهروان","2018-06-25","تم التسديد","تم التسديد",2]
["عباس محمد حسين عبود",3000,3000,250,12,"فرقة التدخل السريع","2018-06-25",null,null,0]
["عباس محمد حسين عبود",700,700,77,9,"فرقة التدخل السريع","2018-06-25",null,null,0]
["عباس محمد حسين عبود",2500,2500,250,10,"فرقة التدخل السريع","2018-06-25",null,null,0]
["عباس محمد حسين عبود",1250,1250,100,12,"فرقة التدخل السريع","2018-06-25",null,null,0]
["عباس محمد حسين عبود",500,500,50,10,"فرقة التدخل السريع","2018-06-25",null,null,0]
["رائد شلال موسى عباس ",1800,1800,200,9,"كلية الشرطة","2018-06-25",null,null,0]
["علي صافي ناصر حسين",280,210,70,5,"مديرية نجدة بغداد","2018-06-26","تم التسديد",null,1]
["علي صافي ناصر حسين",100,75,25,5,"مديرية نجدة بغداد","2018-06-26","تم التسديد",null,1]
["رعد مطر لعيبي مساعد",3500,3500,350,10,"قيادة الشرطة الاتحادية مقر قيادة النسور","2018-06-26",null,null,0]
["وسام فالح حسن خلف الساعدي",900,900,100,9,"مديرية مرور بغداد","2018-06-26",null,null,0]
["حيدر محمد عاشور حمودي",3500,3500,350,10,"قيادة الشرطة الاتحادية فق 1","2018-06-26",null,null,0]
["محمد جاسم حاكم بشارة",450,450,75,6,"قيادة حرس الحدود","2018-06-26",null,null,0]
["محمد جاسم حاكم بشارة",700,700,100,8,"قيادة حرس الحدود","2018-06-26",null,null,0]
["ضياء عسل حلو محيسن ",2700,2700,300,9,"الشرطة الاتحادية فق 1","2018-06-26",null,null,0]
["نورس سلمان حسين كاظم",1750,1750,175,10,"الشرطة الاتحادية فق 1","2018-06-26",null,null,0]
["اياد سلمان شطب محمد ",1346,1346,192,7,"فرقة التدخل السريع","2018-06-26",null,null,0]
["باسم نعمة كاظم شلال",250,250,50,5,"الشرطة الاتحادية فق 1","2018-06-26",null,null,0]
["نبيل مخلف حمادي سليمان",1400,1050,175,10,"مديرية نجدة بغداد","2018-06-26","تم التسديد","تم التسديد",2]
["سمير عبد الجبار منسف معيلو",700,700,100,7,"الشرطة الاتحادية  فق 1","2018-06-26",null,null,0]
["علاء كريم جبار سلمان ",800,700,100,9,"مديرية شرطة الكهرباء","2018-06-26","تم التسديد",null,1]
["علاء كريم جبار سلمان ",600,500,100,7,"مديرية شرطة الكهرباء","2018-06-26","تم التسديد",null,1]
["علاء موسى عبد النبي شلاكة ",1250,1250,125,10,"مديرية الصيانة والخدمات","2018-06-26",null,null,0]
["قيس صباح عناد حابط",1750,1750,175,10,"مديرية مرور بغداد","2018-06-26",null,null,0]
["مهند علي شكر محمود",1250,1250,125,10,"قيادة الشرطة الاتحادية فق 5","2018-06-26",null,null,0]
["مهند علي شكر محمود",350,350,70,5,"قيادة الشرطة الاتحادية فق 5","2018-06-26",null,null,0]
["مهند علي شكر محمود",600,600,86,7,"قيادة الشرطة الاتحادية فق 5","2018-06-26",null,null,0]
["ضياء باسم هادي اللامي",700,700,87,8,"فرقة التدخل السريع","2018-06-26",null,null,0]
["محمد علي ماضي لفتة",900,{"$f":"B1420-J1420*D1420","v":900},100,9,"مديرية إدارة الموارد البشرية","2018-06-26",null,null,{"$f":"COUNTIF(H1420:I1420,\"تم التسديد\")","v":0}]
["محمد زبيدي معيوف هليل",1052,704,174,8,"الدفاع المدني ","2018-06-26","تم التسديد","تم التسديد",2]
["فؤاد شاكر محمود علي",700,500,100,9,"مديرية نجدة بغداد","2018-06-26","تم التسديد","تم التسديد",2]
["علي حسن توفيق جاسم",200,200,50,4,"قيادة الشرطة الاتحادية فق 6","2018-06-26",null,null,0]
["علي حسن توفيق جاسم",75,75,25,3,"قيادة الشرطة الاتحادية فق 6","2018-06-26",null,null,0]
["احمد عبد النور حميد طارش",1125,1000,125,10,"حماية المنشات والشخصيات","2018-06-26","تم التسديد",null,1]
["نور مسلم رحومي حمادي",636,636,106,6,"قيادة شرطة النجف","2018-06-26",null,null,0]
["حوراء فرحان عباس حلو ",1314,1314,187,7,"قيادة شرطة النجف","2018-06-26",null,null,0]
["محمد حمادي طارش جهلول",526,352,87,8,"مديرية نجدة بغداد","2018-06-26","تم التسديد","تم التسديد",2]
["محمد حمادي طارش جهلول",150,50,50,4,"مديرية نجدة بغداد","2018-06-26","تم التسديد","تم التسديد",2]
["محمد حمادي طارش جهلول",1330,886,222,8,"مديرية نجدة بغداد","2018-06-26","تم التسديد","تم التسديد",2]
["صلاح عبد المهدي صالح عبد",800,800,100,9,"مديرية التدريب والتأهيل","2018-06-26",null,null,0]
["امجد سامي جوحي جبر",1250,1250,125,10,"قوات حرس الحدود","2018-06-26",null,null,0]
["حيدر عباس عجلان خليفة ",700,700,87,8,"مديرية شرطة بغداد","2018-06-26",null,null,0]
["حسين عبد الستار دحام سليمان",450,450,75,6,"الشرطة الاتحادية فق 1","2018-06-26",null,null,0]
["حسين عبد الستار دحام سليمان",2250,2250,279,8,"الشرطة الاتحادية فق 1","2018-06-26",null,null,0]
["ياسر حميد رسن علي",150,150,50,3,"الشرطة الاتحادية ","2018-06-26",null,null,0]
["علاء مدب حسن خميس ",150,150,50,3,"الشرطة الاتحادية فق 1","2018-06-27",null,null,0]
["علاء مدب حسن خميس ",1800,1800,200,9,"الشرطة الاتحادية فق 2","2018-06-27",null,null,0]
["نبيل مخلف حمادي سليمان",700,500,100,9,"مديرية نجدة بغداد","2018-06-27","تم التسديد","تم التسديد",2]
["محمد بريسم جودة جول",1800,1800,200,9,"الشرطة الاتحادية فق 3","2018-06-27",null,null,0]
["سامر ستار محمد موازي",900,900,100,9,"الشرطة الاتحادية فق6 ","2018-06-27",null,null,0]
["سامر ستار محمد موازي",700,700,87,8,"الشرطة الاتحادية فق6 ","2018-06-27",null,null,0]
["حسن رباح مهدي حسين",250,250,50,5,"الشرطة الاتحادية فق 5","2018-06-27",null,null,0]
["عدنان كاظم حمزة حبيب",1250,1250,125,10,"الشرطة الاتحادية فق 1","2018-06-27",null,null,0]
["سامر ستار محمد موازي",900,900,100,9,"الشرطة الاتحادية فق6 ","2018-06-27",null,null,0]
["جعفر صادق عبد جلود ",2100,1500,300,9,"مديرية النجدة العامة","2018-06-27","تم التسديد","تم التسديد",2]
["علاء إسماعيل عذير لفتة",1278,756,261,7,"مديرية شرطة النجدة","2018-06-27","تم التسديد","تم التسديد",2]
["عباس فاضل حميد عريم",3500,3500,350,10,"كلية الشرطة","2018-06-27",null,null,0]
["علي سمير جلوب راضي",500,300,100,7,"مديرية نجدة بغداد","2018-06-27","تم التسديد","تم التسديد",2]
["علي سمير جلوب راضي",2800,2100,350,10,"مديرية نجدة بغداد","2018-06-27","تم التسديد","تم التسديد",2]
["صفاء رحيم باهض عكاب",4000,4000,333,12,"فرقة الرد السريع","2018-06-27",null,null,0]
["احمد عبد النور حميد طارش",2000,1750,250,10,"حماية المنشات والشخصيات","2018-06-27","تم التسديد",null,1]
["كرار اياد عبد الواحد سلمان ",3500,3500,350,10,"الشرطة الاتحادية فق 5 مقر اللواء","2018-06-27",null,null,0]
["مالك محمود خشان ختلان",2700,2700,300,9,"كلية الشرطة","2018-06-27",null,null,0]
["مرتضى نعيم ناهي طهماز",1750,1750,175,10,"الشرطة الاتحادية فق الالية ل 2","2018-06-27",null,null,0]
["مرتضى نعيم ناهي طهماز",700,700,87,8,"الشرطة الاتحادية فق الالية ل 2","2018-06-27",null,null,0]
["مرتضى نعيم ناهي طهماز",700,700,87,8,"الشرطة الاتحادية فق الالية ل 2","2018-06-27",null,null,0]
["مرتضى نعيم ناهي طهماز",800,800,88,9,"الشرطة الاتحادية فق الالية ل 2","2018-06-27",null,null,0]
["مهند محمد عباس علي",900,900,100,9,"حماية المنشات والشخصيات","2018-06-27",null,null,0]
["احمد رؤوف حسن ميشة ",1750,1750,175,10,"الشرطة الاتحادية كتيبة معالجة المتفجرات","2018-06-27",null,null,0]
["احمد رؤوف حسن ميشة ",1125,1125,125,10,"الشرطة الاتحادية كتيبة معالجة المتفجرات","2018-06-27",null,null,0]
["احمد رؤوف حسن ميشة ",250,250,50,5,"الشرطة الاتحادية كتيبة معالجة المتفجرات","2018-06-27",null,null,0]
["نبيل إبراهيم عبدالله حمدان",450,450,65,7,"الشرطة الاتحادية ل 6","2018-06-27",null,null,0]
["نبيل إبراهيم عبدالله حمدان",150,150,50,3,"الشرطة الاتحادية ل 6","2018-06-27",null,null,0]
["خالد جمال جبارة ياسين",500,500,72,7,"الشرطة الاتحادية فق2","2018-06-28",null,null,0]
["مصطفى احمد خيري توفيق",3600,3600,400,9,"امن وسلامة الوزارة","2018-06-28",null,null,0]
["مختار عناد معلة حسين",1400,1000,200,9,"مديرية نجدة بغداد","2018-06-28","تم التسديد","تم التسديد",2]
["علي حسين سكران رباط ",900,900,100,9,"امن وسلامة الوزارة","2018-06-28",null,null,0]
["إبراهيم محمد شوكت عبد الحميد",613,526,87,8,"حماية المنشات والشخصيات","2018-06-28","تم التسديد",null,1]
["عبد الأمير سعدي رشيد جابر",1800,1800,200,9,"امن وسلامة الوزارة","2018-06-28",null,null,0]
["احمد خالد ناصر حسين ",2300,2000,300,9,"مديرية شرطة الكهرباء","2018-06-28","تم التسديد",null,1]
["عدي جبار عبد بجاي ",800,800,88,9,"الشرطة الاتحادية استخبارات امن القيادة","2018-06-28",null,null,0]
["عدي جبار عبد بجاي ",250,250,50,5,"الشرطة الاتحادية استخبارات امن القيادة","2018-06-28",null,null,0]
["علاء شاكر محمود حمد",3375,3000,375,10,"مديرية شرطة الكهرباء","2018-06-28","تم التسديد",null,1]
["أنور صباح عايز حبيب",3000,3000,300,10,"مديرية مكافحة الاجرام","2018-06-28",null,null,0]
["أنور صباح عايز حبيب",900,900,100,9,"مديرية مكافحة الاجرام","2018-06-28",null,null,0]
["ندوان عبد الجليل طابور عبد",200,200,50,4,"الشرطة الاتحادية فق 2 ف الالي","2018-06-28",null,null,0]
["وسام حسين مويز جبر",1600,1600,160,10,"مديرية شؤون السيطرات","2018-06-28",null,null,0]
["حيدر كاظم هادي عبيد ",600,600,85,7,"الشرطة الاتحادية فق 1 ف القناصين","2018-06-28",null,null,0]
["علي حسين ظاهر حبيب",1800,1800,200,9,"فرقة الرد السريع","2018-06-28",null,null,0]
["هيثم صالح هادي حسن",1800,1800,200,9,"الشرطة الاتحادية فق 1 ل الالي","2018-06-28",null,null,0]
["فؤاد محمد دغر عكوب",1800,1800,200,9,"الشرطة الاتحادية فق 1 مقر الفرقة","2018-06-28",null,null,0]
["رائد محمد علي جاسم",250,250,50,5,"مديرية البنى التحتية ","2018-06-28",null,null,0]
["رائد محمد علي جاسم",1250,{"$f":"B1484-J1484*D1484","v":1250},125,10,"مديرية البنى التحتية ","2018-06-28",null,null,{"$f":"COUNTIF(H1484:I1484,\"تم التسديد\")","v":0}]
["رائد محمد علي جاسم",200,200,50,4,"مديرية البنى التحتية ","2018-06-28",null,null,0]
["حسين عريبي محيبس كريم",700,500,100,9,"الدفاع المدني ","2018-06-28","تم التسديد","تم التسديد",2]
["علي خزعل لعيبي زبن ",1600,1400,200,9,"حماية المنشات والشخصيات","2018-06-28","تم التسديد",null,1]
["كرار سعد عاتي معارج ",900,900,100,9,"الشرطة الاتحادية فق 2","2018-06-28",null,null,0]
["حسين سبع خميس علي",1400,1200,200,9,"مديرية شرطة الكهرباء","2018-06-28","تم التسديد",null,1]
["محمد عباس حاجم سبع",800,700,100,9,"حماية المنشات والشخصيات","2018-06-28","تم التسديد",null,1]
["محمد عباس حاجم سبع",150,100,50,4,"حماية المنشات والشخصيات","2018-06-28","تم التسديد",null,1]
["علي سامي مهدي معن",2200,1950,250,10,"مديرية شرطة الكهرباء","2018-06-28","تم التسديد",null,1]
["حيدر طه عبد الزهرة عبد الحسين",200,200,50,4,"الشرطة الاتحادية فق الالية","2018-06-28",null,null,0]
["إبراهيم عبدالله فخري رسول",334,168,83,6,"مديرية النجدة العامة","2018-06-28","تم التسديد","تم التسديد",2]
["إبراهيم عبدالله فخري رسول",200,0,100,4,"مديرية النجدة العامة","2018-06-28","تم التسديد","تم التسديد",2]
["محمد راضي موات مزعل ",900,900,100,9,"قيادة شرطة بغداد","2018-06-28",null,null,0]
["سعد عبد الرزاق علي ",700,700,100,7,"الشرطة الاتحادية فق 4","2018-06-30",null,null,0]
["محمد مزعل إسماعيل جويعد",2700,2700,300,9,"مديرية شرطة الكهرباء","2018-06-30",null,null,0]
["حسام عريبي زغير حسين",1400,1000,200,9,"مديرية النجدة العامة","2018-06-30","تم التسديد","تم التسديد",2]
["حسام عريبي زغير حسين",700,500,100,9,"مديرية النجدة العامة","2018-06-30","تم التسديد","تم التسديد",2]
["علي محمد جودة ",3600,3600,400,9,"امن وسلامة الوزارة","2018-06-30",null,null,0]
["منتظر مهدي صاحب حسن الساعدي",1250,1250,125,10,"شرطة بغداد فوج الطوارئ","2018-06-30",null,null,0]
["اياد صبر محمد ظاهر ",1400,1400,200,7,"شرطة بغداد","2018-06-30",null,null,0]
["علي سامي مهدي معن",700,600,100,9,"مديرية شرطة الكهرباء","2018-06-30","تم التسديد",null,1]
["حيدر عباس عجلان خليفة ",700,700,100,7,"مديرية شؤون السيطرات","2018-06-30",111111,null,0]
["سهيل نجم مطشر لعيبي",1800,1800,200,9,"مديرية شرطة بغداد","2018-06-30",null,null,0]
["قيس غضبان حميد خليل الكرخي",1400,1400,200,7,"مديرية التدريب والتأهيل","2018-06-30",null,null,0]
["احمد مطار حنيش كعيد ",3500,3060,440,9,"مديرية شرطة الكهرباء","2018-06-30","تم التسديد",null,1]
["وهاب قاسم كريم مريوش",524,348,88,8,"مديرية النجدة العامة","2018-06-30","تم التسديد","تم التسديد",2]
["وهاب قاسم كريم مريوش",210,70,70,5,"مديرية النجدة العامة","2018-06-30","تم التسديد","تم التسديد",2]
["دلال حامد عبدالله سالم",900,900,100,9,"مديرية الشرطة القضائية","2018-06-30",null,null,0]
["دلال حامد عبدالله سالم",350,350,70,5,"مديرية الشرطة القضائية","2018-06-30",null,null,0]
["ايناس حسن علوان سرحان",350,350,70,5,"مديرية البطاقة الموحدة","2018-06-30",null,null,0]
["علي حسين جلوب دلي",800,700,100,9,"حماية المنشات والشخصيات","2018-06-30","تم التسديد",null,1]
["رياض سالم كاظم عبد الحسين",3600,3600,400,9,"قيادة الشرطة الاتحادية فق 4","2018-06-30",null,null,0]
["ماجد عبد السادة عبد عيسى",3750,3750,375,10,"الشرطة الاتحادية فق 1","2018-06-30",null,null,0]
["علي محمد مظهر محمد",700,700,100,7,"الشرطة الاتحادية قيادة النسور","2018-06-30",null,null,0]
["عباس فيصل جلوب خلف ",350,350,70,5,"مديرية البنى التحتية ","2018-06-30",null,null,0]
["علي صابر عبد زاير ",1125,1000,125,10,"حماية المنشات والشخصيات","2018-06-30","تم التسديد",null,1]
["محمد خالد ناصر حسين",3500,3060,440,9,"مديرية شرطة الكهرباء","2018-06-30","تم التسديد",null,1]
["قصي عجيل محسن كمر",2500,2500,250,10,"مديرية البنى التحتية ","2018-06-30",null,null,0]
["رائد محمد علي جاسم",1250,1250,125,10,"مديرية البنى التحتية ","2018-06-30",null,null,0]
["رائد محمد علي جاسم",1250,1250,125,10,"مديرية البنى التحتية ","2018-06-30",null,null,0]
["سمعان شهاب احمد حسن",1000,750,125,10,"مديرية نجدة بغداد","2018-06-30","تم التسديد","تم التسديد",2]
["عباس خلف ازغير كريم ",2700,2700,300,9,"امن وسلامة الوزارة","2018-06-30",null,null,0]
["حامد عيدان موزان علي",1200,900,150,10,"مديرية النجدة العامة ","2018-06-30","تم التسديد","تم التسديد",2]
["حامد عيدان موزان علي",624,448,88,9,"مديرية النجدة العامة ","2018-06-30","تم التسديد","تم التسديد",2]
["علي صابر عبد زاير ",600,500,100,7,"حماية المنشات والشخصيات","2018-06-30","تم التسديد",null,1]
["محمد شهاب عايد فياض ",2700,2700,300,9,"مديرية البنى التحتية ","2018-06-30",null,null,0]
["سلام عبد لفتة كشمر ",1000,750,125,10,"مديرية النجدة العامة","2018-06-30","تم التسديد","تم التسديد",2]
["حيدر فرحان وهاب حسين",1250,1250,125,10,"كلية الشرطة","2018-06-30",null,null,0]
["ضرغام رسول مهدي مبروك",900,900,100,9,"كلية الشرطة","2018-06-30",null,null,0]
["ضرغام رسول مهدي مبروك",1250,1250,125,10,"كلية الشرطة","2018-06-30",null,null,0]
["مالك عبد الكريم خضير بريسم",600,500,100,7,"حماية المنشات والشخصيات","2018-06-30","تم التسديد",null,1]
["امجد محمود محسن حسن",1500,1500,150,10,"الشرطة الاتحادية فق 1 المقر","2018-06-30",null,null,0]
["امجد محمود محسن حسن",800,800,99,9,"الشرطة الاتحادية فق 1 المقر","2018-06-30",null,null,0]
["امجد محمود محسن حسن",1250,1250,125,10,"الشرطة الاتحادية فق 1 المقر","2018-06-30",null,null,0]
["امجد محمود محسن حسن",700,700,100,7,"الشرطة الاتحادية فق 1 المقر","2018-06-30",null,null,0]
["محمد ثامر عبد الصاحب علوان",800,800,88,9,"قيادة شرطة بغداد مديرية أفواج بغداد","2018-06-30",null,null,0]
["محمد ثامر عبد الصاحب علوان",300,300,50,6,"قيادة شرطة بغداد مديرية أفواج بغداد","2018-06-30",null,null,0]
["حسين علي وناس شناوة ",1050,700,175,8,"مديرية نجدة بغداد","2018-06-30","تم التسديد","تم التسديد",2]
["حسين علي وناس شناوة ",1400,1000,200,9,"مديرية نجدة بغداد","2018-06-30","تم التسديد","تم التسديد",2]
["علي حكمت عبد الرضا احمد",1200,1000,200,7,"مديرية شرطة الكهرباء","2018-06-30","تم التسديد",null,1]
["احمد إبراهيم جبار غازي",700,700,100,7,"مديرية شرطة بغداد","2018-06-30",null,null,0]
["سيف سعد خلف عطية",700,700,100,7,"الشرطة الاتحادية الفرقة الالية ","2018-06-30",null,null,0]
["سيف سعد خلف عطية",800,800,88,9,"الشرطة الاتحادية الفرقة الالية ","2018-06-30",null,null,0]
["سيف سعد خلف عطية",75,75,25,3,"الشرطة الاتحادية الفرقة الالية ","2018-06-30",null,null,0]
["سيف سعد خلف عطية",200,{"$f":"B1548-J1548*D1548","v":200},50,4,"الشرطة الاتحادية الفرقة الالية ","2018-06-30",null,null,{"$f":"COUNTIF(H1548:I1548,\"تم التسديد\")","v":0}]
["امجد حميد غانم سلطان",3000,3000,429,7,"قيادة شرطة بغداد","2018-06-30","تم ارسال القوائم لهذا الشهر",null,0]
["صباح وادي كاظم لفتة",3000,3000,300,10,"مديرية شرطة بغداد","2018-07-01",null,null,0]
["وائل حافظ عذيب بشير",1750,1750,175,10,"شرطة بغداد شؤون السيطرات","2018-07-01",null,null,0]
["سعيد والي جنحوت حسين",3000,3000,300,10,"مديرية شرطة بغداد","2018-07-01",null,null,0]
["سعيد والي جنحوت حسين",300,300,75,4,"مديرية شرطة بغداد","2018-07-01",null,null,0]
["اياد طارق حمودي نصيف ",4500,4500,450,10,"مديرية شرطة بغداد","2018-07-01",null,null,0]
["سعيد جبر جاسم عبد الحسين ",3000,3000,300,10,"الشرطة الاتحادية فق1","2018-07-01",null,null,0]
["طلال مهدي صالح هلال ",700,700,100,7,"الشرطة الاتحادية","2018-07-01",null,null,0]
["طلال مهدي صالح هلال ",900,900,100,9,"الشرطة الاتحادية","2018-07-01",null,null,0]
["طلال مهدي صالح هلال ",600,600,85,7,"الشرطة الاتحادية","2018-07-01",null,null,0]
["اركان كامل طاهر هوير",1200,1200,172,7,"حماية المنشات والشخصيات","2018-07-01",null,null,0]
["صلاح مهدي صالح هلول",1500,1500,150,10,"مديرية شرطة بغداد","2018-07-01",null,null,0]
["وريا خليل حسن ازاد ",700,700,100,7,"حماية المنشات والشخصيات","2018-07-01",null,null,0]
["وريا خليل حسن ازاد ",700,700,140,5,"حماية المنشات والشخصيات","2018-07-01",null,null,0]
["وريا خليل حسن ازاد ",700,700,88,8,"حماية المنشات والشخصيات","2018-07-01",null,null,0]
["وريا خليل حسن ازاد ",400,400,66,6,"حماية المنشات والشخصيات","2018-07-01",null,null,0]
["علاء فالح عبد الكاظم زغير",3000,3000,300,10,"مديرية شرطة بغداد فوج طوارئ بغداد","2018-07-01",null,null,0]
["حسام عريبي زغير حسين",300,250,50,7,"مديرية النجدة العامة","2018-07-01","تم التسديد",null,1]
["عامر بشير حميد راضي ",900,900,100,9,"الشرطة الاتحادية فق 2","2018-07-01",null,null,0]
["سيف كريم ياسين فرحان",2700,2400,300,10,"مديرية شرطة الكهرباء","2018-07-01","تم التسديد",null,1]
["سيف كريم ياسين فرحان",600,500,100,7,"مديرية شرطة الكهرباء","2018-07-01","تم التسديد",null,1]
["طالب عبد قاسم خليف ",1250,1250,125,10,"الشرطة الاتحادية معالجة المتفجرات","2018-07-01",null,null,0]
["مصطفى خليف ساير حويش ",700,700,100,7,"الشرطة الاتحادية فق 1","2018-07-01",null,null,0]
["مصطفى خليف ساير حويش ",450,450,75,6,"الشرطة الاتحادية فق 2","2018-07-01",null,null,0]
["مصطفى شوقي عبد بدر",900,900,100,9,"مديرية شرطة بغداد","2018-07-01",null,null,0]
["احمد رؤوف حسن ميشة ",1500,1500,150,10,"الشرطة الاتحادية كتيبة معالجة المتفجرات","2018-07-01",null,null,0]
["احمد عامر عبد الجليل محمد",613,526,87,8,"مديرية نجدة بغداد","2018-07-01","تم التسديد",null,1]
["حيدر فاضل حمزة سلمان ",1500,1500,150,10,"الشرطة الاتحادية الحسابات","2018-07-01",null,null,0]
["محمد جاسم خطار عودة ",600,600,100,6,"الشرطة الاتحادية فق 2","2018-07-01",null,null,0]
["فراس عبد الرزاق نعمة موسى ",3000,3000,300,10,"مديرية الأدلة الجنائية","2018-07-01",null,null,0]
["فراس عبد الرزاق نعمة موسى ",900,900,100,9,"مديرية الأدلة الجنائية","2018-07-01",null,null,0]
["حسين صبحي حسن حمادي",350,350,50,7,"مديرية شرطة بغداد","2018-07-01",null,null,0]
["رزاق جمعة موسى حسون",1350,1200,150,10,"مديرية شرطة الكهرباء","2018-07-01","تم التسديد",null,1]
["رزاق جمعة موسى حسون",1225,1050,175,8,"مديرية شرطة الكهرباء","2018-07-01","تم التسديد",null,1]
["رائد ساجد حبيب حندور",2400,2000,400,7,"مديرية شرطة الكهرباء","2018-07-01","تم التسديد",null,1]
["رائد ساجد حبيب حندور",100,50,50,5,"مديرية شرطة الكهرباء","2018-07-01","تم التسديد",null,1]
["حيدر فالح ناجي جارالله ",1500,1500,150,10,"الشرطة الاتحادية فق6 ","2018-07-01",null,null,0]
["ناطق صالح حاجم لولي وشل",515,430,85,7,"مديرية شرطة الكهرباء","2018-07-01","تم التسديد",null,1]
["اياد ناصر لفتة كنيهر",1029,858,171,7,"مديرية شرطة الكهرباء","2018-07-01","تم التسديد",null,1]
["سيف سعد خلف عطية",75,75,25,3,"الشرطة الاتحادية","2018-07-01",null,null,0]
["علي شاكر نعمة زبون ",1250,1250,125,10,"مديرية شرطة امانة بغداد","2018-07-01",null,null,0]
["رزاق جمعة موسى حسون",150,100,50,4,"مديرية شرطة الكهرباء","2018-07-01","تم التسديد",null,1]
["علي محمد مظهر محمد",700,700,100,7,"الشرطة الاتحادية مقر القيادة","2018-07-01",null,null,0]
["علي سلمان حاوي علوان ",600,600,100,6,"قيادة شرطة بغداد سرية سوات","2018-07-01",null,null,0]
["علي حسين جلوب دلي",1500,1500,150,10,"حماية المنشات والشخصيات","2018-07-01",null,null,0]
["علي حسن توفيق جاسم",130,130,33,4,"الشرطة الاتحادية فق 6","2018-07-01",null,null,0]
["احمد ثامر عبد الصاحب علوان",800,800,88,9,"قيادة شرطة بغداد","2018-07-01",null,null,0]
["علي جاسم سبتي بدر البدري",3000,3000,300,10,"الشرطة الاتحادية فق1","2018-07-01",null,null,0]
["عباس ناصر عدوان سلمان",600,600,86,7,"قيادة الشرطة الاتحادية","2018-07-02",null,null,0]
["حسين عباس حسن باشخ ",800,800,88,9,"الشرطة الاتحادية فق1","2018-07-02",null,null,0]
["حسين عباس حسن باشخ ",250,250,50,3,"الشرطة الاتحادية فق2","2018-07-02",null,null,0]
["حسين عباس حسن باشخ ",350,350,70,5,"الشرطة الاتحادية فق3","2018-07-02",null,null,0]
["حسين عباس حسن باشخ ",700,700,88,8,"الشرطة الاتحادية فق4","2018-07-02",null,null,0]
["علي اياد عبد الرحمن عبدالله",1500,1500,150,10,"الشرطة الاتحادية فق 1 المغاوير","2018-07-02",null,null,0]
["محمد حسين سلوم مناجي",25,25,25,1,"الدفاع المدني ","2018-07-02",null,null,0]
["سالم مصطفى عبد المصطفى الملا",300,300,50,6,"الشرطة الاتحادية فق1","2018-07-02",null,null,0]
["صلاح مهدي حسن بردي",2700,2400,300,10,"مديرية شرطة الكهرباء","2018-07-02","تم التسديد",null,1]
["معتز شاكر خضير دايم",1200,1200,200,6,"كلية الشرطة","2018-07-02",null,null,0]
["مصطفى خزعل خليفة مصطفى",4000,4000,333,12,"الشرطة الاتحادية فق الالية","2018-07-02",null,null,0]
["حسين صبري عبد منسي ",225,225,225,1,"حماية المنشات والشخصيات","2018-07-02",null,null,0]
["حسين صبري عبد منسي ",3000,3000,300,10,"حماية المنشات والشخصيات","2018-07-02",null,null,0]
["علاء مدب حسن خميس ",1500,1500,150,10,"الشرطة الاتحادية مقر فق 2","2018-07-02",null,null,0]
["عقيل نعمة راضي عليوي",1000,1000,143,7,"مديرية امن الافراد","2018-07-02",null,null,0]
["محمد حسن محمد حسين",600,{"$f":"B1612-J1612*D1612","v":600},86,7,"الشرطة الاتحادية فق 2","2018-07-02",null,null,{"$f":"COUNTIF(H1612:I1612,\"تم التسديد\")","v":0}]
["محمد حسن محمد حسين",1500,1500,150,10,"الشرطة الاتحادية فق 3","2018-07-02",null,null,0]
["عقيل عماد ياسين داوود",300,300,50,6,"الشرطة الاتحادية فق الالية","2018-07-02",null,null,0]
["رحيم مالك رحيم راشد",500,500,83,6,"فرقة التدخل السريع","2018-07-02",null,null,0]
["حيدر فالح ناجي جارالله ",1500,1500,150,10,"الشرطة الاتحادية","2018-07-02",null,null,0]
["حيدر فالح ناجي جارالله ",900,900,100,9,"الشرطة الاتحادية","2018-07-02",null,null,0]
["علي لازم حاتم مشجل ",3500,3500,350,10,"مكتب الوزير","2018-07-02",null,null,0]
["مريم غافل غضب خلف ",3000,3000,300,10,"حماية المنشات والشخصيات","2018-07-02",null,null,0]
["مريم مدهوش مثنى نجم",200,200,50,4,"المحكمة الثالثة المنطقة الثالثة","2018-07-02",null,null,0]
["احمد إسكندر محمود مرزوق",1250,1250,125,10,"الشرطة الاتحادية فق 2","2018-07-02",null,null,0]
["مصطفى جمعة حسين شمخي",1250,1250,125,10,"حماية المنشات والشخصيات","2018-07-02",null,null,0]
["مرتضى حسين عاشور حمزة ",150,150,50,3,"فرقة الرد السريع","2018-07-02",null,null,0]
["نبيل إبراهيم رحيم مزعل",800,700,100,9,"مديرية شرطة الكهرباء","2018-07-02","تم التسديد",null,1]
["مصطفى عبد الكريم شريف",800,700,100,9,"مديرية شرطة الكهرباء","2018-07-02","تم التسديد",null,1]
["علي حكمت عبد الرضا احمد",1200,1000,200,7,"مديرية شرطة الكهرباء","2018-07-02","تم التسديد",null,1]
["ثائر احسان جمال عباس",800,800,88,9,"مديرية الشرطة الاتحادية","2018-07-02",null,null,0]
["كريم كاظم عبدالله كريم",600,500,100,7,"مديرية نجدة بغداد ","2018-07-02","تم التسديد",null,1]
["احمد داوود عبادي زاجي",1250,1250,125,10,"الشرطة الاتحادية امرية الطبابة","2018-07-02",null,null,0]
["احمد داوود عبادي زاجي",1500,1500,150,10,"الشرطة الاتحادية امرية الطبابة","2018-07-02",null,null,0]
["محمد برهان محمد ياسين",450,450,75,6,"حماية المنشات والشخصيات","2018-07-03",null,null,0]
["محمد برهان محمد ياسين",200,200,50,4,"حماية المنشات والشخصيات","2018-07-03",null,null,0]
["فيصل نوري سلطان فليح ",800,700,100,9,"مديرية النجدة العامة","2018-07-03","تم التسديد",null,1]
["فيصل نوري سلطان فليح ",614,528,86,null,"مديرية النجدة العامة","2018-07-03","تم التسديد",null,1]
["فيصل نوري سلطان فليح ",1200,1000,200,null,"مديرية النجدة العامة","2018-07-03","تم التسديد",null,1]
["ستار جبار زاير حسن ",600,500,100,null,"مديرية نجدة بغداد","2018-07-03","تم التسديد",null,1]
["سعد علي شلش محسن ",612,524,88,null,"مديرية نجدة بغداد","2018-07-03","تم التسديد",null,1]
["سعد علي شلش محسن ",50,25,25,null,"مديرية نجدة بغداد","2018-07-03","تم التسديد",null,1]
["قصي عيدان موزان علي ",700,700,100,null,"الشرطة الاتحادية فق 1","2018-07-03",null,null,0]
["قصي عيدان موزان علي ",300,300,50,null,"الشرطة الاتحادية فق 1","2018-07-03",null,null,0]
["احمد عجيل راهي سبع",1800,1800,200,null,"امن وسلامة الوزارة","2018-07-03",null,null,0]
["علاء عامر صالح محمد",350,350,70,null,"مديرية شرطة صلاح الدين","2018-07-03",null,null,0]
["علاء عامر صالح محمد",900,900,100,null,"مديرية شرطة صلاح الدين","2018-07-03",null,null,0]
["علي موسى حميد بصيبص",1800,1800,200,null,"فرقة التدخل السريع","2018-07-03",null,null,0]
["علي موسى حميد بصيبص",250,250,50,null,"فرقة التدخل السريع","2018-07-03",null,null,0]
["حلمي عوني فاضل حسين",900,900,100,null,"مديرية شرطة بغداد","2018-07-03",null,null,0]
["عمر عماد عبد الفتاح خضير",900,900,150,6,"الشرطة الاتحادية لواء الرشاشات","2018-07-03",null,null,0]
["عمر عماد عبد الفتاح خضير",200,200,50,null,"الشرطة الاتحادية لواء الرشاشات","2018-07-03",null,null,0]
["عمر عماد عبد الفتاح خضير",700,700,100,null,"الشرطة الاتحادية لواء الرشاشات","2018-07-03",null,null,0]
["حيدر ماجد شنشل جلوب",1400,1400,200,null,"الشرطة الاتحادية مقر القيادة","2018-07-03",null,null,0]
["فاضل دريول عبدالله رخيص",800,700,100,null,"مديرية شرطة الكهرباء","2018-07-03","تم التسديد",null,1]
["فاضل دريول عبدالله رخيص",1200,1000,200,null,"مديرية شرطة الكهرباء","2018-07-03","تم التسديد",null,1]
["علي سلومي كومان خزاز  ",700,700,100,null,"الشرطة الاتحادية","2018-07-03",null,null,0]
["حامد نعيم محمد حسن ",450,450,75,null,"مديرية امن الافراد","2018-07-03",null,null,0]
["عباس حنون عيسى جاسم ",250,250,50,null,"شرطة اتحادية استخبارات وامن القيادة","2018-07-03",null,null,0]
["عباس حنون عيسى جاسم ",75,75,25,null,"شرطة اتحادية استخبارات وامن القيادة","2018-07-03",null,null,0]
["إبراهيم عبدالله فخري رسول",1200,1000,200,null,"مديرية النجدة العامة","2018-07-03","تم التسديد",null,1]
["مهدي محسن عباس خليف",1030,860,170,null,"مديرية شرطة الكهرباء","2018-07-03","تم التسديد",null,1]
["مهدي محسن عباس خليف",600,500,100,null,"مديرية شرطة الكهرباء","2018-07-03","تم التسديد",null,1]
["علي رعد ياسين حيدر ",1500,1500,150,null,"الشرطة الاتحادية فق 1","2018-07-03",null,null,0]
["احمد إبراهيم جبار غازي",1500,1500,150,null,"مديرية شرطة بغداد","2018-07-03",null,null,0]
["صباح وادي كاظم لفتة",900,900,100,null,"مديرية شرطة بغداد","2018-07-03",null,null,0]
["ساجد صباح جبار فاضل ",700,700,100,null,"حماية المنشات والشخصيات","2018-07-03",null,null,0]
["محمد مشرف عبد جاسم محمد",1270,1270,150,null,"مديرية شرطة الانبار","2018-07-03",null,null,0]
["علي هشام فاضل حسين ",700,700,100,null,"الشرطة الاتحادية فق1","2018-07-03",null,null,0]
["صفاء صباح شياع عودة ",1500,1500,150,null,"فرقة التدخل السريع","2018-07-03",null,null,0]
["علي بلاسم عبطان بداي",3000,3000,300,null,"مديرية الصيانة والخدمات","2018-07-03",null,null,0]
["حسين عبد الرزاق محمود سلمان ",450,450,75,null,"الشرطة الاتحادية مقر القيادة","2018-07-03",null,null,0]
["صلاح سعيد عبد الحسن كاظم",4500,4500,450,null,"الشرطة الاتحادية فق الالية","2018-07-03",null,null,0]
["احمد فاضل عودة جاسم",700,700,100,null,"الشرطة الاتحادية فق 2","2018-07-03",null,null,0]
["محمد عدنان فرحان ساجت",3000,3000,300,null,"الشرطة الاتحادية فق 1","2018-07-03",null,null,0]
["ايناس حسن علوان سرحان",500,500,72,null,"مديرية البطاقة الموحدة","2018-07-03",null,null,0]
["حسين داوود سلمان نجم",2800,2800,400,null,"مديرية شرطة الطاقة","2018-07-03",null,null,0]
["قاسم غازي مكارز حسين","د.ع.‏ 3,000.000 ",{"$error":"#VALUE!"},"د.ع.‏ 300.000 ",null,"مديرية شرطة الطاقة","2018-07-03",null,null,0]
["مصطفى عبد الكريم شريف",1200,1000,200,null,"مديرية شرطة الكهرباء","2018-07-03","تم التسديد",null,1]
["حيدر يابان عبدالله بداي ","د.ع.‏ 1,500.000 ",{"$f":"B1676-J1676*D1676","v":{"$error":"#VALUE!"}},"د.ع.‏ 150.000 ",null,"قوات حرس الحدود","2018-07-03",null,null,{"$f":"COUNTIF(H1676:I1676,\"تم التسديد\")","v":0}]
["علي سلمان حاوي علوان ","د.ع.‏ 700.000 ",{"$error":"#VALUE!"},"د.ع.‏ 100.000 ",null,"مديرية شرطة بغداد","2018-07-03",null,null,0]
["علي ماهر زكي إبراهيم الساعدي","د.ع.‏ 1,800.000 ",{"$error":"#VALUE!"},"د.ع.‏ 200.000 ",null,"قيادة شرطة بغداد الفوج التاسع","2018-07-03",null,null,0]
["علي ماهر زكي إبراهيم الساعدي","د.ع.‏ 450.000 ",{"$error":"#VALUE!"},"د.ع.‏ 75.000 ",null,"قيادة شرطة بغداد الفوج التاسع","2018-07-03",null,null,0]
["علي ماهر زكي إبراهيم الساعدي","د.ع.‏ 250.000 ",{"$error":"#VALUE!"},"د.ع.‏ 50.000 ",null,"قيادة شرطة بغداد الفوج التاسع","2018-07-03",null,null,0]
["رياض سعود عليوي مال الله",1350,1200,150,null,"مديرية شرطة الكهرباء","2018-07-03","تم التسديد",null,1]
["زيدون عماد مذخور محسن المحمداوي",1400,{"$error":"#VALUE!"},"د.ع.‏ 150.000 ",null,"الشرطة الاتحادية فق 1","2018-07-03",null,null,0]
["زيدون عماد مذخور محسن المحمداوي",600,{"$error":"#VALUE!"},"د.ع.‏ 100.000 ",null,"الشرطة الاتحادية فق 1","2018-07-03",null,null,0]
["اوس خالد صالح سعيد ","د.ع.‏ 2,700.000 ",{"$error":"#VALUE!"},"د.ع.‏ 300.000 ",null,"الشرطة الاتحادية قسم البحوث والدراسات","2018-07-03",null,null,0]
["اوس خالد صالح سعيد ","د.ع.‏ 900.000 ",{"$error":"#VALUE!"},"د.ع.‏ 100.000 ",null,"الشرطة الاتحادية قسم البحوث والدراسات","2018-07-03",null,null,0]
["حيدر حامد عبيد مطر","د.ع.‏ 1,500.000 ",{"$error":"#VALUE!"},"د.ع.‏ 150.000 ",null,"فرقة التدخل السريع","2018-07-04",null,null,0]
["حيدر حامد عبيد مطر","د.ع.‏ 700.000 ",{"$error":"#VALUE!"},"د.ع.‏ 100.000 ",null,"فرقة التدخل السريع","2018-07-04",null,null,0]
["حيدر حامد عبيد مطر","د.ع.‏ 250.000 ",{"$error":"#VALUE!"},"د.ع.‏ 50.000 ",null,"فرقة التدخل السريع","2018-07-04",null,null,0]
["عمر عماد عبد الفتاح خضير","د.ع.‏ 1,500.000 ",{"$error":"#VALUE!"},"د.ع.‏ 150.000 ",null,"الشرطة الاتحادية لواء الرشاشات","2018-07-04",null,null,0]
["رائد جهاد إبراهيم مصطفى",1500,1500,150,null,"قوات حرس الحدود","2018-07-04",null,null,0]
["قصي عيدان موزان علي ",900,900,100,null,"الشرطة الاتحادية فق1","2018-07-04",null,null,0]
["محمد عبد المحسن مسلم ",1500,1500,150,null,"مديرية شرطة بغداد","2018-07-04",null,null,0]
["عمر علوان شلال فرحان",3000,3000,300,null,"الشرطة الاتحادية فق 1","2018-07-04",null,null,0]
["عمر علوان شلال فرحان",900,900,100,null,"الشرطة الاتحادية فق 1","2018-07-04",null,null,0]
["محمد فهد درويش مخور",1500,1500,150,null,"الدفاع المدني","2018-07-04",null,null,0]
["سيف فضل عبد الهادي إبراهيم",1350,1200,150,null,"مديرية النجدة العامة","2018-07-04","تم التسديد",null,1]
["سيف فضل عبد الهادي إبراهيم",800,700,100,null,"مديرية النجدة العامة","2018-07-04","تم التسديد",null,1]
["سيف فضل عبد الهادي إبراهيم",612,524,88,null,"مديرية النجدة العامة","2018-07-04","تم التسديد",null,1]
["سيف فضل عبد الهادي إبراهيم",417,334,83,null,"مديرية النجدة العامة","2018-07-04","تم التسديد",null,1]
["نورس سلمان حسين كاظم",1500,1500,150,null,"الشرطة الاتحادية فق 1","2018-07-04",null,null,0]
["اشرف عبد الواحد إبراهيم مزعل",4000,4000,444,null,"مديرية البنى التحتية","2018-07-04",null,null,0]
["محمد طالب نايف حسوني",450,450,75,null,"حماية المنشا والشخصيات","2018-07-04",null,null,0]
["محمد طالب نايف حسوني",800,800,88,null,"حماية المنشات والشخصيات","2018-07-04",null,null,0]
["طلال مهدي صالح هلال ",450,450,75,null,"الشرطة الاتحادية امرية الطبابة","2018-07-04",null,null,0]
["خالد باسل محمد سعدون ",1313,1126,187,null,"الدفاع المدني","2018-07-04","تم التسديد",null,1]
["ساجد صباح جبار فاضل ",900,900,100,null,"حماية المنشات والشخصيات","2018-07-04",null,null,0]
["احمد محمد حسين مطنش",1600,1600,176,null,"حماية المنشات والشخصيات","2018-07-04",null,null,0]
["رعد سعد عودة محمد السوداني",700,700,87,null,"الشرطة الاتحادية فق3","2018-07-04",null,null,0]
["رعد سعد عودة محمد السوداني",450,450,75,null,"الشرطة الاتحادية فق3","2018-07-04",null,null,0]
["محمد يونس راضي موزان ",250,250,50,null,"مديرية شرطة بغداد","2018-07-04",null,null,0]
["احمد عبد محمد حساس",900,900,100,null,"مديرية شرطة بغداد","2018-07-04",null,null,0]
["احمد عبد محمد حساس",800,800,88,null,"مديرية شرطة بغداد","2018-07-04",null,null,0]
["سعد علي شلش محسن ",613,526,87,null,"مديرية شرطة النجدة","2018-07-04","تم التسديد",null,1]
["سعد علي شلش محسن ",712,624,88,null,"مديرية شرطة النجدة","2018-07-04","تم التسديد",null,1]
["جاسم عبد الباقي عبد الستار سلوم",250,250,50,null,"لشرطة الاتحادية فق1","2018-07-04",null,null,0]
["جاسم عبد الباقي عبد الستار سلوم",200,200,50,null,"لشرطة الاتحادية فق2","2018-07-04",null,null,0]
["جاسم عبد الباقي عبد الستار سلوم",50,50,50,null,"لشرطة الاتحادية فق3","2018-07-04",null,null,0]
["حسن سمير حسن حمدي",75,75,25,null,"مديرية شرطة بغداد","2018-07-04",null,null,0]
["حسن سمير حسن حمدي",200,200,50,null,"مديرية شرطة بغداد","2018-07-04",null,null,0]
["ضياء رحيم محمود علي",750,600,150,null,"مديرية النجدة العامة","2018-07-04","تم التسديد",null,1]
["علي ماهر زكي إبراهيم الساعدي",1600,1600,177,null,"قيادة شرطة بغداد ","2018-07-04",null,null,0]
["عقيل سعدون ساهي حميدي",4000,4000,400,null,"مديرية نجدة بغداد","2018-07-04",null,null,0]
["حمزة عبد عون عيدان",3200,3200,352,null,"مديرية الصيانة والخدمات","2018-07-04",null,null,0]
["ياسر صلاح طاهر محمد علي",250,250,50,null,"الشرطة الاتحادية فق1","2018-07-04",null,null,0]
["ياسر صلاح طاهر محمد علي",125,125,25,null,"الشرطة الاتحادية فق1","2018-07-04",null,null,0]
["قصي عجيل محسن كمر",1600,1600,177,null,"مديرية البنى التحتية","2018-07-04",null,null,0]
["هشام عودة غربي سلطان",2100,2100,300,null,"الشرطة الاتحادية فق 4","2018-07-04",null,null,0]
["محمد عباس فاضل حسين",25,25,25,null,"قوات حرس الحدود","2018-07-04",null,null,0]
["ستار جبار زاير حسن ",250,200,50,null,"مديرية نجدة بغداد","2018-07-04","تم التسديد",null,1]
["ستار جبار زاير حسن ",1200,1000,200,null,"مديرية نجدة بغداد","2018-07-04","تم التسديد",null,1]
["احمد عامر عبد الجليل محمد",800,700,100,null,"مديرية نجدة بغداد","2018-07-05","تم التسديد",null,1]
["طالب علي سعدون لعيبي",1200,1000,200,null,"مديرية نجدة بغداد","2018-07-05","تم التسديد",null,1]
["طالب علي سعدون لعيبي",97,64,33,null,"مديرية نجدة بغداد","2018-07-05","تم التسديد",null,1]
["علاء حسن درباس حسن",75,75,25,null,"الشرطة الاتحادية فق 1","2018-07-05",null,null,0]
["علاء كاظم عبد الحسين كاظم",75,75,25,null,"محكمة تميز قوى الامن","2018-07-05",null,null,0]
["ناطق صالح حاجم لولي وشل",515,430,85,null,"مديرية شرطة الكهرباء","2018-07-05","تم التسديد",null,1]
["طعمة عبد الرحيم طاهر علي",250,250,50,null,"الشرطة الاتحادية فق 2","2018-07-05",null,null,0]
["طعمة عبد الرحيم طاهر علي",700,700,88,null,"الشرطة الاتحادية فق 2","2018-07-05",null,null,0]
["علاء حسين علي حميد ",600,600,85,null,"الشرطة الاتحادية فق 3","2018-07-05",null,null,0]
["علاء حسين علي حميد ",1600,{"$f":"B1740-J1740*D1740","v":1600},177,null,"الشرطة الاتحادية فق 3","2018-07-05",null,null,{"$f":"COUNTIF(H1740:I1740,\"تم التسديد\")","v":0}]
["علاء حسين علي حميد ",700,700,87,null,"الشرطة الاتحادية فق 3","2018-07-05",null,null,0]
["نهاد يوسف بريسم عصاد",1225,1050,175,null,"مديرية نجدة بغداد","2018-07-05","تم التسديد",null,1]
["نهاد يوسف بريسم عصاد",250,200,50,null,"مديرية نجدة بغداد","2018-07-05","تم التسديد",null,1]
["ضياء عبد الوهاب عبد الرزاق صبيح",1400,1400,175,null,"مديرية شرطة بغداد","2018-07-05",null,null,0]
["وسام عباس نكروز جخيم",1400,1400,175,null,"حماية المنشات والشخصيات","2018-07-05",null,null,0]
["حسين حمود موزان ناصر",8500,8000,500,null,"مديرية شرطة النجدة","2018-07-05","تم التسديد",null,1]
["محمد هادي سرحان بدر",800,800,88,null,"الشرطة الاتحادية فق2","2018-07-05",null,null,0]
["محمد هادي سرحان بدر",700,700,87,null,"الشرطة الاتحادية فق 2","2018-07-05",null,null,0]
["حسين جواد كاظم حمد",1000,1000,142,null,"الشرطة الاتحادية فق 6","2018-07-05",null,null,0]
["عقيل تركي عبود مضحي",600,600,85,null,"الشرطة الاتحادية فق5","2018-07-05",null,null,0]
["حيدر يابان عبدالله بداي ",700,700,87,null,"قوات حرس الحدود","2018-07-05",null,null,0]
["حيدر يابان عبدالله بداي ",300,300,50,null,"قوات حرس الحدود","2018-07-05",null,null,0]
["حيدر علي ذيبان سلمان ",800,800,88,null,"مديرية التدريب والتأهيل","2018-07-05",null,null,0]
["احمد محمد حسين مطنش",700,700,87,null,"حماية المنشات والشخصيات","2018-07-05",null,null,0]
["خالد حسن علي جاري",800,800,88,null,"قوات حرس الحدود","2018-07-05",null,null,0]
["خالد حسن علي جاري",700,700,87,null,"قوات حرس الحدود","2018-07-05",null,null,0]
["خالد حسن علي جاري",600,600,85,null,"قوات حرس الحدود","2018-07-05",null,null,0]
["حسين محسن نصار عبدالله ",900,900,100,null,"فرقة التدخل السريع","2018-07-05",null,null,0]
["حسين محسن نصار عبدالله ",200,200,50,null,"فرقة التدخل السريع","2018-07-05",null,null,0]
["حسين محسن نصار عبدالله ",350,350,70,null,"فرقة التدخل السريع","2018-07-05",null,null,0]
["مصطفى نجاح قاسم ثجيل",700,700,100,null,"قيادة قوات الشرطة الاتحادية","2018-07-05",null,null,0]
["مصطفى نجاح قاسم ثجيل",1600,1600,178,null,"قيادة قوات الشرطة الاتحادية","2018-07-05",null,null,0]
["وهاب قاسم كريم مريوش",250,200,50,null,"مديرية النجدة العامة","2018-07-05","تم التسديد",null,1]
["بتول علي زغير فليفل",300,300,50,null,"الشرطة الاتحادية","2018-07-05",null,null,0]
["مالك محمود خشان ختلان",800,800,88,null,"كلية الشرطة","2018-07-05",null,null,0]
["رعد سعد عودة محمد السوداني",1400,1400,175,null,"الشرطة الاتحادية فق3 ل 11","2018-07-05",null,null,0]
["سلام فرحان بنوان إبراهيم ",1225,1050,175,null,"مديرية النجدة العامة","2018-07-05","تم التسديد",null,1]
["علي عبد الرزاق سالم حسين",75,75,25,null,"فرقة التدخل السريع","2018-07-05",null,null,0]
["حيدر احمد عباس سلوم ",450,450,75,null,"قوات حرس الحدود","2018-07-05",null,null,0]
["فاضل صبري حسين علي",600,600,200,null,"الشرطة الاتحادية فق5","2018-07-05",null,null,0]
["فاضل صبري حسين علي",350,350,50,null,"الشرطة الاتحادية فق5","2018-07-05",null,null,0]
["احمد هيثم حسين إبراهيم ",1125,900,225,null,"مديرية شرطة الكهرباء","2018-07-05","تم التسديد",null,1]
["احمد هيثم حسين إبراهيم ",600,500,100,null,"مديرية شرطة الكهرباء","2018-07-05","تم التسديد",null,1]
["تحسين علي عطية عبد السادة",900,900,100,null,"الشرطة الاتحادية فق1","2018-07-05",null,null,0]
["مازن جبار زيدان سهر",2700,2700,300,null,"قيادة شرطة بغداد","2018-07-05",null,null,0]
["علي هشام فاضل حسين ",900,900,100,null,"الشرطة الاتحادية فق 1","2018-07-05",null,null,0]
["بهاء صلاح نعمان علوان",75,75,25,null,"فرقة التدخل السريع","2018-07-07",null,null,0]
["جاسم عواد شلاش مطروح",450,450,75,null,"مديرية شرطة بغداد","2018-07-07",null,null,0]
["رسول محمد حسن كعيد",900,900,100,null,"الشرطة الاتحادية فق5","2018-07-07",null,null,0]
["رسول محمد حسن كعيد",150,150,50,null,"الشرطة الاتحادية فق5","2018-07-07",null,null,0]
["رسول محمد حسن كعيد",200,200,50,null,"الشرطة الاتحادية فق5","2018-07-07",null,null,0]
["مختار عناد معلة حسين",700,600,100,null,"مديرية النجدة العامة","2018-07-07","تم التسديد",null,1]
["مختار عناد معلة حسين",200,150,50,null,"مديرية النجدة العامة","2018-07-07","تم التسديد",null,1]
["نعمان محمد إبراهيم حمادي ",300,300,60,null,"حماية المنشات والشخصيات","2018-07-07",null,null,0]
["نعمان محمد إبراهيم حمادي ",450,450,75,null,"حماية المنشات والشخصيات","2018-07-07",null,null,0]
["نعمان محمد إبراهيم حمادي ",75,75,25,null,"حماية المنشات والشخصيات","2018-07-07",null,null,0]
["عقيل صباح حسين بدر",250,250,50,null,"الشرطة الاتحادية فق6 ","2018-07-07",null,null,0]
["علاء سعد صكراشغيت",700,700,89,null,"الشرطة الاتحادية فق6 ","2018-07-07",null,null,0]
["علاء سعد صكراشغيت",900,900,100,null,"الشرطة الاتحادية فق6 ","2018-07-07",null,null,0]
["علاء سعد صكراشغيت",350,350,70,null,"الشرطة الاتحادية فق6 ","2018-07-07",null,null,0]
["رسول محمد حسن كعيد",350,350,75,null,"الشرطة الاتحادية فق 5","2018-07-07",null,null,0]
["رسول محمد حسن كعيد",130,130,32,null,"الشرطة الاتحادية فق 5","2018-07-07",null,null,0]
["رسول محمد حسن كعيد",900,900,100,null,"الشرطة الاتحادية فق 5","2018-07-07",null,null,0]
["فهد وليد خالد علي ",700,700,87,null,"حماية المنشات والشخصيات","2018-07-07",null,null,0]
["فهد وليد خالد علي ",200,200,50,null,"حماية المنشات والشخصيات","2018-07-07",null,null,0]
["اركان محمد حسن حسين ",350,350,70,null,"مديرية شرطة بغداد","2018-07-07",null,null,0]
["حيدر نعيم عبد حسين",500,500,71,null,"امن وسلامة الوزارة","2018-07-07",null,null,0]
["سلام فرحان بنوان إبراهيم ",800,700,100,null,"مديرية النجدة العامة","2018-07-07","تم التسديد",null,1]
["سلام فرحان بنوان إبراهيم ",613,526,87,null,"مديرية النجدة العامة","2018-07-07","تم التسديد",null,1]
["مجيب عبد الرسول جابر محمد",1800,1800,200,null,"الشرطة الاتحادية فق2","2018-07-07",null,null,0]
["عباس احمد محمود هاشم ",1800,1800,200,null,"حماية المنشات والشخصيات","2018-07-07",null,null,0]
["حيدر هادي سلمان عبد الرزاق",300,300,50,null,"مديرية شرطة ديالى","2018-07-07",null,null,0]
["حيدر هادي سلمان عبد الرزاق",270,270,54,null,"مديرية شرطة ديالى","2018-07-07",null,null,0]
["علي خضير رومي شلبة",900,{"$f":"B1804-J1804*D1804","v":800},100,null,"مديرية شرطة الكهرباء","2018-07-07","تم التسديد",null,{"$f":"COUNTIF(H1804:I1804,\"تم التسديد\")","v":1}]
["قحطان كامل عنيد جابر الساعدي",3500,3500,350,null,"مديرية شرطة بغداد","2018-07-07",null,null,0]
["قصي عيدان موزان علي ",900,900,100,null,"الشرطة الاتحادية فق 1","2018-07-07",null,null,0]
["قصي عيدان موزان علي ",300,300,50,null,"الشرطة الاتحادية فق 1","2018-07-07",null,null,0]
["علي ماهر زكي إبراهيم الساعدي",900,900,100,null,"قيادة شرطة بغداد","2018-07-07",null,null,0]
["طالب علي سعدون لعيبي",800,700,100,null,"مديرية نجدة بغداد","2018-07-07","تم التسديد",null,1]
["عادل عباس حجي سبهان",900,900,100,null,"مديرية شرطة بغداد","2018-07-07",null,null,0]
["حذيفة ماجد عبد الحميد عبد الحسين ",1225,1050,175,null,"مديرية نجدة بغداد","2018-07-07","تم التسديد",null,1]
["مريم مدهوش مثنى نجم",2100,2100,262,null,"محكمة تميز قوى الامن","2018-07-07",null,null,0]
["حسين كاظم طلب جبرالله ",700,700,87,null,"الشرطة الاتحادية فق2","2018-07-07",null,null,0]
["حسين كاظم طلب جبرالله ",300,300,50,null,"الشرطة الاتحادية فق2","2018-07-07",null,null,0]
["محمد احمد جمعة محمد",250,200,50,null,"مديرية نجدة بغداد","2018-07-07","تم التسديد",null,1]
["محمد احمد جمعة محمد",613,526,87,null,"مديرية نجدة بغداد","2018-07-07","تم التسديد",null,1]
["عامر عبد الرزاق محمد مجيد",800,700,100,null,"مديرية نجدة بغداد","2018-07-07","تم التسديد",null,1]
["عامر عبد الرزاق محمد مجيد",225,150,75,null,"مديرية نجدة بغداد","2018-07-07","تم التسديد",null,1]
["عامر عبد الرزاق محمد مجيد",613,526,87,null,"مديرية نجدة بغداد","2018-07-07","تم التسديد",null,1]
["عامر عبد الرزاق محمد مجيد",50,25,25,null,"مديرية نجدة بغداد","2018-07-07","تم التسديد",null,1]
["مراد كاظم جبر سعد",711,622,89,null,"مديرية نجدة بغداد","2018-07-07","تم التسديد",null,1]
["مراد كاظم جبر سعد",50,25,25,null,"مديرية نجدة بغداد","2018-07-07","تم التسديد",null,1]
["طارق عبد الأمير خضير",300,300,50,null,"الشرطة الاتحادية فق 1","2018-07-07",null,null,0]
["طارق عبد الأمير خضير",75,75,25,null,"الشرطة الاتحادية فق 1","2018-07-07",null,null,0]
["ماهر مجيد حميد سلطان",1837,1574,263,null,"مديرية نجدة بغداد","2018-07-07","تم التسديد",null,1]
["حسين مهدي صالح كاظم",75,75,25,null,"معهد اعداد المفوضين","2018-07-07",null,null,0]
["مصطفى عبد الكريم شريف",613,526,87,null,"مديرية شرطة الكهرباء","2018-07-07","تم التسديد",null,1]
["عفاف لطيف عبدالله عبدالله",5000,5000,416,null,"الشرطة الاتحادية فق 2","2018-07-07",null,null,0]
["عصام كريم جبار شمخي ",150,150,50,null,"مديرية البنى التحتية","2018-07-07",null,null,0]
["رياض عماد تحسين طاهر",1400,1400,175,null,"حماية المنشات والشخصيات","2018-07-07",null,null,0]
["احمد عبد تمن دعيج ",9000,9000,500,null,"الشرطة الاتحادية فق1","2018-07-07",null,null,0]
["هشام شاكر رشيد رملة ",1225,1050,175,null,"مديرية شرطة الكهرباء","2018-07-07","تم التسديد",null,1]
["علي عذاب فليح حسن ",4584,4168,416,null,"مديرية شرطة النجدة","2018-07-07","تم التسديد",null,1]
["علاء كريم جبار سلمان ",600,513,87,null,"مديرية شرطة الكهرباء","2018-07-07","تم التسديد",null,1]
["حيدر حامد عبيد مطر",900,900,100,null,"فرقة التدخل السريع","2018-07-07",null,null,0]
["مالك محمود خشان ختلان",700,700,87,null,"كلية الشرطة","2018-07-07",null,null,0]
["مصطفى مهدي حمود مهول",300,300,50,null,"مديرية الصيانة والخدمات","2018-07-07",null,null,0]
["مصطفى مهدي حمود مهول",700,700,87,null,"مديرية الصيانة والخدمات","2018-07-07",null,null,0]
["حسين عبد السيد بوتو",600,600,86,null,"مديرية شرطة بغداد","2018-07-07",null,null,0]
["حسين عبد السيد بوتو",700,700,88,null,"مديرية شرطة بغداد","2018-07-07",null,null,0]
["حسين عبد السيد بوتو",900,900,100,null,"مديرية شرطة بغداد","2018-07-07",null,null,0]
["علي محمد كاظم حمود ",1800,1800,200,null,"قوات حرس الحدود","2018-07-07",null,null,0]
["سيف عراك جميل عبد الله",900,900,100,null,"مديرية نجدة بغداد","2018-07-07",null,null,0]
["سيف عراك جميل عبد الله",2100,2100,300,null,"مديرية نجدة بغداد","2018-07-07",null,null,0]
["حسين علي ناصر محمد",900,900,100,null,"مديرية الصيانة والخدمات","2018-07-08",null,null,0]
["احمد عبد القادر مهدي صالح",900,900,100,null,"امن وسلامة الوزارة","2018-07-08",null,null,0]
["احمد عبد القادر مهدي صالح",900,900,100,null,"امن وسلامة الوزارة","2018-07-08",null,null,0]
["هادي عبد رسن ثويني",1800,1800,200,null,"ش أ فق الالية","2018-07-08",null,null,0]
["احمد محمد حسين مطنش",700,700,100,null,"حماية المنشات والشخصيات","2018-07-08",null,null,0]
["مقداد خضير عباس عبد الهادي",600,500,100,null,"مديرية النجدة العامة","2018-07-08","تم التسديد",null,1]
["مقداد خضير عباس عبد الهادي",200,150,50,null,"مديرية النجدة العامة","2018-07-08","تم التسديد",null,1]
["هشام محمد حسين احمد",200,150,50,null,"مديرية نجدة بغداد","2018-07-08","تم التسديد",null,1]
["علي عبد الأمير عباس عصري",711,622,89,null,"مديرية نجدة بغداد","2018-07-08","تم التسديد",null,1]
["ضياء جاسم محمد محسن",2100,2100,262,null,"حماية المنشات والشخصيات","2018-07-08",null,null,0]
["عماد كاظم رحيمة عباس",1576,1314,262,null,"مديرية نجدة بغداد","2018-07-08","تم التسديد",null,1]
["عماد كاظم رحيمة عباس",250,200,50,null,"مديرية نجدة بغداد","2018-07-08","تم التسديد",null,1]
["عماد كاظم رحيمة عباس",280,210,70,null,"مديرية نجدة بغداد","2018-07-08","تم التسديد",null,1]
["سعد جليل سعيد حمود",5000,5000,500,null,"مديرية الدفاع المدني","2018-07-08",null,null,0]
["كرار اياد عبد الواحد سلمان ",350,350,70,null,"الشرطة الاتحادية فق5","2018-07-08",null,null,0]
["محمد كاظم حسن خريبط السوداني",700,700,87,null,"الاتحادية فق1 ل2 ف3","2018-07-08",null,null,0]
["احمد صاحب جمعة عناد الخالدي",900,900,100,null,"الاتحادية فق5 المقر","2018-07-08",null,null,0]
["احمد صاحب جمعة عناد الخالدي",700,700,87,null,"الاتحادية فق5 المقر","2018-07-08",null,null,0]
["محمد برهان محمد ياسين",900,900,100,null,"مديرية حماية المنشات /قاطع المدائن","2018-07-08",null,null,0]
["سعد علي شلش محسن ",613,526,87,null,"مديرية النجدة العامة","2018-07-08","تم التسديد",null,1]
["سعد علي شلش محسن ",800,700,100,null,"مديرية النجدة العامة","2018-07-08","تم التسديد",null,1]
["عمر هاشم محمد ضاري",5000,5000,416,null,"شرطة بغداد /قاطع الاعظمية","2018-07-08",null,null,0]
["عمر هاشم محمد ضاري",450,450,75,null,"شرطة بغداد /قاطع الاعظمية","2018-07-08",null,null,0]
["ثائر كامل جواد كاظم الشمري",1400,{"$f":"B1868-J1868*D1868","v":1400},175,null,"مديرية شرطة بغداد","2018-07-08",null,null,{"$f":"COUNTIF(H1868:I1868,\"تم التسديد\")","v":0}]
["علي عبد المهدي محمد قاسم التميمي",4584,4168,416,null,"مديرية شرطة الكهرباء","2018-07-08","تم التسديد",null,1]
["علي عبد المهدي محمد قاسم التميمي",613,526,87,null,"مديرية شرطة الكهرباء","2018-07-08","تم التسديد",null,1]
["جبار هادي عبد خضر الاسدي",5000,5000,416,null,"الاتحادية فق2 ل8 مقر اللواء","2018-07-08",null,null,0]
["هشام عماد خيري إبراهيم",700,700,87,null,"مديرية حماية المنشات والشخصيات","2018-07-08",null,null,0]
["علي كاظم طالب حسن التميمي",4584,4168,416,null,"مديرية شرطة الكهرباء","2018-07-08","تم التسديد",null,1]
["رافد عبد الواحد جبار مطلك",900,900,100,null,"الاتحادية فق2 ل8 الفوج الثالث","2018-07-08",null,null,0]
["ايسر حكمت محمود خضر القيسي",25,25,25,null,"الاتحادية فق1 ل3 مقر اللواء","2018-07-08",null,null,0]
["علي جاسم محمد جواد الدليمي",700,700,87,null,"الاتحادية /فق الالية","2018-07-08",null,null,0]
["علي جاسم محمد جواد الدليمي",700,700,87,null,"الاتحادية /فق الالية","2018-07-08",null,null,0]
["احمد سلمان شنان فرج السوداني",900,900,100,null,"امن وسلامة الوزارة","2018-07-08",null,null,0]
["جورج داوود جورج داوود",700,700,87,null,"الاتحادية","2018-07-08",null,null,0]
["حيدر حميد عميد حوشان الحميداوي",250,200,50,null,"مديرية شرطة الكهرباء","2018-07-08","تم التسديد",null,1]
["حيدر حميد عميد حوشان الحميداوي",67,29,38,null,"مديرية شرطة الكهرباء","2018-07-08","تم التسديد",null,1]
["حسنين موات حسين إبراهيم",5000,5000,416,null,"الاتحادية /فق2 ل8 مقر اللواء","2018-07-08",null,null,0]
["عدي هاشم صمد حسن الجبوري",1423,1246,177,null,"مديرية نجدة بغداد / قاطع الطارمية","2018-07-08","تم التسديد",null,1]
["عدي هاشم صمد حسن الجبوري",514,428,86,null,"مديرية نجدة بغداد / قاطع الطارمية","2018-07-08","تم التسديد",null,1]
["تحسين سليم هاتو سلمان الفيصلاوي",600,600,100,null,"امن وسلامة الوزارة","2018-07-08",null,null,0]
["محمد علي طه حميد البياتي",300,300,50,null,"الاتحادية / مقر القيادة","2018-07-08",null,null,0]
["وفاء شنيور جلود زغير",25,25,25,null,"حماية المنشات والشخصيات","2018-07-08",null,null,0]
["علي حسن توفيق جاسم",500,500,83,null,"الشرطة الاتحادية","2018-07-08",null,null,0]
["يحيى حميد مجيد شاباز ",429,358,71,null,"مديرية نجدة بغداد","2018-07-08","تم التسديد",null,1]
["قصي ساجد عبدالله عبد الرزاق",300,300,50,null,"محكمة تميز قوى الامن","2018-07-08",null,null,0]
["رائد فيصل شاكر قمندار ",3200,3200,355,null,"مديرية شرطة بغداد","2018-07-08",null,null,0]
["عباس شنون عبد الحسين قمبر",700,700,87,null,"الشرطة الاتحادية","2018-07-09",null,null,0]
["بركات عبد الزهرة فيروز عبدالله",350,350,70,null,"مديرية العلاقات والاعلام","2018-07-09",null,null,0]
["عامر عبد الرزاق محمد مجيد",711,622,89,null,"مديرية نجدة بغداد","2018-07-09","تم التسديد",null,1]
["اياد كاظم ماضي شميل",700,700,88,null,"امن وسلامة الوزارة","2018-07-09",null,null,0]
["عادل عبد الزهرة خلف جابر",700,700,88,null,"قوات حرس الحدود","2018-07-09",null,null,0]
["عادل عبد الزهرة خلف جابر",350,350,70,null,"قوات حرس الحدود","2018-07-09",null,null,0]
["عماد كاظم عبود عذار ",125,125,25,null,"مديرية شرطة بغداد","2018-07-09",null,null,0]
["حسين علي حسين غضبان ",300,300,50,null,"الشرطة الاتحادية","2018-07-09",null,null,0]
["قيس نوار إبراهيم معيوف",500,500,83,null,"مديرية شرطة بغداد","2018-07-09",null,null,0]
["عباس احمد محمود هاشم ",850,850,95,null,"حماية المنشات والشخصيات","2018-07-09",null,null,0]
["عباس فاضل حميد عريم",850,850,95,null,"كلية الشرطة","2018-07-09",null,null,0]
["محمد مزعل إسماعيل جويعد",755,660,95,null,"مديرية شرطة الكهرباء","2018-07-09","تم التسديد",null,1]
["سجاد محمد علي جعفر ",150,150,50,null,"الشرطة الاتحادية المقر","2018-07-09",null,null,0]
["محمد احمد جمعة محمد",755,660,95,null,"مديرية نجدة بغداد","2018-07-09","تم التسديد",null,1]
["محمد احمد جمعة محمد",150,100,50,null,"مديرية نجدة بغداد","2018-07-09","تم التسديد",null,1]
["صفاء جميل علوان حسين ",3400,3400,377,null,"مديرية شرطة بغداد","2018-07-09",null,null,0]
["منير سامي ياسين عباس",1700,1700,188,null,"مديرية شرطة ديالى","2018-07-09",null,null,0]
["منير سامي ياسين عباس",900,900,100,null,"مديرية شرطة ديالى","2018-07-09",null,null,0]
["مروان إبراهيم مسلط حسون",500,500,71,null,"مديرية امن الافراد","2018-07-09",null,null,0]
["كريم عبدالله محمد ويس القره ولي",755,660,95,null,"مديرية شرطة الكهرباء","2018-07-09","تم التسديد",null,1]
["عبد الأمير علوان عبود عليان",800,800,89,null,"مديرية التدريب والتأهيل","2018-07-09",null,null,0]
["عبد الحميد ناجي صبر نجرس",800,800,89,null,"مديرية شرطة الانبار","2018-07-09",null,null,0]
["عبد الحميد ناجي صبر نجرس",850,850,94,null,"مديرية شرطة الانبار","2018-07-09",null,null,0]
["عبد الحميد ناجي صبر نجرس",1000,1000,143,null,"مديرية شرطة الانبار","2018-07-09",null,null,0]
["حاتم عبد الكريم صالح مطر",800,800,89,null,"الشرطة الاتحادية","2018-07-09",null,null,0]
["علي خضير عبد الحسين الحسناوي",3150,3150,450,null,"الشرطة الاتحادية","2018-07-09",null,null,0]
["مؤيد حازم شاكراحمد محمد",1250,1250,125,null,"كلية الشرطة","2018-07-09",null,null,0]
["علي حمزة جتان صبري ",2250,2000,250,null,"مديرية شرطة الكهرباء","2018-07-09","تم التسديد",null,1]
["علي حمزة جتان صبري ",712,624,88,null,"مديرية شرطة الكهرباء","2018-07-09","تم التسديد",null,1]
["مرتضى عبد الاله عبد الشهيد عبود",2250,2000,250,null,"مديرية شرطة الكهرباء","2018-07-09","تم التسديد",null,1]
["مرتضى عبد الاله عبد الشهيد عبود",712,624,88,null,"مديرية شرطة الكهرباء","2018-07-09","تم التسديد",null,1]
["عماد شاكر حمزة سلمان ",2250,2000,250,null,"مديرية شرطة الكهرباء","2018-07-09","تم التسديد",null,1]
["عماد شاكر حمزة سلمان ",712,624,88,null,"مديرية شرطة الكهرباء","2018-07-09","تم التسديد",null,1]
["مازن محمد غني حمزة الجبوري",1250,1250,125,null,"حماية المنشات والشخصيات","2018-07-09",null,null,0]
["مازن محمد غني حمزة الجبوري",1600,1600,177,null,"حماية المنشات والشخصيات","2018-07-09",null,null,0]
["مازن محمد غني حمزة الجبوري",1250,1250,125,null,"حماية المنشات والشخصيات","2018-07-09",null,null,0]
["هادي عبد رسن ثويني",1250,1250,125,null,"الشرطة الاتحادية","2018-07-09",null,null,0]
["حيدر يابان عبدالله بداي ",450,450,75,null,"قوات حرس الحدود","2018-07-09",null,null,0]
["طه علي جبار محمد",500,500,83,null,"مديرية تصليح اليات مقر الوزارة","2018-07-09",null,null,0]
["حيدر فرحان محمد حسين ",800,800,88,null,"حماية المنشات والشخصيات","2018-07-09",null,null,0]
["حيدر فرحان محمد حسين ",900,{"$f":"B1932-J1932*D1932","v":900},100,null,"حماية المنشات والشخصيات","2018-07-09",null,null,{"$f":"COUNTIF(H1932:I1932,\"تم التسديد\")","v":0}]
["كفاح عاصي عبد داوود",3200,3200,356,null,"الشرطة الاتحادية فق2","2018-07-10",null,null,0]
["عباس شنون عبد الحسين قمبر",2550,2550,283,null,"الشرطة الاتحادية مقر القيادة","2018-07-10",null,null,0]
["حيدر علي نعمة شبار ",1700,1700,189,null,"مديرية التدريب والتأهيل","2018-07-10",null,null,0]
["نهاد يوسف بريسم عصاد",500,400,100,null,"مديرية نجدة بغداد","2018-07-10","تم التسديد",null,1]
["نهاد يوسف بريسم عصاد",300,200,100,null,"مديرية نجدة بغداد","2018-07-10","تم التسديد",null,1]
["حيدر عزيز حسن حسين العامري",3023,2646,377,null,"مديرية شرطة الكهرباء","2018-07-10","تم التسديد",null,1]
["علاء سعد صكراشغيت",1500,1500,188,null,"الشرطة الاتحادية","2018-07-10",null,null,0]
["عامر عبد الرزاق محمد مجيد",50,0,50,null,"مديرية شرطة النجدة","2018-07-10","تم التسديد",null,1]
["احمد حسن ريسان جاسم الحسناوي",2250,2250,375,null,"الشرطة الاتحادية","2018-07-10",null,null,0]
["حيدر احمد عباس سلوم ",450,450,75,null,"قيادة قوات الحدود","2018-07-10",null,null,0]
["انفال شياع فيصل مسلم الرفاعي",500,500,83,null,"مديرية شرطة بغداد","2018-07-10",null,null,0]
["انفال شياع فيصل مسلم الرفاعي",240,240,48,null,"مديرية شرطة بغداد","2018-07-10",null,null,0]
["وسام قاسم عباس علي ",2550,2550,283,null,"امن وسلامة الوزارة","2018-07-10",null,null,0]
["سامر ستار محمد موازي",450,450,75,null,"الشرطة الاتحادية","2018-07-10",null,null,0]
["مصطفى نجاح قاسم ثجيل",800,800,88,null,"الشرطة الاتحادية القيادة","2018-07-10",null,null,0]
["سعد خالد سلمان حسين",350,350,70,null,"مديرية الشهداء والجرحى","2018-07-10",null,null,0]
["سعد خالد سلمان حسين",350,350,70,null,"مديرية الشهداء والجرحى","2018-07-10",null,null,0]
["سعد خالد سلمان حسين",750,750,93,null,"مديرية الشهداء والجرحى","2018-07-10",null,null,0]
["سعد خالد سلمان حسين",600,600,86,null,"مديرية الشهداء والجرحى","2018-07-10",null,null,0]
["محمد سعيد جعفر احمد",1750,1750,175,null,"مديرية الصيانة والخدمات","2018-07-10",null,null,0]
["سعد خالد سلمان حسين",450,450,75,null,"مديرية الشهداء والجرحى","2018-07-10",null,null,0]
["عامر نوري نعمة لفتة",3150,2800,350,null,"مديرية شرطة الكهرباء","2018-07-10","تم التسديد",null,1]
["عباس جادر محمد كريم",3150,2800,350,null,"مديرية شرطة الكهرباء","2018-07-10","تم التسديد",null,1]
["رائد حكيم لطيف عباس",500,500,83,null,"مكتب الوزير","2018-07-11",null,null,0]
["نبيل إبراهيم رحيم مزعل",900,800,100,null,"مديرية شرطة الكهرباء","2018-07-11","تم التسديد",null,1]
["وفاء شنيور جلود زغير",1750,1750,175,null,"حماية المنشات والشخصيات","2018-07-11",null,null,0]
["عقيل حسن حربي شبيب",280,210,70,null,"مديرية النجدة العامة","2018-07-11","تم التسديد",null,1]
["عباس مطشر سعود احمد",4584,4168,416,null,"مديرية النجدة العامة","2018-07-11","تم التسديد",null,1]
["طاهر إبراهيم رحيم مزعل",2400,2100,300,null,"مديرية شرطة الكهرباء","2018-07-11","تم التسديد",null,1]
["حسن عبد علي حسون عباس ",1600,1400,200,null,"مديرية شرطة الكهرباء","2018-07-11","تم التسديد",null,1]
["حسن عبد علي حسون عباس ",600,500,100,null,"مديرية شرطة الكهرباء","2018-07-11","تم التسديد",null,1]
["امجد كاظم رحيم حافظ",1600,1400,200,null,"مديرية شرطة الكهرباء","2018-07-11","تم التسديد",null,1]
["غالب عبيد مظلوم رويهي",800,700,100,null,"مديرية شرطة الكهرباء","2018-07-11","تم التسديد",null,1]
["علي عزيز شنيشل موسم المسعداوي",600,600,85,null,"الشرطة الاتحادية","2018-07-11",null,null,0]
["علي عزيز شنيشل موسم المسعداوي",150,150,30,null,"الشرطة الاتحادية","2018-07-11",null,null,0]
["عدي هاشم صمد حسن الجبوري",750,600,150,null,"مديرية نجدة بغداد","2018-07-11","تم التسديد",null,1]
["ياسين رحمة صكبان رسن",300,300,50,null,"امن وسلامة الوزارة","2018-07-11",null,null,0]
["جاسم حميد جاسم عطية اللامي",3500,3500,350,null,"قيادة شرطة بغداد","2018-07-11",null,null,0]
["جاسم حميد جاسم عطية اللامي",800,800,88,null,"قيادة شرطة بغداد","2018-07-11",null,null,0]
["منصور حسن منصور سوادي الفريجي",1575,1400,175,null,"مديرية شرطة الكهرباء","2018-07-11","تم التسديد",null,1]
["سها صاحب عنون عبد العامري",1750,1750,175,null,"الشرطة الاتحادية","2018-07-11",null,null,0]
["حسام محمد حداوي عنتاكي",3150,2800,350,null,"مديرية شرطة الكهرباء","2018-07-11","تم التسديد",null,1]
["مهند خالد فاضل ذنون",1750,1750,175,null,"الشرطة الاتحادية","2018-07-11",null,null,0]
["فلاح حسن عداي جوعان جيزان",5000,5000,416,null,"مديرية مرور بغداد","2018-07-11",null,null,0]
["علاء كريم جبار سلمان ",900,800,100,null,"مديرية شرطة الكهرباء","2018-07-11","تم التسديد",null,1]
["نبيل إبراهيم رحيم مزعل",712,624,88,null,"مديرية شرطة الكهرباء","2018-07-11","تم التسديد",null,1]
["علي عبد الأمير عباس عصري",250,200,50,null,"مديرية نجدة بغداد","2018-07-11","تم التسديد",null,1]
["علي عبد الأمير عباس عصري",94,63,31,null,"مديرية نجدة بغداد","2018-07-11","تم التسديد",null,1]
["علي عبد الأمير عباس عصري",150,100,50,null,"مديرية نجدة بغداد","2018-07-11","تم التسديد",null,1]
["حسين عبد الرضا علي حسن اللامي ",800,800,88,null,"امن وسلامة الوزارة","2018-07-11",null,null,0]
["حسين عبد الرضا علي حسن اللامي ",200,200,50,null,"امن وسلامة الوزارة","2018-07-11",null,null,0]
["علاء إبراهيم جمعة عبد عون",1125,1000,125,null,"مديرية نجدة الكاظمية","2018-07-11","تم التسديد",null,1]
["ناصر إبراهيم مطير عباس العكيلي",3000,3000,300,null,"مديرية نجدة بغدد","2018-07-11",null,null,0]
["حارث صبحي عبد الهادي",600,600,100,null,"مديرية شرطة الكهرباء","2018-07-11",null,null,0]
["فراس خضير جاسم عواد اللامي",2400,2400,266,null,"الشرطة الاتحادية","2018-07-11",null,null,0]
["فراس خضير جاسم عواد اللامي",600,600,85,null,"الشرطة الاتحادية","2018-07-11",null,null,0]
["وفاء شنيور جلود زغير",700,700,87,null,"حماية المنشات والشخصيات","2018-07-11",null,null,0]
["ياسر هاشم محمد فرج البخاتي ",2100,2100,263,null,"الشرطة الاتحادية","2018-07-11",null,null,0]
["ياسر هاشم محمد فرج البخاتي ",175,175,35,null,"الشرطة الاتحادية","2018-07-11",null,null,0]
["ياسر هاشم محمد فرج البخاتي ",800,800,100,null,"الشرطة الاتحادية","2018-07-11",null,null,0]
["عباس مانع عطية حمد",900,900,100,null,"الشرطة الاتحادية فق 1","2018-07-11",null,null,0]
["علي رعد ياسين حيدر ",1800,1800,200,null,"الشرطة الاتحادية فق 1","2018-07-11",null,null,0]
["مصطفى ناجي كريدي بنيان",125,125,31,null,"امن وسلامة الوزارة","2018-07-11",null,null,0]
["احمد حسين علوان صكر",1800,{"$f":"B1996-J1996*D1996","v":1800},200,null,"الشرطة الاتحادية فق 1","2018-07-11",null,null,{"$f":"COUNTIF(H1996:I1996,\"تم التسديد\")","v":0}]
["زيدون عماد مذخور محسن المحمداوي",700,700,100,null,"الشرطة الاتحادية فق 1","2018-07-11",null,null,0]
["محمد صاحب شنيشل كاظم",2500,2500,250,null,"حماية المنشات والشخصيات","2018-07-12",null,null,0]
["محمد صاحب شنيشل كاظم",600,600,86,null,"حماية المنشات والشخصيات","2018-07-12",null,null,0]
["علي فاضل عبود علوش",800,700,100,null,"مديرية شرطة النجدة","2018-07-12","تم التسديد",null,1]
["اوس بهاء بدر شاكر العزاوي",900,900,100,null,"الشرطة الاتحادية","2018-07-24",null,null,0]
["عباس محمد عباس محمود ال بابا",3200,3200,320,null,"الشرطة الاتحادية","2018-08-14",null,null,0]
["احمد رحمة طعمة حسن الموسوي",1000,1000,166,null,"شرطة الكهرباء","2018-09-01",null,null,0]
[]
[]
[]
[]
[]
[]
[]
[]
[]
[]
[]
[]
[]
[]
[]
[]
[]
[]
[]
[]
[]
[]
[]
[]
[]
[]
[]
[]
[]
[]
[]
[]
[]
[]
[]
[]
[]
[]
[]
[]
[]
[]
[]
[]
[]
[]
[]
[]
[]
[]
[]
[]
[]
[]
[]
[]
[]
[]
[]
[]
[]
[]
[]
[]
[]
[]
[]
[]
[]
[]
[]
[]
[]
[]
[]
[]
[]
[]
[]
[]
[]
[]
[]
[]
[]
[]
[]
[]
[]
[]
[]
[]
[]
[]
[]
[]
[]
[]
[]
[]
[]
[]
[]
[]
[]
[]
[]
[]
[]
[]
[]
[]
[]
[]
[]
[]
[]
[]
[]
[]
[]
[]
[]
[]
[]
[]
[]
[]
[]
[]
[]
[]
[]
[]
[]
[]
[]
[]
[]
[]
[]
[]
[]
[]
[]
[]
[]
[]
[]
[]
[]
[]
[]
[]
[]
[]
[]
[]
[]
[]
[]
[]
[]
[]
[]
[]
[]
[]
[]
[]
[]
[]
[]
[]
[]
[]
[]
[]
[]
[]
[]
[]
[]
[]
[]
[]
[]
[]
[]
[]
[]
[]
[]
[]
[]
[]
[]
[]
[]
[]
[]
[]
[]
[]
[]
[]
[]
[]
[]
[]
[]
[]
[]
[]
[]
[]
[]
[]
[]
[]
[]
[]
[]
[]
[]
[]
[]
[]
[]
[]
[]
[]
[]
[]
[]
[]
[]
[]
[]
[]
[]
[]
[]
[]
[]
[]
[]
[]
[]
[]
[]
[]
[]
[]
[]
[]
[]
[]
[]
[]
[]
[]
[]
[]
[]
[]
[]
[]
[]
[]
[]
[]
[]
[]
[]
[]
[]
[]
[]
[]
[]
[]
[]
[]
[]
[]
[]
[]
[]
[]
[]
[]
[]
[]
[]
[]
[]
[]
[]
[]
[]
[]
[]
[]
[]
[]
[]
[]
[]
[]
[]
[]
[]
[]
[]
[]
[]
[]
[]
[]
[]
[]
[]
[]
[]
[]
[]
[]
[]
[]
[]
[]
[]
[]
[]
[]
[]
[]
[]
[]
[]
[]
[]
[]
[]
[]
[]
[]
[]
[]
[]
[]
[]
[]
[]
[]
[]
[]
[]
[]
[]
[]
[]
[]
[]
[]
[]
[]
[]
[]
[]
[]
[]
[]
[]
[]
[]
[]
[]
[]
[]
[]
[]
[]
[]
[]
[]
[]
[]
[]
[]
[]
[]
[]
[]
[]
[]
[]
[]
[]
[]
[]
[]
[]
[]
[]
[]
[]
[]
[]
[]
[]
[]
[]
[]
[]
[]
[]
[]
[]
[]
[]
[]
[]
[]
[]
[]
[]
[]
[]
[]
[]
[]
[]
[]
[]
[]
[]
[]
[]
[]
[]
[]
[]
[]
[]
[]
[]
[]
[]
[]
[]
[]
[]
[]
[]
[]
[]
[]
[]
[]
[]
[]
[]
[]
[]
[]
[]
[]
[]
[]
[]
[]
[]
[]
[]
[]
[]
[]
[]
[]
[]
[]
[]
[]
[]
[]
[]
[]
[]
[]
[]
[]
[]
[]
[]
[]
[]
[]
[]
[]
[]
[]
[]
[]
[]
[]
[]
[]
[]
[]
[]
[]
[]
[]
[]
[]
[]
[]
[]
[]
[]
[]
[]
[]
[]
[]
[]
[]
[]
[]
[]
[]
[]
[]
[]
[]
[]
[]
[]
[]
[]
[]
[]
[]
[]
[]
[]
[]
[]
[]
[]
[]
[]
[]
[]
[]
[]
[]
[]
[]
[]
[]
[]
[]
[]
[]
[]
[]
[]
[]
[]
[]
[]
[]
[]
[]
[]
[]
[]
[]
[]
[]
[]
[]
[]
[]
[]
[]
[]
[]
[]
[]
[]
[]
[]
[]
[]
[]
[]
[]
[]
[]
[]
[]
[]
[]
[]
[]
[]
[]
[]
[]
[]
[]
[]
[]
[]
[]
[]
[]
[]
[]
[]
[]
[]
[]
[]
[]
[]
[]
[]
[]
[]
[]
[]
[]
[]
[]
[]
[]
[]
[]
[]
[]
[]
[]
[]
[]
[]
[]
[]
[]
[]
[]
[]
[]
[]
[]
[]
[]
[]
[]
[]
[]
[]
[]
[]
[]
[]
[]
[]
[]
[]
[]
[]
[]
[]
[]
[]
[]
[]
[]
[]
[]
[]
[]
[]
[]
[]
[]
[]
[]
[]
[]
[]
[]
[]
[]
[]
[]
[]
[]
[]
[]
[]
[]
[]
[]
[]
[]
[]
[]
[]
[]
[]
[]
[]
[]
[]
[]
[]
[]
[]
[]
[]
[]
[]
[]
[]
[]
[]
[]
[]
[]
[]
[]
[]
[]
[]
[]
[]
[]
[]
[]
[]
[]
[]
[]
[]
[]
[]
[]
[]
[]
[]
[]
[]
[]
[]
[]
[]
[]
[]
[]
[]
[]
[]
[]
[]
[]
[]
[]
[]
[]
[]
[]
[]
[]
[]
[]
[]
[]
[]
[]
[]
[]
[]
[]
[]
[]
[]
[]
[]
[]
[]
[]
[]
[]
[]
[]
[]
[]
[]
[]
[]
[]
[]
[]
[]
[]
[]
[]
[]
[]
[]
[]
[]
[]
[]
[]
[]
[]
[]
[]
[]
[]
[]
[]
[]
[]
[]
[]
[]
[]
[]
[]
[]
[]
[]
[]
[]
[]
[]
[]
[]
[]
[]
[]
[]
[]
[]
[]
[]
[]
[]
[]
[]
[]
[]
[]
[]
[]
[]
[]
[]
[]
[]
[]
[]
[]
[]
[]
[]
[]
[]
[]
[]
[]
[]
[]
[]
[]
[]
[]
[]
[]
[]
[]
[]
[]
[]
[]
[]
[]
[]
[]
[]
[]
[]
[]
[]
[]
[]
[]
[]
[]
[]
[]
[]
[]
[]
[]
[]
[]
[]
[]
[]
[]
[]
[]
[]
[]
[]
[]
[]
[]
[]
[]
[]
[]
[]
[]
[]
[]
[]
[]
[]
[]
[]
[]
[]
[]
[]
[]
[]
[]
[]
[]
[]
[]
[]
[]
[]
[]
[]
[]
[]
[]
[]
[]
[]
[]
[]
[]
[]
[]
[]
[]
[]
[]
[]
[]
[]
[]
[]
[]
[]
[]
[]
[]
[]
[]
[]
[]
[]
[]
[]
[]
[]
[]
[]
[]
[]
[]
[]
[]
[]
[]
[]
[]
[]
[]
[]
[]
[]
[]
[]
[]
[]
[]
[]
[]
[]
[]
[]
[]
[]
[]
[]
[]
[]
[]
[]
[]
[]
[]
[]
[]
[]
[]
[]
[]
[]
[]
[]
[]
[]
[]
[]
[]
[]
[]
[]
[]
[]
[]
[]
[]
[]
[]
[]
[]
[]
[]
[]
[]
[]
[]
[]
[]
[]
[]
[]
[]
[]
[]
[]
[]
[]
[]
[]
[]
[]
[]
[]
[]
[]
[]
[]
[]
[]
[]
[]
[]
[]
[]
[]
[]
[]
[]
[]
[]
[]
[]
[]
[]
[]
[]
[]
[]
[]
[]
[]
[]
[]
[]
[]
[]
[]
[]
[]
[]
[]
[]
[]
[]
[]
[]
[]
[]
[]
[]
[]
[]
[]
[]
[]
[]
[]
[]
[]
[]
[]
[]
[]
[]
[]
[]
[]
[]
[]
[]
[]
[]
[]
[]
[]
[]
[]
[]
[]
[]
[]
[]
[]
[]
[]
[]
[]
[]
[]
[]
[]
[]
[]
[]
[]
[]
[]
[]
[]
[]
[]
[]
[]
[]
[]
[]
[]
[]
[]
[]
[]
[]
[]
[]
[]
[]
[]
[]
[]
[]
[]
[]
[]
[]
[]
[]
[]
[]
[]
[]
[]
[]
[]
[]
[]
[]
[]
[]
[]
[]
[]
[]
[]
[]
[]
[]
[]
[]
[]
[]
[]
[]
[]
[]
[]
[]
[]
[]
[]
[]
[]
[]
[]
[]
[]
[]
[]
[]
[]
[]
[]
[]
[]
[]
[]
[]
[]
[]
[]
[]
[]
[]
[]
[]
[]
[]
[]
[]
[]
[]
[]
[]
[]
[]
[]
[]
[]
[]
[]
[]
[]
[]
[]
[]
[]
[]
[]
[]
[]
[]
[]
[]
[]
[]
[]
[]
[]
[]
[]
[]
[]
[]
[]
[]
[]
[]
[]
[]
[]
[]
[]
[]
[]
[]
[]
[]
[]
[]
[]
[]
[]
[]
[]
[]
[]
[]
[]
[]
[]
[]
[]
[]
[]
[]
[]
[]
[]
[]
[]
[]
[]
[]
[]
[]
[]
[]
[]
[]
[]
[]
[]
[]
[]
[]
[]
[]
[]
[]
[]
[]
[]
[]
[]
[]
[]
[]
[]
[]
[]
[]
[]
[]
[]
[]
[]
[]
[]
[]
[]
[]
[]
[]
[]
[]
[]
[]
[]
[]
[]
[]
[]
[]
[]
[]
[]
[]
[]
[]
[]
[]
[]
[]
[]
[]
[]
[]
[]
[]
[]
[]
[]
[]
[]
[]
[]
[]
[]
[]
[]
[]
[]
[]
[]
[]
[]
[]
[]
[]
[]
[]
[]
[]
[]
[]
[]
[]
[]
[]
[]
[]
[]
[]
[]
[]
[]
[]
[]
[]
[]
[]
[]
[]
[]
[]
[]
[]
[]
[]
[]
[]
[]
[]
[]
[]
[]
[]
[]
[]
[]
[]
[]
[]
[]
[]
[]
[]
[]
[]
[]
[]
[]
[]
[]
[]
[]
[]
[]
[]
[]
[]
[]
[]
[]
[]
[]
[]
[]
[]
[]
[]
[]
[]
[]
[]
[]
[]
[]
[]
[]
[]
[]
[]
[]
[]
[]
[]
[]
[]
[]
[]
[]
[]
[]
[]
[]
[]
[]
[]
[]
[]
[]
[]
[]
[]
[]
[]
[]
[]
[]
[]
[]
[]
[]
[]
[]
[]
[]
[]
[]
[]
[]
[]
[]
[]
[]
[]
[]
[]
[]
[]
[]
[]
[]
[]
[]
[]
[]
[]
[]
[]
[]
[]
[]
[]
[]
[]
[]
[]
[]
[]
[]
[]
[]
[]
[]
[]
[]
[]
[]
[]
[]
[]
[]
[]
[]
[]
[]
[]
[]
[]
[]
[]
[]
[]
[]
[]
[]
[]
[]
[]
[]
[]
[]
[]
[]
[]
[]
[]
[]
[]
[]
[]
[]
[]
[]
[]
[]
[]
[]
[]
[]
[]
[]
[]
[]
[]
[]
[]
[]
[]
[]
[]
[]
[]
[]
[]
[]
[]
[]
[]
[]
[]
[]
[]
[]
[]
[]
[]
[]
[]
[]
[]
[]
[]
[]
[]
[]
[]
[]
[]
[]
[]
[]
[]
[]
[]
[]
[]
[]
[]
[]
[]
[]
[]
[]
[]
[]
[]
[]
[]
[]
[]
[]
[]
[]
[]
[]
[]
[]
[]
[]
[]
[]
[]
[]
[]
[]
[]
[]
[]
[]
[]
[]
[]
[]
[]
[]
[]
[]
[]
[]
[]
[]
[]
[]
[]
[]
[]
[]
[]
[]
[]
[]
[]
[]
[]
[]
[]
[]
[]
[]
[]
[]
[]
[]
[]
[]
[]
[]
[]
[]
[]
[]
[]
[]
[]
[]
[]
[]
[]
[]
[]
[]
[]
[]
[]
[]
[]
[]
[]
[]
[]
[]
[]
[]
[]
[]
[]
[]
[]
[]
[]
[]
[]
[]
[]
[]
[]
[]
[]
[]
[]
[]
[]
[]
[]
[]
[]
[]
[]
[]
[]
[]
[]
[]
[]
[]
[]
[]
[]
[]
[]
[]
[]
[]
[]
[]
[]
[]
[]
[]
[]
[]
[]
[]
[]
[]
[]
[]
[]
[]
[]
[]
[]
[]
[]
[]
[]
[]
[]
[]
[]
[]
[]
[]
[]
[]
[]
[]
[]
[]
[]
[]
[]
[]
[]
[]
[]
[]
[]
[]
[]
[]
[]
[]
[]
[]
[]
[]
[]
[]
[]
[]
[]
[]
[]
[]
[]
[]
[]
[]
[]
[]
[]
[]
[]
[]
[]
[]
[]
[]
[]
[]
[]
[]
[]
[]
[]
[]
[]
[]
[]
[]
[]
[]
[]
[]
[]
[]
[]
[]
[]
[]
[]
[]
[]
[]
[]
[]
[]
[]
[]
[]
[]
[]
[]
[]
[]
[]
[]
[]
[]
[]
[]
[]
[]
[]
[]
[]
[]
[]
[]
[]
[]
[]
[]
[]
[]
[]
[]
[]
[]
[]
[]
[]
[]
[]
[]
[]
[]
[]
[]
[]
[]
[]
[]
[]
[]
[]
[]
[]
[]
[]
[]
[]
[]
[]
[]
[]
[]
[]
[]
[]
[]
[]
[]
[]
[]
[]
[]
[]
[]
[]
[]
[]
[]
[]
[]
[]
[]
[]
[]
[]
[]
[]
[]
[]
[]
[]
[]
[]
[]
[]
[]
[]
[]
[]
[]
[]
[]
[]
[]
[]
[]
[]
[]
[]
[]
[]
[]
[]
[]
[]
[]
[]
[]
[]
[]
[]
[]
[]
[]
[]
[]
[]
[]
[]
[]
[]
[]
[]
[]
[]
[]
[]
[]
[]
[]
[]
[]
[]
[]
[]
[]
[]
[]
[]
[]
[]
[]
[]
[]
[]
[]
[]
[]
[]
[]
[]
[]
[]
[]
[]
[]
[]
[]
[]
[]
[]
[]
[]
[]
[]
[]
[]
[]
[]
[]
[]
[]
[]
[]
[]
[]
[]
[]
[]
[]
[]
[]
[]
[]
[]
[]
[]
[]
[]
[]
[]
[]
[]
[]
[]
[]
[]
[]
[]
[]
[]
[]
[]
[]
[]
[]
[]
[]
[]
[]
[]
[]
[]
[]
[]
[]
[]
[]
[]
[]
[]
[]
[]
[]
[]
[]
[]
[]
[]
[]
[]
[]
[]
[]
[]
[]
[]
[]
[]
[]
[]
[]
[]
[]
[]
[]
[]
[]
[]
[]
[]
[]
[]
[]
[]
[]
[]
[]
[]
[]
[]
[]
[]
[]
[]
[]
[]
[]
[]
[]
[]
[]
[]
[]
[]
[]
[]
[]
[]
[]
[]
[]
[]
[]
[]
[]
[]
[]
[]
[]
[]
[]
[]
[]
[]
[]
[]
[]
[]
[]
[]
[]
[]
[]
[]
[]
[]
[]
[]
[]
[]
[]
[]
[]
[]
[]
[]
[]
[]
[]
[]
[]
[]
[]
[]
[]
[]
[]
[]
[]
[]
[]
[]
[]
[]
[]
[]
[]
[]
[]
[]
[]
[]
[]
[]
[]
[]
[]
[]
[]
[]
[]
[]
[]
[]
[]
[]
[]
[]
[]
[]
[]
[]
[]
[]
[]
[]
[]
[]
[]
[]
[]
[]
[]
[]
[]
[]
[]
[]
[]
[]
[]
[]
[]
[]
[]
[]
[]
[]
[]
[]
[]
[]
[]
[]
[]
[]
[]
[]
[]
[]
[]
[]
[]
[]
[]
[]
[]
[]
[]
[]
[]
[]
[]
[]
[]
[]
[]
[]
[]
[]
[]
[]
[]
[]
[]
[]
[]
[]
[]
[]
[]
[]
[]
[]
[]
[]
[]
[]
[]
[]
[]
[]
[]
[]
[]
[]
[]
[]
[]
[]
[]
[]
[]
[]
[]
[]
[]
[]
[]
[]
[]
[]
[]
[]
[]
[]
[]
[]
[]
[]
[]
[]
[]
[]
[]
[]
[]
[]
[]
[]
[]
[]
[]
[]
[]
[]
[]
[]
[]
[]
[]
[]
[]
[]
[]
[]
[]
[]
[]
[]
[]
[]
[]
[]
[]
[]
[]
[]
[]
[]
[]
[]
[]
[]
[]
[]
[]
[]
[]
[]
[]
[]
[]
[]
[]
[]
[]
[]
[]
[]
[]
[]
[]
[]
[]
[]
[]
[]
[]
[]
[]
[]
[]
[]
[]
[]
[]
[]
[]
[]
[]
[]
[]
[]
[]
[]
[]
[]
[]
[]
[]
[]
[]
[]
[]
[]
[]
[]
[]
[]
[]
[]
[]
[]
[null,{"$f":"SUBTOTAL(9,B1:B1048542)","v":48008426}]